Organisation Name,Organisation Code,Unique Ref No,Effective Date,Directorate  where expenditure incurred,Supplier Name,Payment Date,Net Amount,Purpose of Spend,Procurement Classification (Higher Level),Procurement Classification (Lower Level),Capital/Revenue
Walsall Council,http://opendatacommunities.org/id/metropolitan-district-council/walsall,WC91-01,30/04/2018,Childrens,247 CARS (WILLENHALL) LIMITED,05/04/2018,495.00,60500-GENERAL MATERIALS,PUPIL REFERAL UNIT EXCLUSIONS,Supplies & Services,Revenue
Walsall Council,http://opendatacommunities.org/id/metropolitan-district-council/walsall,WC91-02,30/04/2018,Childrens,247 CARS (WILLENHALL) LIMITED,05/04/2018,508.00,60500-GENERAL MATERIALS,PUPIL REFERAL UNIT EXCLUSIONS,Supplies & Services,Revenue
Walsall Council,http://opendatacommunities.org/id/metropolitan-district-council/walsall,WC91-03,30/04/2018,Childrens,39 ESSEX STREET LLP PFA,09/04/2018,900.00,73014-LEGAL FEES-PRIV CONTRACTOR FEES,PERFORMANCE & OUTCOMES TEAM (C&YP),Third Party Payments,Revenue
Walsall Council,http://opendatacommunities.org/id/metropolitan-district-council/walsall,WC91-04,30/04/2018,Resources and Transformation,3C TECHNOLOGY LTD,04/04/2018,520.00,63800-COMPUTER EQUIPMENT AND SUPPLIES,SIT-INFRASTRUCTURE,Supplies & Services,Revenue
Walsall Council,http://opendatacommunities.org/id/metropolitan-district-council/walsall,WC91-05,30/04/2018,Resources and Transformation,3C TECHNOLOGY LTD,06/04/2018,"1,040.00",63800-COMPUTER EQUIPMENT AND SUPPLIES,SIT-INFRASTRUCTURE,Supplies & Services,Revenue
Walsall Council,http://opendatacommunities.org/id/metropolitan-district-council/walsall,WC91-06,30/04/2018,Childrens,5 CARE SERVICES LTD,25/04/2018,742.00,63000-PROFESSIONAL FEES AND SERVICES,DIRECTLY COMMISSIONED NURSING SERVICES,Supplies & Services,Revenue
Walsall Council,http://opendatacommunities.org/id/metropolitan-district-council/walsall,WC91-07,30/04/2018,Childrens,5 CARE SERVICES LTD,13/04/2018,840.00,63000-PROFESSIONAL FEES AND SERVICES,DIRECTLY COMMISSIONED NURSING SERVICES,Supplies & Services,Revenue
Walsall Council,http://opendatacommunities.org/id/metropolitan-district-council/walsall,WC91-08,30/04/2018,Childrens,5 CARE SERVICES LTD,19/04/2018,"1,232.00",63000-PROFESSIONAL FEES AND SERVICES,DIRECTLY COMMISSIONED NURSING SERVICES,Supplies & Services,Revenue
Walsall Council,http://opendatacommunities.org/id/metropolitan-district-council/walsall,WC91-09,30/04/2018,Childrens,5 CARE SERVICES LTD,19/04/2018,"1,596.00",63000-PROFESSIONAL FEES AND SERVICES,DIRECTLY COMMISSIONED NURSING SERVICES,Supplies & Services,Revenue
Walsall Council,http://opendatacommunities.org/id/metropolitan-district-council/walsall,WC91-10,30/04/2018,Childrens,5 CARE SERVICES LTD,13/04/2018,"1,638.00",63000-PROFESSIONAL FEES AND SERVICES,DIRECTLY COMMISSIONED NURSING SERVICES,Supplies & Services,Revenue
Walsall Council,http://opendatacommunities.org/id/metropolitan-district-council/walsall,WC91-11,30/04/2018,Adult Social Care,5 CARE SERVICES LTD,24/04/2018,"41,649.46",73372-DOMICILIARY CARE,OP PACKAGE/PLACEMENT COSTS,Third Party Payments,Revenue
Walsall Council,http://opendatacommunities.org/id/metropolitan-district-council/walsall,WC91-12,30/04/2018,Adult Social Care,A & A CLEANING ANGELS,04/04/2018,650.00,62515-MISCELLANEOUS SUPPLIES,COMMUNITY INTERMEDIATE CARE,Supplies & Services,Revenue
Walsall Council,http://opendatacommunities.org/id/metropolitan-district-council/walsall,WC91-13,30/04/2018,Resources and Transformation,A D T FIRE AND SECURITY PLC,04/04/2018,222.02,73002-SECURITY-PRIV CONTRACTOR FEES,CENTRALISED MAINTENANCE,Third Party Payments,Revenue
Walsall Council,http://opendatacommunities.org/id/metropolitan-district-council/walsall,WC91-14,30/04/2018,Economy & Environment,A D T FIRE AND SECURITY PLC,09/04/2018,389.00,"40000-REPAIRS,ALTERATIONS & MAINTENANCE-PREM",ARBORETUM,Premises,Revenue
Walsall Council,http://opendatacommunities.org/id/metropolitan-district-council/walsall,WC91-15,30/04/2018,Resources and Transformation,A D T FIRE AND SECURITY PLC,30/04/2018,436.51,73002-SECURITY-PRIV CONTRACTOR FEES,REDUNDANT BUILDINGS,Third Party Payments,Revenue
Walsall Council,http://opendatacommunities.org/id/metropolitan-district-council/walsall,WC91-16,30/04/2018,Resources and Transformation,A D T FIRE AND SECURITY PLC,04/04/2018,658.92,73002-SECURITY-PRIV CONTRACTOR FEES,REDUNDANT BUILDINGS,Third Party Payments,Revenue
Walsall Council,http://opendatacommunities.org/id/metropolitan-district-council/walsall,WC91-17,30/04/2018,Resources and Transformation,A D T FIRE AND SECURITY PLC,04/04/2018,802.02,73002-SECURITY-PRIV CONTRACTOR FEES,CENTRALISED MAINTENANCE,Third Party Payments,Revenue
Walsall Council,http://opendatacommunities.org/id/metropolitan-district-council/walsall,WC91-18,30/04/2018,Resources and Transformation,A D T FIRE AND SECURITY PLC,04/04/2018,"1,041.89",73002-SECURITY-PRIV CONTRACTOR FEES,CHALLENGE BUILDING,Third Party Payments,Revenue
Walsall Council,http://opendatacommunities.org/id/metropolitan-district-council/walsall,WC91-19,30/04/2018,Resources and Transformation,A D T FIRE AND SECURITY PLC,04/04/2018,"1,061.47",73002-SECURITY-PRIV CONTRACTOR FEES,CENTRALISED MAINTENANCE,Third Party Payments,Revenue
Walsall Council,http://opendatacommunities.org/id/metropolitan-district-council/walsall,WC91-20,30/04/2018,Resources and Transformation,A D T FIRE AND SECURITY PLC,30/04/2018,"1,128.93",73002-SECURITY-PRIV CONTRACTOR FEES,CENTRALISED MAINTENANCE,Third Party Payments,Revenue
Walsall Council,http://opendatacommunities.org/id/metropolitan-district-council/walsall,WC91-21,30/04/2018,Resources and Transformation,A D T FIRE AND SECURITY PLC,04/04/2018,"1,202.64",73002-SECURITY-PRIV CONTRACTOR FEES,CENTRALISED MAINTENANCE,Third Party Payments,Revenue
Walsall Council,http://opendatacommunities.org/id/metropolitan-district-council/walsall,WC91-22,30/04/2018,Economy & Environment,A D T FIRE AND SECURITY PLC,09/04/2018,"1,351.33","40000-REPAIRS,ALTERATIONS & MAINTENANCE-PREM",ARBORETUM,Premises,Revenue
Walsall Council,http://opendatacommunities.org/id/metropolitan-district-council/walsall,WC91-23,30/04/2018,Economy & Environment,A F BLAKEMORE & SON LTD,19/04/2018,253.16,61008-CONFECTIONERY/SNACKS-PROVISIONS,WALSALL GALA CENTRE,Supplies & Services,Revenue
Walsall Council,http://opendatacommunities.org/id/metropolitan-district-council/walsall,WC91-24,30/04/2018,Economy & Environment,A F BLAKEMORE & SON LTD,09/04/2018,255.59,61018-DRINKS-PROVISIONS,OAK PARK,Supplies & Services,Revenue
Walsall Council,http://opendatacommunities.org/id/metropolitan-district-council/walsall,WC91-25,30/04/2018,Economy & Environment,A F BLAKEMORE & SON LTD,23/04/2018,287.65,61018-DRINKS-PROVISIONS,OAK PARK,Supplies & Services,Revenue
Walsall Council,http://opendatacommunities.org/id/metropolitan-district-council/walsall,WC91-26,30/04/2018,Economy & Environment,A F BLAKEMORE & SON LTD,12/04/2018,297.11,61008-CONFECTIONERY/SNACKS-PROVISIONS,OAK PARK,Supplies & Services,Revenue
Walsall Council,http://opendatacommunities.org/id/metropolitan-district-council/walsall,WC91-27,30/04/2018,Adult Social Care,A F BLAKEMORE & SON LTD,12/04/2018,318.40,61016-FOOD AND BEVERAGES-PROVISIONS,GOSCOTE,Supplies & Services,Revenue
Walsall Council,http://opendatacommunities.org/id/metropolitan-district-council/walsall,WC91-28,30/04/2018,Economy & Environment,A F BLAKEMORE & SON LTD,16/04/2018,318.74,61008-CONFECTIONERY/SNACKS-PROVISIONS,OAK PARK,Supplies & Services,Revenue
Walsall Council,http://opendatacommunities.org/id/metropolitan-district-council/walsall,WC91-29,30/04/2018,Adult Social Care,A F BLAKEMORE & SON LTD,06/04/2018,323.69,61016-FOOD AND BEVERAGES-PROVISIONS,HOLLYBANK,Supplies & Services,Revenue
Walsall Council,http://opendatacommunities.org/id/metropolitan-district-council/walsall,WC91-30,30/04/2018,Economy & Environment,A F BLAKEMORE & SON LTD,06/04/2018,328.93,61009-BEVERAGES-PROVISIONS,FOREST ARTS CENTRE,Supplies & Services,Revenue
Walsall Council,http://opendatacommunities.org/id/metropolitan-district-council/walsall,WC91-31,30/04/2018,Economy & Environment,A F BLAKEMORE & SON LTD,05/04/2018,396.48,61002-DRY FOODS-PROVISIONS,BLOXWICH LEISURE CENTRE,Supplies & Services,Revenue
Walsall Council,http://opendatacommunities.org/id/metropolitan-district-council/walsall,WC91-32,30/04/2018,Adult Social Care,A F BLAKEMORE & SON LTD,04/04/2018,425.14,61016-FOOD AND BEVERAGES-PROVISIONS,GOSCOTE,Supplies & Services,Revenue
Walsall Council,http://opendatacommunities.org/id/metropolitan-district-council/walsall,WC91-33,30/04/2018,Adult Social Care,A F BLAKEMORE & SON LTD,30/04/2018,515.24,61016-FOOD AND BEVERAGES-PROVISIONS,HOLLYBANK,Supplies & Services,Revenue
Walsall Council,http://opendatacommunities.org/id/metropolitan-district-council/walsall,WC91-34,30/04/2018,Economy & Environment,A F BLAKEMORE & SON LTD,04/04/2018,524.61,61008-CONFECTIONERY/SNACKS-PROVISIONS,BLOXWICH LEISURE CENTRE,Supplies & Services,Revenue
Walsall Council,http://opendatacommunities.org/id/metropolitan-district-council/walsall,WC91-35,30/04/2018,Resources and Transformation,A F BLAKEMORE & SON LTD,27/04/2018,748.85,61016-FOOD AND BEVERAGES-PROVISIONS,WALSALL TOWN HALL,Supplies & Services,Revenue
Walsall Council,http://opendatacommunities.org/id/metropolitan-district-council/walsall,WC91-36,30/04/2018,Economy & Environment,A F BLAKEMORE & SON LTD,24/04/2018,777.15,61008-CONFECTIONERY/SNACKS-PROVISIONS,OAK PARK,Supplies & Services,Revenue
Walsall Council,http://opendatacommunities.org/id/metropolitan-district-council/walsall,WC91-37,30/04/2018,Economy & Environment,A F BLAKEMORE & SON LTD,26/04/2018,"1,075.52",61008-CONFECTIONERY/SNACKS-PROVISIONS,BLOXWICH LEISURE CENTRE,Supplies & Services,Revenue
Walsall Council,http://opendatacommunities.org/id/metropolitan-district-council/walsall,WC91-38,30/04/2018,Economy & Environment,A F BLAKEMORE & SON LTD,09/04/2018,"1,270.65",61008-CONFECTIONERY/SNACKS-PROVISIONS,OAK PARK,Supplies & Services,Revenue
Walsall Council,http://opendatacommunities.org/id/metropolitan-district-council/walsall,WC91-39,30/04/2018,Economy & Environment,A F BLAKEMORE & SON LTD,04/04/2018,"1,839.43",61008-CONFECTIONERY/SNACKS-PROVISIONS,BLOXWICH LEISURE CENTRE,Supplies & Services,Revenue
Walsall Council,http://opendatacommunities.org/id/metropolitan-district-council/walsall,WC91-40,30/04/2018,Resources and Transformation,A G BARR PLC,19/04/2018,218.08,61009-BEVERAGES-PROVISIONS,TOWN HALL RESTAURANT BISTRO,Supplies & Services,Revenue
Walsall Council,http://opendatacommunities.org/id/metropolitan-district-council/walsall,WC91-41,30/04/2018,Adult Social Care,A STAR SUPPORT SERVICES LIMITED,16/04/2018,"1,261.50",73372-DOMICILIARY CARE,LD PACKAGE/PLACEMENT COSTS,Third Party Payments,Revenue
Walsall Council,http://opendatacommunities.org/id/metropolitan-district-council/walsall,WC91-42,30/04/2018,Resources and Transformation,A1 WALSALL RADIO TAXIS  LTD,01/04/2018,340.00,52000-WITH DRIVER-HIRE OF VEHICLES,ADVICE & GUIDANCE SERVICE,Transport,Revenue
Walsall Council,http://opendatacommunities.org/id/metropolitan-district-council/walsall,WC91-43,30/04/2018,Childrens,AAA BEE JAY CARS,24/04/2018,"2,972.10",52000-WITH DRIVER-HIRE OF VEHICLES,HOME TO SCHOOL TRANSPORT,Transport,Revenue
Walsall Council,http://opendatacommunities.org/id/metropolitan-district-council/walsall,WC91-44,30/04/2018,Childrens,AAA BEE JAY CARS,24/04/2018,"3,679.16",52000-WITH DRIVER-HIRE OF VEHICLES,HOME TO SCHOOL TRANSPORT,Transport,Revenue
Walsall Council,http://opendatacommunities.org/id/metropolitan-district-council/walsall,WC91-45,30/04/2018,Childrens,AAA BEE JAY CARS,24/04/2018,"4,160.94",52000-WITH DRIVER-HIRE OF VEHICLES,HOME TO SCHOOL TRANSPORT,Transport,Revenue
Walsall Council,http://opendatacommunities.org/id/metropolitan-district-council/walsall,WC91-46,30/04/2018,Childrens,REDACTED,09/04/2018,378.00,76422-DIRECT PAYMENTS TO SOCIAL SERVICES CLIENTS,FAMILY SUPPORT - DIRECT PAYMENTS,Transfer Payments,Revenue
Walsall Council,http://opendatacommunities.org/id/metropolitan-district-council/walsall,WC91-47,30/04/2018,Adult Social Care,ABBEY COURT NURSING & RESIDEN,18/04/2018,"1,818.30",73373-RESIDENTIAL & NURSING CARE PLACEMENTS,OP PACKAGE/PLACEMENT COSTS,Third Party Payments,Revenue
Walsall Council,http://opendatacommunities.org/id/metropolitan-district-council/walsall,WC91-48,30/04/2018,Adult Social Care,ABBEY COURT NURSING & RESIDEN,18/04/2018,"1,971.43",73373-RESIDENTIAL & NURSING CARE PLACEMENTS,OP PACKAGE/PLACEMENT COSTS,Third Party Payments,Revenue
Walsall Council,http://opendatacommunities.org/id/metropolitan-district-council/walsall,WC91-49,30/04/2018,Adult Social Care,ABBEY COURT NURSING & RESIDEN,24/04/2018,"1,971.43",73373-RESIDENTIAL & NURSING CARE PLACEMENTS,OP PACKAGE/PLACEMENT COSTS,Third Party Payments,Revenue
Walsall Council,http://opendatacommunities.org/id/metropolitan-district-council/walsall,WC91-50,30/04/2018,Adult Social Care,ABBEY COURT NURSING & RESIDEN,18/04/2018,"2,075.44",73373-RESIDENTIAL & NURSING CARE PLACEMENTS,OP PACKAGE/PLACEMENT COSTS,Third Party Payments,Revenue
Walsall Council,http://opendatacommunities.org/id/metropolitan-district-council/walsall,WC91-51,30/04/2018,Adult Social Care,ABBEY COURT NURSING & RESIDEN,18/04/2018,"2,142.85",73373-RESIDENTIAL & NURSING CARE PLACEMENTS,OP PACKAGE/PLACEMENT COSTS,Third Party Payments,Revenue
Walsall Council,http://opendatacommunities.org/id/metropolitan-district-council/walsall,WC91-52,30/04/2018,Adult Social Care,ABBEY HEALTHCARE HOMES LTD,24/04/2018,535.71,73373-RESIDENTIAL & NURSING CARE PLACEMENTS,OP PACKAGE/PLACEMENT COSTS,Third Party Payments,Revenue
Walsall Council,http://opendatacommunities.org/id/metropolitan-district-council/walsall,WC91-53,30/04/2018,Adult Social Care,ABBEY HEALTHCARE HOMES LTD,09/04/2018,"1,500.00",73373-RESIDENTIAL & NURSING CARE PLACEMENTS,OP PACKAGE/PLACEMENT COSTS,Third Party Payments,Revenue
Walsall Council,http://opendatacommunities.org/id/metropolitan-district-council/walsall,WC91-54,30/04/2018,Adult Social Care,ABBEY HEALTHCARE HOMES LTD,24/04/2018,"2,250.00",73373-RESIDENTIAL & NURSING CARE PLACEMENTS,LD PACKAGE/PLACEMENT COSTS,Third Party Payments,Revenue
Walsall Council,http://opendatacommunities.org/id/metropolitan-district-council/walsall,WC91-55,30/04/2018,Adult Social Care,ABBEY HEALTHCARE HOMES LTD,24/04/2018,"3,000.00",73373-RESIDENTIAL & NURSING CARE PLACEMENTS,OP PACKAGE/PLACEMENT COSTS,Third Party Payments,Revenue
Walsall Council,http://opendatacommunities.org/id/metropolitan-district-council/walsall,WC91-56,30/04/2018,Adult Social Care,ABBEY HEALTHCARE HOMES LTD,24/04/2018,"3,000.00",73373-RESIDENTIAL & NURSING CARE PLACEMENTS,OP PACKAGE/PLACEMENT COSTS,Third Party Payments,Revenue
Walsall Council,http://opendatacommunities.org/id/metropolitan-district-council/walsall,WC91-57,30/04/2018,Childrens,ABBEY PRIMARY SCHOOL,18/04/2018,500.00,63000-PROFESSIONAL FEES AND SERVICES,ADMISSIONS & PUPIL PLACE PLANNING,Supplies & Services,Revenue
Walsall Council,http://opendatacommunities.org/id/metropolitan-district-council/walsall,WC91-58,30/04/2018,Childrens,ABC DAY NURSERY (WILLENHALL) LIMITED,03/04/2018,"4,072.00",66505-OTHER-GRANTS TO OTHER ORGS,EARLY YEARS - 3 YR OLDS,Third Party Payments,Revenue
Walsall Council,http://opendatacommunities.org/id/metropolitan-district-council/walsall,WC91-59,30/04/2018,Childrens,ABC DAY NURSERY (WILLENHALL) LIMITED,03/04/2018,"11,536.00",66505-OTHER-GRANTS TO OTHER ORGS,EARLY YEARS - 3 YR OLDS,Third Party Payments,Revenue
Walsall Council,http://opendatacommunities.org/id/metropolitan-district-council/walsall,WC91-60,30/04/2018,Childrens,ABC DAY NURSERY (WILLENHALL) LIMITED,03/04/2018,"18,801.00",66505-OTHER-GRANTS TO OTHER ORGS,EARLY YEARS - 2 YR OLDS,Third Party Payments,Revenue
Walsall Council,http://opendatacommunities.org/id/metropolitan-district-council/walsall,WC91-61,30/04/2018,Childrens,ABC FOSTERING,23/04/2018,"-1,448.57",74037-INDEPENDENT FOSTER CARE-OTH AGENCY PROVISION,EXTERNAL FOSTER CARE PROVISION,Third Party Payments,Revenue
Walsall Council,http://opendatacommunities.org/id/metropolitan-district-council/walsall,WC91-62,30/04/2018,Childrens,ABC FOSTERING,23/04/2018,308.57,74037-INDEPENDENT FOSTER CARE-OTH AGENCY PROVISION,EXTERNAL FOSTER CARE PROVISION,Third Party Payments,Revenue
Walsall Council,http://opendatacommunities.org/id/metropolitan-district-council/walsall,WC91-63,30/04/2018,Childrens,ABC FOSTERING,23/04/2018,334.29,74037-INDEPENDENT FOSTER CARE-OTH AGENCY PROVISION,EXTERNAL FOSTER CARE PROVISION,Third Party Payments,Revenue
Walsall Council,http://opendatacommunities.org/id/metropolitan-district-council/walsall,WC91-64,30/04/2018,Childrens,ABC FOSTERING,23/04/2018,"2,635.20",74037-INDEPENDENT FOSTER CARE-OTH AGENCY PROVISION,EXTERNAL FOSTER CARE PROVISION,Third Party Payments,Revenue
Walsall Council,http://opendatacommunities.org/id/metropolitan-district-council/walsall,WC91-65,30/04/2018,Childrens,ABC FOSTERING,23/04/2018,"2,859.48",74037-INDEPENDENT FOSTER CARE-OTH AGENCY PROVISION,EXTERNAL FOSTER CARE PROVISION,Third Party Payments,Revenue
Walsall Council,http://opendatacommunities.org/id/metropolitan-district-council/walsall,WC91-66,30/04/2018,Childrens,ABC FOSTERING,23/04/2018,"3,042.00",74037-INDEPENDENT FOSTER CARE-OTH AGENCY PROVISION,EXTERNAL FOSTER CARE PROVISION,Third Party Payments,Revenue
Walsall Council,http://opendatacommunities.org/id/metropolitan-district-council/walsall,WC91-67,30/04/2018,Adult Social Care,REDACTED,09/04/2018,"1,557.68",76422-DIRECT PAYMENTS TO SOCIAL SERVICES CLIENTS,LD PACKAGE/PLACEMENT COSTS,Transfer Payments,Revenue
Walsall Council,http://opendatacommunities.org/id/metropolitan-district-council/walsall,WC91-68,30/04/2018,Resources and Transformation,ABEL ALARM CO LTD,04/04/2018,380.00,73002-SECURITY-PRIV CONTRACTOR FEES,CENTRALISED MAINTENANCE,Third Party Payments,Revenue
Walsall Council,http://opendatacommunities.org/id/metropolitan-district-council/walsall,WC91-69,30/04/2018,Adult Social Care,REDACTED,09/04/2018,"1,940.40",76422-DIRECT PAYMENTS TO SOCIAL SERVICES CLIENTS,LD PACKAGE/PLACEMENT COSTS,Transfer Payments,Revenue
Walsall Council,http://opendatacommunities.org/id/metropolitan-district-council/walsall,WC91-70,30/04/2018,Childrens,ABLEWELL CARS,04/04/2018,"8,325.20",52000-WITH DRIVER-HIRE OF VEHICLES,HOME TO SCHOOL TRANSPORT,Transport,Revenue
Walsall Council,http://opendatacommunities.org/id/metropolitan-district-council/walsall,WC91-71,30/04/2018,Childrens,ABU BAKR NURSERY,04/04/2018,"5,130.00",66505-OTHER-GRANTS TO OTHER ORGS,EARLY YEARS - 3 YR OLDS,Third Party Payments,Revenue
Walsall Council,http://opendatacommunities.org/id/metropolitan-district-council/walsall,WC91-72,30/04/2018,Childrens,ABU BAKR NURSERY,03/04/2018,"12,262.00",66505-OTHER-GRANTS TO OTHER ORGS,EARLY YEARS - 2 YR OLDS,Third Party Payments,Revenue
Walsall Council,http://opendatacommunities.org/id/metropolitan-district-council/walsall,WC91-73,30/04/2018,Childrens,ABU BAKR NURSERY,03/04/2018,"32,573.00",66505-OTHER-GRANTS TO OTHER ORGS,EARLY YEARS - 3 YR OLDS,Third Party Payments,Revenue
Walsall Council,http://opendatacommunities.org/id/metropolitan-district-council/walsall,WC91-74,30/04/2018,Adult Social Care,AC SOCIAL CARE CONSULTANCY LTD,20/04/2018,"1,358.13",63102-CONSULTANTS FEES - CORPORATE,SAFEGUARDING,Supplies & Services,Revenue
Walsall Council,http://opendatacommunities.org/id/metropolitan-district-council/walsall,WC91-75,30/04/2018,Adult Social Care,ACCORD - AGE MATTERS,03/04/2018,"5,846.00",76423-DIRECT PAYMENTS SUPPORT,DIRECT PAYMENT SUPPORT ORGANISATIONS,Transfer Payments,Revenue
Walsall Council,http://opendatacommunities.org/id/metropolitan-district-council/walsall,WC91-76,30/04/2018,Adult Social Care,ACCORD HOUSING ASSOCIATION LTD#135,30/04/2018,274.54,73372-DOMICILIARY CARE,MENTAL HEALTH PACKAGE/PLACEMENT COSTS,Third Party Payments,Revenue
Walsall Council,http://opendatacommunities.org/id/metropolitan-district-council/walsall,WC91-77,30/04/2018,Adult Social Care,ACCORD HOUSING ASSOCIATION LTD#135,30/04/2018,281.96,73372-DOMICILIARY CARE,OP PACKAGE/PLACEMENT COSTS,Third Party Payments,Revenue
Walsall Council,http://opendatacommunities.org/id/metropolitan-district-council/walsall,WC91-78,30/04/2018,Adult Social Care,ACCORD HOUSING ASSOCIATION LTD#135,11/04/2018,296.80,73372-DOMICILIARY CARE,MENTAL HEALTH PACKAGE/PLACEMENT COSTS,Third Party Payments,Revenue
Walsall Council,http://opendatacommunities.org/id/metropolitan-district-council/walsall,WC91-79,30/04/2018,Adult Social Care,ACCORD HOUSING ASSOCIATION LTD#135,30/04/2018,296.80,73372-DOMICILIARY CARE,MENTAL HEALTH PACKAGE/PLACEMENT COSTS,Third Party Payments,Revenue
Walsall Council,http://opendatacommunities.org/id/metropolitan-district-council/walsall,WC91-80,30/04/2018,Childrens,ACCORD HOUSING ASSOCIATION LTD#135,03/04/2018,325.00,63000-PROFESSIONAL FEES AND SERVICES,SAFEGUARDING & FAMILY SUPPORT,Supplies & Services,Revenue
Walsall Council,http://opendatacommunities.org/id/metropolitan-district-council/walsall,WC91-81,30/04/2018,Adult Social Care,ACCORD HOUSING ASSOCIATION LTD#135,09/04/2018,340.46,73373-RESIDENTIAL & NURSING CARE PLACEMENTS,LD PACKAGE/PLACEMENT COSTS,Third Party Payments,Revenue
Walsall Council,http://opendatacommunities.org/id/metropolitan-district-council/walsall,WC91-82,30/04/2018,Adult Social Care,ACCORD HOUSING ASSOCIATION LTD#135,11/04/2018,348.74,73372-DOMICILIARY CARE,MENTAL HEALTH PACKAGE/PLACEMENT COSTS,Third Party Payments,Revenue
Walsall Council,http://opendatacommunities.org/id/metropolitan-district-council/walsall,WC91-83,30/04/2018,Adult Social Care,ACCORD HOUSING ASSOCIATION LTD#135,11/04/2018,356.16,73372-DOMICILIARY CARE,MENTAL HEALTH PACKAGE/PLACEMENT COSTS,Third Party Payments,Revenue
Walsall Council,http://opendatacommunities.org/id/metropolitan-district-council/walsall,WC91-84,30/04/2018,Adult Social Care,ACCORD HOUSING ASSOCIATION LTD#135,11/04/2018,415.52,73372-DOMICILIARY CARE,MENTAL HEALTH PACKAGE/PLACEMENT COSTS,Third Party Payments,Revenue
Walsall Council,http://opendatacommunities.org/id/metropolitan-district-council/walsall,WC91-85,30/04/2018,Adult Social Care,ACCORD HOUSING ASSOCIATION LTD#135,11/04/2018,697.48,73372-DOMICILIARY CARE,OP PACKAGE/PLACEMENT COSTS,Third Party Payments,Revenue
Walsall Council,http://opendatacommunities.org/id/metropolitan-district-council/walsall,WC91-86,30/04/2018,Adult Social Care,ACCORD HOUSING ASSOCIATION LTD#135,30/04/2018,746.15,73372-DOMICILIARY CARE,MENTAL HEALTH PACKAGE/PLACEMENT COSTS,Third Party Payments,Revenue
Walsall Council,http://opendatacommunities.org/id/metropolitan-district-council/walsall,WC91-87,30/04/2018,Adult Social Care,ACCORD HOUSING ASSOCIATION LTD#135,30/04/2018,755.60,73372-DOMICILIARY CARE,MENTAL HEALTH PACKAGE/PLACEMENT COSTS,Third Party Payments,Revenue
Walsall Council,http://opendatacommunities.org/id/metropolitan-district-council/walsall,WC91-88,30/04/2018,Adult Social Care,ACCORD HOUSING ASSOCIATION LTD#135,30/04/2018,826.40,73372-DOMICILIARY CARE,MENTAL HEALTH PACKAGE/PLACEMENT COSTS,Third Party Payments,Revenue
Walsall Council,http://opendatacommunities.org/id/metropolitan-district-council/walsall,WC91-89,30/04/2018,Adult Social Care,ACCORD HOUSING ASSOCIATION LTD#135,03/04/2018,943.12,73372-DOMICILIARY CARE,OP PACKAGE/PLACEMENT COSTS,Third Party Payments,Revenue
Walsall Council,http://opendatacommunities.org/id/metropolitan-district-council/walsall,WC91-90,30/04/2018,Adult Social Care,ACCORD HOUSING ASSOCIATION LTD#135,30/04/2018,991.70,73372-DOMICILIARY CARE,MENTAL HEALTH PACKAGE/PLACEMENT COSTS,Third Party Payments,Revenue
Walsall Council,http://opendatacommunities.org/id/metropolitan-district-council/walsall,WC91-91,30/04/2018,Adult Social Care,ACCORD HOUSING ASSOCIATION LTD#135,30/04/2018,991.70,73372-DOMICILIARY CARE,MENTAL HEALTH PACKAGE/PLACEMENT COSTS,Third Party Payments,Revenue
Walsall Council,http://opendatacommunities.org/id/metropolitan-district-council/walsall,WC91-92,30/04/2018,Adult Social Care,ACCORD HOUSING ASSOCIATION LTD#135,30/04/2018,"1,086.20",73372-DOMICILIARY CARE,MENTAL HEALTH PACKAGE/PLACEMENT COSTS,Third Party Payments,Revenue
Walsall Council,http://opendatacommunities.org/id/metropolitan-district-council/walsall,WC91-93,30/04/2018,Adult Social Care,ACCORD HOUSING ASSOCIATION LTD#135,03/04/2018,"1,259.28",73372-DOMICILIARY CARE,LD PACKAGE/PLACEMENT COSTS,Third Party Payments,Revenue
Walsall Council,http://opendatacommunities.org/id/metropolitan-district-council/walsall,WC91-94,30/04/2018,Adult Social Care,ACCORD HOUSING ASSOCIATION LTD#135,11/04/2018,"1,259.28",73374-SUPPORTED & OTHER ACCOMMODATION,LD PACKAGE/PLACEMENT COSTS,Third Party Payments,Revenue
Walsall Council,http://opendatacommunities.org/id/metropolitan-district-council/walsall,WC91-95,30/04/2018,Adult Social Care,ACCORD HOUSING ASSOCIATION LTD#135,30/04/2018,"1,416.75",73372-DOMICILIARY CARE,MENTAL HEALTH PACKAGE/PLACEMENT COSTS,Third Party Payments,Revenue
Walsall Council,http://opendatacommunities.org/id/metropolitan-district-council/walsall,WC91-96,30/04/2018,Adult Social Care,ACCORD HOUSING ASSOCIATION LTD#135,03/04/2018,"1,529.15",73372-DOMICILIARY CARE,LD PACKAGE/PLACEMENT COSTS,Third Party Payments,Revenue
Walsall Council,http://opendatacommunities.org/id/metropolitan-district-council/walsall,WC91-97,30/04/2018,Adult Social Care,ACCORD HOUSING ASSOCIATION LTD#135,11/04/2018,"1,529.15",73372-DOMICILIARY CARE,LD PACKAGE/PLACEMENT COSTS,Third Party Payments,Revenue
Walsall Council,http://opendatacommunities.org/id/metropolitan-district-council/walsall,WC91-98,30/04/2018,Adult Social Care,ACCORD HOUSING ASSOCIATION LTD#135,30/04/2018,"1,652.85",73372-DOMICILIARY CARE,MENTAL HEALTH PACKAGE/PLACEMENT COSTS,Third Party Payments,Revenue
Walsall Council,http://opendatacommunities.org/id/metropolitan-district-council/walsall,WC91-99,30/04/2018,Adult Social Care,ACCORD HOUSING ASSOCIATION LTD#135,30/04/2018,"1,652.85",73372-DOMICILIARY CARE,MENTAL HEALTH PACKAGE/PLACEMENT COSTS,Third Party Payments,Revenue
Walsall Council,http://opendatacommunities.org/id/metropolitan-district-council/walsall,WC91-100,30/04/2018,Adult Social Care,ACCORD HOUSING ASSOCIATION LTD#135,30/04/2018,"1,959.80",73372-DOMICILIARY CARE,MENTAL HEALTH PACKAGE/PLACEMENT COSTS,Third Party Payments,Revenue
Walsall Council,http://opendatacommunities.org/id/metropolitan-district-council/walsall,WC91-101,30/04/2018,Adult Social Care,ACCORD HOUSING ASSOCIATION LTD#135,04/04/2018,"3,922.75",70000-SOCIAL SERVICES-FEES TO VOLUNTARY BODIES,COMPLEX NEEDS CONTRACTS/SLA's,Third Party Payments,Revenue
Walsall Council,http://opendatacommunities.org/id/metropolitan-district-council/walsall,WC91-102,30/04/2018,Adult Social Care,ACCORD HOUSING ASSOCIATION LTD#135,24/04/2018,"4,263.49",73373-RESIDENTIAL & NURSING CARE PLACEMENTS,LD PACKAGE/PLACEMENT COSTS,Third Party Payments,Revenue
Walsall Council,http://opendatacommunities.org/id/metropolitan-district-council/walsall,WC91-103,30/04/2018,Adult Social Care,ACCORD HOUSING ASSOCIATION LTD#135,24/04/2018,"4,263.49",73373-RESIDENTIAL & NURSING CARE PLACEMENTS,LD PACKAGE/PLACEMENT COSTS,Third Party Payments,Revenue
Walsall Council,http://opendatacommunities.org/id/metropolitan-district-council/walsall,WC91-104,30/04/2018,Adult Social Care,ACCORD HOUSING ASSOCIATION LTD#135,24/04/2018,"4,263.49",73373-RESIDENTIAL & NURSING CARE PLACEMENTS,LD PACKAGE/PLACEMENT COSTS,Third Party Payments,Revenue
Walsall Council,http://opendatacommunities.org/id/metropolitan-district-council/walsall,WC91-105,30/04/2018,Adult Social Care,ACCORD HOUSING ASSOCIATION LTD#135,09/04/2018,"4,420.40",73373-RESIDENTIAL & NURSING CARE PLACEMENTS,LD PACKAGE/PLACEMENT COSTS,Third Party Payments,Revenue
Walsall Council,http://opendatacommunities.org/id/metropolitan-district-council/walsall,WC91-106,30/04/2018,Adult Social Care,ACCORD HOUSING ASSOCIATION LTD#135,09/04/2018,"4,421.40",73373-RESIDENTIAL & NURSING CARE PLACEMENTS,LD PACKAGE/PLACEMENT COSTS,Third Party Payments,Revenue
Walsall Council,http://opendatacommunities.org/id/metropolitan-district-council/walsall,WC91-107,30/04/2018,Adult Social Care,ACCORD HOUSING ASSOCIATION LTD#135,09/04/2018,"4,421.40",73373-RESIDENTIAL & NURSING CARE PLACEMENTS,LD PACKAGE/PLACEMENT COSTS,Third Party Payments,Revenue
Walsall Council,http://opendatacommunities.org/id/metropolitan-district-council/walsall,WC91-108,30/04/2018,Adult Social Care,ACCORD HOUSING ASSOCIATION LTD#135,09/04/2018,"4,421.40",73373-RESIDENTIAL & NURSING CARE PLACEMENTS,LD PACKAGE/PLACEMENT COSTS,Third Party Payments,Revenue
Walsall Council,http://opendatacommunities.org/id/metropolitan-district-council/walsall,WC91-109,30/04/2018,Resources and Transformation,ACCORD HOUSING ASSOCIATION LTD#135,17/04/2018,"5,020.42",73365-BLOCK GROSS-SUPPORTING PEOPLE,HOMELESSNESS PREVENTION STRATEGY,Third Party Payments,Revenue
Walsall Council,http://opendatacommunities.org/id/metropolitan-district-council/walsall,WC91-110,30/04/2018,Adult Social Care,ACCORD HOUSING ASSOCIATION LTD#135,09/04/2018,"5,220.34",73373-RESIDENTIAL & NURSING CARE PLACEMENTS,LD PACKAGE/PLACEMENT COSTS,Third Party Payments,Revenue
Walsall Council,http://opendatacommunities.org/id/metropolitan-district-council/walsall,WC91-111,30/04/2018,Adult Social Care,ACCORD HOUSING ASSOCIATION LTD#135,24/04/2018,"5,950.45",73373-RESIDENTIAL & NURSING CARE PLACEMENTS,LD PACKAGE/PLACEMENT COSTS,Third Party Payments,Revenue
Walsall Council,http://opendatacommunities.org/id/metropolitan-district-council/walsall,WC91-112,30/04/2018,Adult Social Care,ACCORD HOUSING ASSOCIATION LTD#135,24/04/2018,"5,950.45",73373-RESIDENTIAL & NURSING CARE PLACEMENTS,LD PACKAGE/PLACEMENT COSTS,Third Party Payments,Revenue
Walsall Council,http://opendatacommunities.org/id/metropolitan-district-council/walsall,WC91-113,30/04/2018,Adult Social Care,ACCORD HOUSING ASSOCIATION LTD#135,09/04/2018,"6,170.84",73373-RESIDENTIAL & NURSING CARE PLACEMENTS,LD PACKAGE/PLACEMENT COSTS,Third Party Payments,Revenue
Walsall Council,http://opendatacommunities.org/id/metropolitan-district-council/walsall,WC91-114,30/04/2018,Adult Social Care,ACCORD HOUSING ASSOCIATION LTD#135,09/04/2018,"6,170.84",73373-RESIDENTIAL & NURSING CARE PLACEMENTS,LD PACKAGE/PLACEMENT COSTS,Third Party Payments,Revenue
Walsall Council,http://opendatacommunities.org/id/metropolitan-district-council/walsall,WC91-115,30/04/2018,Adult Social Care,ACCORD HOUSING ASSOCIATION LTD#135,09/04/2018,"6,170.84",73373-RESIDENTIAL & NURSING CARE PLACEMENTS,LD PACKAGE/PLACEMENT COSTS,Third Party Payments,Revenue
Walsall Council,http://opendatacommunities.org/id/metropolitan-district-council/walsall,WC91-116,30/04/2018,Childrens,ACCORD HOUSING ASSOCIATION LTD#135,13/04/2018,"6,655.50",63102-CONSULTANTS FEES - CORPORATE,TOXIC TRIO,Supplies & Services,Revenue
Walsall Council,http://opendatacommunities.org/id/metropolitan-district-council/walsall,WC91-117,30/04/2018,Childrens,ACCORD HOUSING ASSOCIATION LTD#135,16/04/2018,"6,655.50",63102-CONSULTANTS FEES - CORPORATE,TOXIC TRIO,Supplies & Services,Revenue
Walsall Council,http://opendatacommunities.org/id/metropolitan-district-council/walsall,WC91-118,30/04/2018,Resources and Transformation,ACCORD HOUSING ASSOCIATION LTD#135,17/04/2018,"22,297.95",73365-BLOCK GROSS-SUPPORTING PEOPLE,HOMELESSNESS PREVENTION STRATEGY,Third Party Payments,Revenue
Walsall Council,http://opendatacommunities.org/id/metropolitan-district-council/walsall,WC91-119,30/04/2018,Adult Social Care,ACCORD HOUSING ASSOCIATION LTD#135,24/04/2018,"35,304.84",73372-DOMICILIARY CARE,OP PACKAGE/PLACEMENT COSTS,Third Party Payments,Revenue
Walsall Council,http://opendatacommunities.org/id/metropolitan-district-council/walsall,WC91-120,30/04/2018,Resources and Transformation,ACCORD HOUSING ASSOCIATION LTD#135,17/04/2018,"47,217.50",73365-BLOCK GROSS-SUPPORTING PEOPLE,HOMELESS PREVENTION GRANT,Third Party Payments,Revenue
Walsall Council,http://opendatacommunities.org/id/metropolitan-district-council/walsall,WC91-121,30/04/2018,Adult Social Care,ACE CARE AGENCY,11/04/2018,572.78,73372-DOMICILIARY CARE,OP PACKAGE/PLACEMENT COSTS,Third Party Payments,Revenue
Walsall Council,http://opendatacommunities.org/id/metropolitan-district-council/walsall,WC91-122,30/04/2018,Adult Social Care,ACE CARE AGENCY,11/04/2018,852.84,73372-DOMICILIARY CARE,OP PACKAGE/PLACEMENT COSTS,Third Party Payments,Revenue
Walsall Council,http://opendatacommunities.org/id/metropolitan-district-council/walsall,WC91-123,30/04/2018,Adult Social Care,ACE CARE AGENCY,11/04/2018,907.50,73372-DOMICILIARY CARE,OP PACKAGE/PLACEMENT COSTS,Third Party Payments,Revenue
Walsall Council,http://opendatacommunities.org/id/metropolitan-district-council/walsall,WC91-124,30/04/2018,Adult Social Care,ACEPAY LTD (COTTAGE NUR HOME),18/04/2018,428.57,73373-RESIDENTIAL & NURSING CARE PLACEMENTS,OP PACKAGE/PLACEMENT COSTS,Third Party Payments,Revenue
Walsall Council,http://opendatacommunities.org/id/metropolitan-district-council/walsall,WC91-125,30/04/2018,Adult Social Care,ACEPAY LTD (COTTAGE NUR HOME),09/04/2018,482.53,73373-RESIDENTIAL & NURSING CARE PLACEMENTS,OP PACKAGE/PLACEMENT COSTS,Third Party Payments,Revenue
Walsall Council,http://opendatacommunities.org/id/metropolitan-district-council/walsall,WC91-126,30/04/2018,Adult Social Care,ACEPAY LTD (COTTAGE NUR HOME),09/04/2018,"1,326.95",73373-RESIDENTIAL & NURSING CARE PLACEMENTS,OP PACKAGE/PLACEMENT COSTS,Third Party Payments,Revenue
Walsall Council,http://opendatacommunities.org/id/metropolitan-district-council/walsall,WC91-127,30/04/2018,Adult Social Care,ACEPAY LTD (COTTAGE NUR HOME),09/04/2018,"2,185.37",73373-RESIDENTIAL & NURSING CARE PLACEMENTS,OP PACKAGE/PLACEMENT COSTS,Third Party Payments,Revenue
Walsall Council,http://opendatacommunities.org/id/metropolitan-district-council/walsall,WC91-128,30/04/2018,Adult Social Care,ACEPAY LTD (COTTAGE NUR HOME),09/04/2018,"2,185.37",73373-RESIDENTIAL & NURSING CARE PLACEMENTS,OP PACKAGE/PLACEMENT COSTS,Third Party Payments,Revenue
Walsall Council,http://opendatacommunities.org/id/metropolitan-district-council/walsall,WC91-129,30/04/2018,Adult Social Care,ACEPAY LTD (COTTAGE NUR HOME),09/04/2018,"2,185.37",73373-RESIDENTIAL & NURSING CARE PLACEMENTS,OP PACKAGE/PLACEMENT COSTS,Third Party Payments,Revenue
Walsall Council,http://opendatacommunities.org/id/metropolitan-district-council/walsall,WC91-130,30/04/2018,Adult Social Care,ACEPAY LTD (COTTAGE NUR HOME),09/04/2018,"2,185.38",73373-RESIDENTIAL & NURSING CARE PLACEMENTS,OP PACKAGE/PLACEMENT COSTS,Third Party Payments,Revenue
Walsall Council,http://opendatacommunities.org/id/metropolitan-district-council/walsall,WC91-131,30/04/2018,Adult Social Care,ACEPAY LTD (COTTAGE NUR HOME),09/04/2018,"2,185.38",73373-RESIDENTIAL & NURSING CARE PLACEMENTS,OP PACKAGE/PLACEMENT COSTS,Third Party Payments,Revenue
Walsall Council,http://opendatacommunities.org/id/metropolitan-district-council/walsall,WC91-132,30/04/2018,Adult Social Care,ACEPAY LTD (COTTAGE NUR HOME),09/04/2018,"2,185.38",73373-RESIDENTIAL & NURSING CARE PLACEMENTS,OP PACKAGE/PLACEMENT COSTS,Third Party Payments,Revenue
Walsall Council,http://opendatacommunities.org/id/metropolitan-district-council/walsall,WC91-133,30/04/2018,Childrens,ACORN ABA LIMITED,03/04/2018,519.00,66502-TOP UP FUNDING -GRANTS TO SCHOOLS,INDEPENDENT PROVIDERS - SPECIAL & AP,Third Party Payments,Revenue
Walsall Council,http://opendatacommunities.org/id/metropolitan-district-council/walsall,WC91-134,30/04/2018,Childrens,ACORN CARE & EDUCATION LTD (SALES),06/04/2018,"16,166.67",66502-TOP UP FUNDING -GRANTS TO SCHOOLS,INDEPENDENT PROVIDERS - SPECIAL & AP,Third Party Payments,Revenue
Walsall Council,http://opendatacommunities.org/id/metropolitan-district-council/walsall,WC91-135,30/04/2018,Adult Social Care,ACORN REST HOME,03/04/2018,764.29,73373-RESIDENTIAL & NURSING CARE PLACEMENTS,OP PACKAGE/PLACEMENT COSTS,Third Party Payments,Revenue
Walsall Council,http://opendatacommunities.org/id/metropolitan-district-council/walsall,WC91-136,30/04/2018,Adult Social Care,ACORN REST HOME,03/04/2018,"1,375.71",73373-RESIDENTIAL & NURSING CARE PLACEMENTS,OP PACKAGE/PLACEMENT COSTS,Third Party Payments,Revenue
Walsall Council,http://opendatacommunities.org/id/metropolitan-district-council/walsall,WC91-137,30/04/2018,Childrens,ACORNS CHILDRENS HOSPICE TRUST,03/04/2018,750.00,63000-PROFESSIONAL FEES AND SERVICES,DIRECTLY COMMISSIONED NURSING SERVICES,Supplies & Services,Revenue
Walsall Council,http://opendatacommunities.org/id/metropolitan-district-council/walsall,WC91-138,30/04/2018,Childrens,ACORNS CHILDRENS HOSPICE TRUST,27/04/2018,750.00,63000-PROFESSIONAL FEES AND SERVICES,DIRECTLY COMMISSIONED NURSING SERVICES,Supplies & Services,Revenue
Walsall Council,http://opendatacommunities.org/id/metropolitan-district-council/walsall,WC91-139,30/04/2018,Childrens,ACORNS CHILDRENS HOSPICE TRUST,03/04/2018,"1,246.87",63000-PROFESSIONAL FEES AND SERVICES,DIRECTLY COMMISSIONED NURSING SERVICES,Supplies & Services,Revenue
Walsall Council,http://opendatacommunities.org/id/metropolitan-district-council/walsall,WC91-140,30/04/2018,Childrens,ACTION FOR CHILDREN,16/04/2018,825.00,63000-PROFESSIONAL FEES AND SERVICES,FAMILY PLACEMENTS,Supplies & Services,Revenue
Walsall Council,http://opendatacommunities.org/id/metropolitan-district-council/walsall,WC91-141,30/04/2018,Economy & Environment,ACTION MIDLANDS LTD,20/04/2018,150.00,63000-PROFESSIONAL FEES AND SERVICES,YEI (IMPACT) PROGRAMME,Supplies & Services,Revenue
Walsall Council,http://opendatacommunities.org/id/metropolitan-district-council/walsall,WC91-142,30/04/2018,Economy & Environment,ACTION MIDLANDS LTD,20/04/2018,150.00,63000-PROFESSIONAL FEES AND SERVICES,YEI ESF FUNDING,Supplies & Services,Revenue
Walsall Council,http://opendatacommunities.org/id/metropolitan-district-council/walsall,WC91-143,30/04/2018,Economy & Environment,ACTION MIDLANDS LTD,20/04/2018,300.00,63000-PROFESSIONAL FEES AND SERVICES,YEI (IMPACT) PROGRAMME,Supplies & Services,Revenue
Walsall Council,http://opendatacommunities.org/id/metropolitan-district-council/walsall,WC91-144,30/04/2018,Economy & Environment,ACTION MIDLANDS LTD,20/04/2018,300.00,63000-PROFESSIONAL FEES AND SERVICES,YEI ESF FUNDING,Supplies & Services,Revenue
Walsall Council,http://opendatacommunities.org/id/metropolitan-district-council/walsall,WC91-145,30/04/2018,Adult Social Care,ACTION ON HEARING LOSS,20/04/2018,945.31,60013-DISABLED-EQUIPMENT,SENSORY/DEAF SERVICES,Supplies & Services,Revenue
Walsall Council,http://opendatacommunities.org/id/metropolitan-district-council/walsall,WC91-146,30/04/2018,Adult Social Care,ACTION ON HEARING LOSS,01/04/2018,"1,432.75",60013-DISABLED-EQUIPMENT,SENSORY/DEAF SERVICES,Supplies & Services,Revenue
Walsall Council,http://opendatacommunities.org/id/metropolitan-district-council/walsall,WC91-147,30/04/2018,Adult Social Care,ACTON BANKS LTD,16/04/2018,"1,438.71",73025-PROFESSIONAL SERVICES-PRIV CONTRACTOR & OTHER AGENCIES,HOLLYBANK,Third Party Payments,Revenue
Walsall Council,http://opendatacommunities.org/id/metropolitan-district-council/walsall,WC91-148,30/04/2018,Adult Social Care,ACTON BANKS LTD,04/04/2018,"2,066.07",73025-PROFESSIONAL SERVICES-PRIV CONTRACTOR & OTHER AGENCIES,HOLLYBANK,Third Party Payments,Revenue
Walsall Council,http://opendatacommunities.org/id/metropolitan-district-council/walsall,WC91-149,30/04/2018,Adult Social Care,ACTON BANKS LTD,16/04/2018,"2,927.43",73025-PROFESSIONAL SERVICES-PRIV CONTRACTOR & OTHER AGENCIES,HOLLYBANK,Third Party Payments,Revenue
Walsall Council,http://opendatacommunities.org/id/metropolitan-district-council/walsall,WC91-150,30/04/2018,Adult Social Care,ACTON BANKS LTD,11/04/2018,"4,403.77",73025-PROFESSIONAL SERVICES-PRIV CONTRACTOR & OTHER AGENCIES,HOLLYBANK,Third Party Payments,Revenue
Walsall Council,http://opendatacommunities.org/id/metropolitan-district-council/walsall,WC91-151,30/04/2018,Adult Social Care,ACTON BANKS LTD,20/04/2018,"5,292.21",73025-PROFESSIONAL SERVICES-PRIV CONTRACTOR & OTHER AGENCIES,HOLLYBANK,Third Party Payments,Revenue
Walsall Council,http://opendatacommunities.org/id/metropolitan-district-council/walsall,WC91-152,30/04/2018,Adult Social Care,ACTON BANKS LTD,30/04/2018,"5,798.84",73025-PROFESSIONAL SERVICES-PRIV CONTRACTOR & OTHER AGENCIES,HOLLYBANK,Third Party Payments,Revenue
Walsall Council,http://opendatacommunities.org/id/metropolitan-district-council/walsall,WC91-153,30/04/2018,Resources and Transformation,ADA BUILDERS & JOINERS,04/04/2018,"26,060.00",01045-PRIVATE GRANTS,CFR 826 DISABLED FACILITIES GRANTS (SOCIAL SERVICES),Capital,Capital
Walsall Council,http://opendatacommunities.org/id/metropolitan-district-council/walsall,WC91-154,30/04/2018,Adult Social Care,REDACTED,09/04/2018,433.84,76422-DIRECT PAYMENTS TO SOCIAL SERVICES CLIENTS,OP PACKAGE/PLACEMENT COSTS,Transfer Payments,Revenue
Walsall Council,http://opendatacommunities.org/id/metropolitan-district-council/walsall,WC91-155,30/04/2018,Adult Social Care,REDACTED,09/04/2018,448.60,76422-DIRECT PAYMENTS TO SOCIAL SERVICES CLIENTS,LD PACKAGE/PLACEMENT COSTS,Transfer Payments,Revenue
Walsall Council,http://opendatacommunities.org/id/metropolitan-district-council/walsall,WC91-156,30/04/2018,Childrens,ADCS (ASSOCIATION OF DIRECTORS OF CHILDRENS SERVICES),04/04/2018,"2,351.25",63000-PROFESSIONAL FEES AND SERVICES,CHILDRENS MANAGMENT TEAM,Supplies & Services,Revenue
Walsall Council,http://opendatacommunities.org/id/metropolitan-district-council/walsall,WC91-157,30/04/2018,Resources and Transformation,ADELIE FOODS LTD,20/04/2018,639.78,61305-CATERING,TOWN HALL RESTAURANT BISTRO,Supplies & Services,Revenue
Walsall Council,http://opendatacommunities.org/id/metropolitan-district-council/walsall,WC91-158,30/04/2018,Resources and Transformation,ADELIE FOODS LTD,11/04/2018,665.26,61305-CATERING,TOWN HALL RESTAURANT BISTRO,Supplies & Services,Revenue
Walsall Council,http://opendatacommunities.org/id/metropolitan-district-council/walsall,WC91-159,30/04/2018,Resources and Transformation,ADELIE FOODS LTD,18/04/2018,837.47,61305-CATERING,TOWN HALL RESTAURANT BISTRO,Supplies & Services,Revenue
Walsall Council,http://opendatacommunities.org/id/metropolitan-district-council/walsall,WC91-160,30/04/2018,Resources and Transformation,ADELIE FOODS LTD,01/04/2018,917.10,61305-CATERING,TOWN HALL RESTAURANT BISTRO,Supplies & Services,Revenue
Walsall Council,http://opendatacommunities.org/id/metropolitan-district-council/walsall,WC91-161,30/04/2018,Resources and Transformation,ADELIE FOODS LTD,20/04/2018,981.18,61305-CATERING,TOWN HALL RESTAURANT BISTRO,Supplies & Services,Revenue
Walsall Council,http://opendatacommunities.org/id/metropolitan-district-council/walsall,WC91-162,30/04/2018,Resources and Transformation,ADELIE FOODS LTD,01/04/2018,"1,095.86",61305-CATERING,TOWN HALL RESTAURANT BISTRO,Supplies & Services,Revenue
Walsall Council,http://opendatacommunities.org/id/metropolitan-district-council/walsall,WC91-163,30/04/2018,Adult Social Care,REDACTED,09/04/2018,"1,003.00",76422-DIRECT PAYMENTS TO SOCIAL SERVICES CLIENTS,OP PACKAGE/PLACEMENT COSTS,Transfer Payments,Revenue
Walsall Council,http://opendatacommunities.org/id/metropolitan-district-council/walsall,WC91-164,30/04/2018,Childrens,REDACTED,09/04/2018,333.12,74510-RESIDENTS ORDERS,ADOPTION ALLOWANCES,Third Party Payments,Revenue
Walsall Council,http://opendatacommunities.org/id/metropolitan-district-council/walsall,WC91-165,30/04/2018,Childrens,REDACTED,09/04/2018,361.12,74510-RESIDENTS ORDERS,ADOPTION ALLOWANCES,Third Party Payments,Revenue
Walsall Council,http://opendatacommunities.org/id/metropolitan-district-council/walsall,WC91-166,30/04/2018,Adult Social Care,ADVANCE HEALTH CARE (UK) LTD,16/04/2018,"-1,371.58",73025-PROFESSIONAL SERVICES-PRIV CONTRACTOR & OTHER AGENCIES,COMMUNITY INTERMEDIATE CARE,Third Party Payments,Revenue
Walsall Council,http://opendatacommunities.org/id/metropolitan-district-council/walsall,WC91-167,30/04/2018,Adult Social Care,ADVANCE HEALTH CARE (UK) LTD,11/04/2018,386.38,73025-PROFESSIONAL SERVICES-PRIV CONTRACTOR & OTHER AGENCIES,COMMUNITY INTERMEDIATE CARE,Third Party Payments,Revenue
Walsall Council,http://opendatacommunities.org/id/metropolitan-district-council/walsall,WC91-168,30/04/2018,Adult Social Care,ADVANCE HEALTH CARE (UK) LTD,20/04/2018,838.75,73025-PROFESSIONAL SERVICES-PRIV CONTRACTOR & OTHER AGENCIES,COMMUNITY INTERMEDIATE CARE,Third Party Payments,Revenue
Walsall Council,http://opendatacommunities.org/id/metropolitan-district-council/walsall,WC91-169,30/04/2018,Adult Social Care,ADVANCE HEALTH CARE (UK) LTD,20/04/2018,"4,754.06",73019-PSE'S-PRIV CONTRACTOR FEES,RAPID RESPONSE,Third Party Payments,Revenue
Walsall Council,http://opendatacommunities.org/id/metropolitan-district-council/walsall,WC91-170,30/04/2018,Adult Social Care,ADVANCE HEALTH CARE (UK) LTD,20/04/2018,"4,785.00",73025-PROFESSIONAL SERVICES-PRIV CONTRACTOR & OTHER AGENCIES,COMMUNITY INTERMEDIATE CARE,Third Party Payments,Revenue
Walsall Council,http://opendatacommunities.org/id/metropolitan-district-council/walsall,WC91-171,30/04/2018,Adult Social Care,ADVANCE HEALTH CARE (UK) LTD,20/04/2018,"4,853.75",73019-PSE'S-PRIV CONTRACTOR FEES,RAPID RESPONSE,Third Party Payments,Revenue
Walsall Council,http://opendatacommunities.org/id/metropolitan-district-council/walsall,WC91-172,30/04/2018,Adult Social Care,ADVANCE HEALTH CARE (UK) LTD,20/04/2018,"4,915.63",73019-PSE'S-PRIV CONTRACTOR FEES,RAPID RESPONSE,Third Party Payments,Revenue
Walsall Council,http://opendatacommunities.org/id/metropolitan-district-council/walsall,WC91-173,30/04/2018,Adult Social Care,ADVANCE HEALTH CARE (UK) LTD,20/04/2018,"5,056.56",73019-PSE'S-PRIV CONTRACTOR FEES,RAPID RESPONSE,Third Party Payments,Revenue
Walsall Council,http://opendatacommunities.org/id/metropolitan-district-council/walsall,WC91-174,30/04/2018,Adult Social Care,ADVANCE HEALTH CARE (UK) LTD,24/04/2018,"82,041.47",73372-DOMICILIARY CARE,OP PACKAGE/PLACEMENT COSTS,Third Party Payments,Revenue
Walsall Council,http://opendatacommunities.org/id/metropolitan-district-council/walsall,WC91-175,30/04/2018,Resources and Transformation,ADVANCED DIGITAL IMAGING,04/04/2018,390.00,62008-OUTWORK-PRINT ROOM,PRINTING SERVICES,Supplies & Services,Revenue
Walsall Council,http://opendatacommunities.org/id/metropolitan-district-council/walsall,WC91-176,30/04/2018,Resources and Transformation,ADVANCED DIGITAL IMAGING,04/04/2018,660.00,60500-GENERAL MATERIALS,PRINTING SERVICES,Supplies & Services,Revenue
Walsall Council,http://opendatacommunities.org/id/metropolitan-district-council/walsall,WC91-177,30/04/2018,Adult Social Care,ADVANCED HEALTH AND CARE,06/04/2018,"8,483.28",63800-COMPUTER EQUIPMENT AND SUPPLIES,COMMUNITY INTERMEDIATE CARE,Supplies & Services,Revenue
Walsall Council,http://opendatacommunities.org/id/metropolitan-district-council/walsall,WC91-178,30/04/2018,Childrens,ADVENTURELAND DAY NURSERY,16/04/2018,786.00,66505-OTHER-GRANTS TO OTHER ORGS,EARLY YEARS - 2 YR OLDS,Third Party Payments,Revenue
Walsall Council,http://opendatacommunities.org/id/metropolitan-district-council/walsall,WC91-179,30/04/2018,Childrens,ADVENTURELAND DAY NURSERY,04/04/2018,855.00,66505-OTHER-GRANTS TO OTHER ORGS,EARLY YEARS - 3 YR OLDS,Third Party Payments,Revenue
Walsall Council,http://opendatacommunities.org/id/metropolitan-district-council/walsall,WC91-180,30/04/2018,Childrens,ADVENTURELAND DAY NURSERY,04/04/2018,"14,703.00",66505-OTHER-GRANTS TO OTHER ORGS,EARLY YEARS - 3 YR OLDS,Third Party Payments,Revenue
Walsall Council,http://opendatacommunities.org/id/metropolitan-district-council/walsall,WC91-181,30/04/2018,Childrens,ADVENTURELAND DAY NURSERY,03/04/2018,"15,531.00",66505-OTHER-GRANTS TO OTHER ORGS,EARLY YEARS - 2 YR OLDS,Third Party Payments,Revenue
Walsall Council,http://opendatacommunities.org/id/metropolitan-district-council/walsall,WC91-182,30/04/2018,Childrens,ADVENTURELAND DAY NURSERY,03/04/2018,"19,679.00",66505-OTHER-GRANTS TO OTHER ORGS,EARLY YEARS - 3 YR OLDS,Third Party Payments,Revenue
Walsall Council,http://opendatacommunities.org/id/metropolitan-district-council/walsall,WC91-183,30/04/2018,Economy & Environment,AECOM LIMITED,04/04/2018,"1,463.99",01001-OTHER CONSULTANTS FEES,CFR 1198 M6 JUNCTION 10 SCHEME DEVELOPMENT,Capital,Capital
Walsall Council,http://opendatacommunities.org/id/metropolitan-district-council/walsall,WC91-184,30/04/2018,Economy & Environment,AGILE APPLICATIONS LIMITED,25/04/2018,"30,500.00",01006-SITE WORKS MAIN CONTRACTORS,CFR 983 REPLACEMENT DEVELOPMENT MANAGEMENT BUILDING CONTROL & LAND CHARGE ICT SYSTEM,Capital,Capital
Walsall Council,http://opendatacommunities.org/id/metropolitan-district-council/walsall,WC91-185,30/04/2018,Adult Social Care,AGINCARE UK LTD,12/04/2018,"1,503.36",73372-DOMICILIARY CARE,OP PACKAGE/PLACEMENT COSTS,Third Party Payments,Revenue
Walsall Council,http://opendatacommunities.org/id/metropolitan-district-council/walsall,WC91-186,30/04/2018,Adult Social Care,REDACTED,09/04/2018,"2,040.10",76422-DIRECT PAYMENTS TO SOCIAL SERVICES CLIENTS,LD PACKAGE/PLACEMENT COSTS,Transfer Payments,Revenue
Walsall Council,http://opendatacommunities.org/id/metropolitan-district-council/walsall,WC91-187,30/04/2018,Resources and Transformation,AIREY CONSULTANCY SERVICES LTD,18/04/2018,"1,415.00",63800-COMPUTER EQUIPMENT AND SUPPLIES,REVENUES,Supplies & Services,Revenue
Walsall Council,http://opendatacommunities.org/id/metropolitan-district-council/walsall,WC91-188,30/04/2018,Economy & Environment,AIRQUEE,12/04/2018,"1,675.00",60006-NEW-FURNITURE & EQUIPMENT,OAK PARK,Supplies & Services,Revenue
Walsall Council,http://opendatacommunities.org/id/metropolitan-district-council/walsall,WC91-189,30/04/2018,Adult Social Care,REDACTED,09/04/2018,"1,277.00",76422-DIRECT PAYMENTS TO SOCIAL SERVICES CLIENTS,OP PACKAGE/PLACEMENT COSTS,Transfer Payments,Revenue
Walsall Council,http://opendatacommunities.org/id/metropolitan-district-council/walsall,WC91-190,30/04/2018,Childrens,ALAN CRITCHLEY ASSOCIATES,03/04/2018,"2,400.00",63102-CONSULTANTS FEES - CORPORATE,SAFEGUARDING BOARD,Supplies & Services,Revenue
Walsall Council,http://opendatacommunities.org/id/metropolitan-district-council/walsall,WC91-191,30/04/2018,Adult Social Care,REDACTED,09/04/2018,772.10,76422-DIRECT PAYMENTS TO SOCIAL SERVICES CLIENTS,OP PACKAGE/PLACEMENT COSTS,Transfer Payments,Revenue
Walsall Council,http://opendatacommunities.org/id/metropolitan-district-council/walsall,WC91-192,30/04/2018,Childrens,ALBRIGHTON CARE LTD,23/04/2018,"9,980.00",74036-EXTERNAL RESIDENTIAL CARE-OTH AGENCY PROVISION,INDEPENDENT RESIDENTIAL HOMES,Third Party Payments,Revenue
Walsall Council,http://opendatacommunities.org/id/metropolitan-district-council/walsall,WC91-193,30/04/2018,Childrens,ALBRIGHTON CARE LTD,23/04/2018,"15,000.00",74036-EXTERNAL RESIDENTIAL CARE-OTH AGENCY PROVISION,INDEPENDENT RESIDENTIAL HOMES,Third Party Payments,Revenue
Walsall Council,http://opendatacommunities.org/id/metropolitan-district-council/walsall,WC91-194,30/04/2018,Economy & Environment,ALDERCROSS LIMITED,25/04/2018,210.00,64001-COURSE/CONFERENCE EXPENSES,REGENERATION MANAGEMENT,Supplies & Services,Revenue
Walsall Council,http://opendatacommunities.org/id/metropolitan-district-council/walsall,WC91-195,30/04/2018,Adult Social Care,ALDERGROVE MANOR LTD,24/04/2018,722.73,73373-RESIDENTIAL & NURSING CARE PLACEMENTS,MENTAL HEALTH PACKAGE/PLACEMENT COSTS,Third Party Payments,Revenue
Walsall Council,http://opendatacommunities.org/id/metropolitan-district-council/walsall,WC91-196,30/04/2018,Adult Social Care,ALDERGROVE MANOR LTD,24/04/2018,785.72,73373-RESIDENTIAL & NURSING CARE PLACEMENTS,OP PACKAGE/PLACEMENT COSTS,Third Party Payments,Revenue
Walsall Council,http://opendatacommunities.org/id/metropolitan-district-council/walsall,WC91-197,30/04/2018,Adult Social Care,ALDERGROVE MANOR LTD,24/04/2018,"1,116.95",73373-RESIDENTIAL & NURSING CARE PLACEMENTS,MENTAL HEALTH PACKAGE/PLACEMENT COSTS,Third Party Payments,Revenue
Walsall Council,http://opendatacommunities.org/id/metropolitan-district-council/walsall,WC91-198,30/04/2018,Adult Social Care,ALDERGROVE MANOR LTD,24/04/2018,"1,214.28",73373-RESIDENTIAL & NURSING CARE PLACEMENTS,OP PACKAGE/PLACEMENT COSTS,Third Party Payments,Revenue
Walsall Council,http://opendatacommunities.org/id/metropolitan-district-council/walsall,WC91-199,30/04/2018,Childrens,ALDRIDGE & BARONS LIMITED,17/04/2018,"14,353.71",52000-WITH DRIVER-HIRE OF VEHICLES,HOME TO SCHOOL TRANSPORT,Transport,Revenue
Walsall Council,http://opendatacommunities.org/id/metropolitan-district-council/walsall,WC91-200,30/04/2018,Childrens,ALDRIDGE & BARONS LIMITED,17/04/2018,"16,260.30",52000-WITH DRIVER-HIRE OF VEHICLES,HOME TO SCHOOL TRANSPORT,Transport,Revenue
Walsall Council,http://opendatacommunities.org/id/metropolitan-district-council/walsall,WC91-201,30/04/2018,Economy & Environment,ALDRIDGE PAINTING & DECORATING LTD,26/04/2018,"1,085.00",60007-REPAIR OF EQUIPMENT-EQUIPMENT,BLOXWICH LEISURE CENTRE,Supplies & Services,Revenue
Walsall Council,http://opendatacommunities.org/id/metropolitan-district-council/walsall,WC91-202,30/04/2018,Adult Social Care,ALEXANDRA HOUSE CARE SERVICES LTD T/A STONEBRIDGE NURSING HOME,09/04/2018,"1,016.78",73373-RESIDENTIAL & NURSING CARE PLACEMENTS,LD PACKAGE/PLACEMENT COSTS,Third Party Payments,Revenue
Walsall Council,http://opendatacommunities.org/id/metropolitan-district-council/walsall,WC91-203,30/04/2018,Adult Social Care,ALEXANDRA HOUSE CARE SERVICES LTD T/A STONEBRIDGE NURSING HOME,09/04/2018,"6,100.66",73373-RESIDENTIAL & NURSING CARE PLACEMENTS,LD PACKAGE/PLACEMENT COSTS,Third Party Payments,Revenue
Walsall Council,http://opendatacommunities.org/id/metropolitan-district-council/walsall,WC91-204,30/04/2018,Childrens,REDACTED,09/04/2018,582.67,76422-DIRECT PAYMENTS TO SOCIAL SERVICES CLIENTS,FAMILY SUPPORT - DIRECT PAYMENTS,Transfer Payments,Revenue
Walsall Council,http://opendatacommunities.org/id/metropolitan-district-council/walsall,WC91-205,30/04/2018,Adult Social Care,REDACTED,09/04/2018,"1,761.76",76422-DIRECT PAYMENTS TO SOCIAL SERVICES CLIENTS,OP PACKAGE/PLACEMENT COSTS,Transfer Payments,Revenue
Walsall Council,http://opendatacommunities.org/id/metropolitan-district-council/walsall,WC91-206,30/04/2018,Childrens,REDACTED,09/04/2018,288.00,76422-DIRECT PAYMENTS TO SOCIAL SERVICES CLIENTS,FAMILY SUPPORT - DIRECT PAYMENTS,Transfer Payments,Revenue
Walsall Council,http://opendatacommunities.org/id/metropolitan-district-council/walsall,WC91-207,30/04/2018,Adult Social Care,REDACTED,09/04/2018,977.20,76422-DIRECT PAYMENTS TO SOCIAL SERVICES CLIENTS,PD PACKAGE/PLACEMENT COSTS,Transfer Payments,Revenue
Walsall Council,http://opendatacommunities.org/id/metropolitan-district-council/walsall,WC91-208,30/04/2018,Adult Social Care,REDACTED,11/04/2018,"1,301.64",73372-DOMICILIARY CARE,LD PACKAGE/PLACEMENT COSTS,Third Party Payments,Revenue
Walsall Council,http://opendatacommunities.org/id/metropolitan-district-council/walsall,WC91-209,30/04/2018,Resources and Transformation,ALLSORTS OFFICE SUPPLIES LTD,30/04/2018,213.20,60000-FURNITURE & EQUIPMENT,SERVICE DESK 1ST LINE,Supplies & Services,Revenue
Walsall Council,http://opendatacommunities.org/id/metropolitan-district-council/walsall,WC91-210,30/04/2018,Childrens,ALLSORTS OFFICE SUPPLIES LTD,30/04/2018,319.80,60000-FURNITURE & EQUIPMENT,LOCALITY FAMILY SUPPORT-WEST,Supplies & Services,Revenue
Walsall Council,http://opendatacommunities.org/id/metropolitan-district-council/walsall,WC91-211,30/04/2018,Resources and Transformation,ALLSORTS OFFICE SUPPLIES LTD,20/04/2018,852.80,60006-NEW-FURNITURE & EQUIPMENT,APPLICATIONS,Supplies & Services,Revenue
Walsall Council,http://opendatacommunities.org/id/metropolitan-district-council/walsall,WC91-212,30/04/2018,Resources and Transformation,ALLSORTS OFFICE SUPPLIES LTD,16/04/2018,"1,192.00",60006-NEW-FURNITURE & EQUIPMENT,APPLICATIONS,Supplies & Services,Revenue
Walsall Council,http://opendatacommunities.org/id/metropolitan-district-council/walsall,WC91-213,30/04/2018,Adult Social Care,ALLSORTS OFFICE SUPPLIES LTD,20/04/2018,"1,279.20",60000-FURNITURE & EQUIPMENT,ASC PARTNERSHIPS,Supplies & Services,Revenue
Walsall Council,http://opendatacommunities.org/id/metropolitan-district-council/walsall,WC91-214,30/04/2018,Adult Social Care,ALLSORTS OFFICE SUPPLIES LTD,30/04/2018,"1,918.80",60000-FURNITURE & EQUIPMENT,COMMISSIONING TEAM,Supplies & Services,Revenue
Walsall Council,http://opendatacommunities.org/id/metropolitan-district-council/walsall,WC91-215,30/04/2018,Adult Social Care,ALMA COURT,09/04/2018,"6,113.10",73373-RESIDENTIAL & NURSING CARE PLACEMENTS,MENTAL HEALTH PACKAGE/PLACEMENT COSTS,Third Party Payments,Revenue
Walsall Council,http://opendatacommunities.org/id/metropolitan-district-council/walsall,WC91-216,30/04/2018,Childrens,ALMOZENE NURSERY & CHILDRENS CENTRE,04/04/2018,"3,105.00",66505-OTHER-GRANTS TO OTHER ORGS,EARLY YEARS - 3 YR OLDS,Third Party Payments,Revenue
Walsall Council,http://opendatacommunities.org/id/metropolitan-district-council/walsall,WC91-217,30/04/2018,Childrens,ALMOZENE NURSERY & CHILDRENS CENTRE,04/04/2018,"4,750.00",66505-OTHER-GRANTS TO OTHER ORGS,EARLY YEARS - 3 YR OLDS,Third Party Payments,Revenue
Walsall Council,http://opendatacommunities.org/id/metropolitan-district-council/walsall,WC91-218,30/04/2018,Childrens,ALMOZENE NURSERY & CHILDRENS CENTRE,03/04/2018,"10,858.00",66505-OTHER-GRANTS TO OTHER ORGS,EARLY YEARS - 3 YR OLDS,Third Party Payments,Revenue
Walsall Council,http://opendatacommunities.org/id/metropolitan-district-council/walsall,WC91-219,30/04/2018,Childrens,ALMOZENE NURSERY & CHILDRENS CENTRE,03/04/2018,"11,444.00",66505-OTHER-GRANTS TO OTHER ORGS,EARLY YEARS - 2 YR OLDS,Third Party Payments,Revenue
Walsall Council,http://opendatacommunities.org/id/metropolitan-district-council/walsall,WC91-220,30/04/2018,Adult Social Care,ALPHA HEALTH CARE LTD,18/04/2018,"1,774.28",73373-RESIDENTIAL & NURSING CARE PLACEMENTS,OP PACKAGE/PLACEMENT COSTS,Third Party Payments,Revenue
Walsall Council,http://opendatacommunities.org/id/metropolitan-district-council/walsall,WC91-221,30/04/2018,Adult Social Care,ALPHA HEALTH CARE LTD,18/04/2018,"1,774.28",73373-RESIDENTIAL & NURSING CARE PLACEMENTS,OP PACKAGE/PLACEMENT COSTS,Third Party Payments,Revenue
Walsall Council,http://opendatacommunities.org/id/metropolitan-district-council/walsall,WC91-222,30/04/2018,Adult Social Care,ALPHA HEALTH CARE LTD,18/04/2018,"1,774.29",73373-RESIDENTIAL & NURSING CARE PLACEMENTS,OP PACKAGE/PLACEMENT COSTS,Third Party Payments,Revenue
Walsall Council,http://opendatacommunities.org/id/metropolitan-district-council/walsall,WC91-223,30/04/2018,Adult Social Care,ALPHA HEALTH CARE LTD,18/04/2018,"1,971.43",73373-RESIDENTIAL & NURSING CARE PLACEMENTS,OP PACKAGE/PLACEMENT COSTS,Third Party Payments,Revenue
Walsall Council,http://opendatacommunities.org/id/metropolitan-district-council/walsall,WC91-224,30/04/2018,Adult Social Care,ALPHA HEALTH CARE LTD,18/04/2018,"2,142.86",73373-RESIDENTIAL & NURSING CARE PLACEMENTS,OP PACKAGE/PLACEMENT COSTS,Third Party Payments,Revenue
Walsall Council,http://opendatacommunities.org/id/metropolitan-district-council/walsall,WC91-225,30/04/2018,Adult Social Care,ALPHA HEALTH CARE LTD,18/04/2018,"2,314.29",73373-RESIDENTIAL & NURSING CARE PLACEMENTS,OP PACKAGE/PLACEMENT COSTS,Third Party Payments,Revenue
Walsall Council,http://opendatacommunities.org/id/metropolitan-district-council/walsall,WC91-226,30/04/2018,Adult Social Care,ALPHA HEALTH CARE LTD,18/04/2018,"2,357.14",73373-RESIDENTIAL & NURSING CARE PLACEMENTS,OP PACKAGE/PLACEMENT COSTS,Third Party Payments,Revenue
Walsall Council,http://opendatacommunities.org/id/metropolitan-district-council/walsall,WC91-227,30/04/2018,Adult Social Care,ALPHA HEALTH CARE LTD,18/04/2018,"2,357.14",73373-RESIDENTIAL & NURSING CARE PLACEMENTS,OP PACKAGE/PLACEMENT COSTS,Third Party Payments,Revenue
Walsall Council,http://opendatacommunities.org/id/metropolitan-district-council/walsall,WC91-228,30/04/2018,Adult Social Care,ALPHA HEALTH CARE LTD,18/04/2018,"2,357.14",73373-RESIDENTIAL & NURSING CARE PLACEMENTS,OP PACKAGE/PLACEMENT COSTS,Third Party Payments,Revenue
Walsall Council,http://opendatacommunities.org/id/metropolitan-district-council/walsall,WC91-229,30/04/2018,Adult Social Care,ALPHA HEALTH CARE LTD,18/04/2018,"2,357.14",73373-RESIDENTIAL & NURSING CARE PLACEMENTS,MENTAL HEALTH PACKAGE/PLACEMENT COSTS,Third Party Payments,Revenue
Walsall Council,http://opendatacommunities.org/id/metropolitan-district-council/walsall,WC91-230,30/04/2018,Adult Social Care,ALPHA HEALTH CARE LTD,18/04/2018,"2,492.14",73373-RESIDENTIAL & NURSING CARE PLACEMENTS,MENTAL HEALTH PACKAGE/PLACEMENT COSTS,Third Party Payments,Revenue
Walsall Council,http://opendatacommunities.org/id/metropolitan-district-council/walsall,WC91-231,30/04/2018,Adult Social Care,ALPHA HEALTH CARE LTD,24/04/2018,"2,549.79",73373-RESIDENTIAL & NURSING CARE PLACEMENTS,OP PACKAGE/PLACEMENT COSTS,Third Party Payments,Revenue
Walsall Council,http://opendatacommunities.org/id/metropolitan-district-council/walsall,WC91-232,30/04/2018,Adult Social Care,ALPHA HEALTH CARE LTD,18/04/2018,"2,619.85",73373-RESIDENTIAL & NURSING CARE PLACEMENTS,OP PACKAGE/PLACEMENT COSTS,Third Party Payments,Revenue
Walsall Council,http://opendatacommunities.org/id/metropolitan-district-council/walsall,WC91-233,30/04/2018,Adult Social Care,ALPHA HEALTH CARE LTD,18/04/2018,"2,834.14",73373-RESIDENTIAL & NURSING CARE PLACEMENTS,OP PACKAGE/PLACEMENT COSTS,Third Party Payments,Revenue
Walsall Council,http://opendatacommunities.org/id/metropolitan-district-council/walsall,WC91-234,30/04/2018,Adult Social Care,ALPHA HEALTH CARE LTD,18/04/2018,"2,978.36",73373-RESIDENTIAL & NURSING CARE PLACEMENTS,OP PACKAGE/PLACEMENT COSTS,Third Party Payments,Revenue
Walsall Council,http://opendatacommunities.org/id/metropolitan-district-council/walsall,WC91-235,30/04/2018,Adult Social Care,ALPHA HEALTH CARE LTD,24/04/2018,"2,978.36",73373-RESIDENTIAL & NURSING CARE PLACEMENTS,OP PACKAGE/PLACEMENT COSTS,Third Party Payments,Revenue
Walsall Council,http://opendatacommunities.org/id/metropolitan-district-council/walsall,WC91-236,30/04/2018,Adult Social Care,ALPHA HEALTH CARE LTD,24/04/2018,"3,375.47",73373-RESIDENTIAL & NURSING CARE PLACEMENTS,OP PACKAGE/PLACEMENT COSTS,Third Party Payments,Revenue
Walsall Council,http://opendatacommunities.org/id/metropolitan-district-council/walsall,WC91-237,30/04/2018,Adult Social Care,ALPHA HEALTH CARE LTD,18/04/2018,"5,720.19",73373-RESIDENTIAL & NURSING CARE PLACEMENTS,MENTAL HEALTH PACKAGE/PLACEMENT COSTS,Third Party Payments,Revenue
Walsall Council,http://opendatacommunities.org/id/metropolitan-district-council/walsall,WC91-238,30/04/2018,Childrens,ALPHABIOLABS,17/04/2018,390.00,63102-CONSULTANTS FEES - CORPORATE,LOOKED AFTER CHILDRENS SOCIAL WORK TEAM,Supplies & Services,Revenue
Walsall Council,http://opendatacommunities.org/id/metropolitan-district-council/walsall,WC91-239,30/04/2018,Childrens,ALPHABIOLABS,11/04/2018,419.00,63102-CONSULTANTS FEES - CORPORATE,SAFEGUARDING & FAMILY SUPPORT,Supplies & Services,Revenue
Walsall Council,http://opendatacommunities.org/id/metropolitan-district-council/walsall,WC91-240,30/04/2018,Childrens,AMAH NURSERIES LIMITED T/A BANANA MOON WALSALL,16/04/2018,"2,279.40",66505-OTHER-GRANTS TO OTHER ORGS,EARLY YEARS - 2 YR OLDS,Third Party Payments,Revenue
Walsall Council,http://opendatacommunities.org/id/metropolitan-district-council/walsall,WC91-241,30/04/2018,Childrens,AMAH NURSERIES LIMITED T/A BANANA MOON WALSALL,03/04/2018,"4,087.00",66505-OTHER-GRANTS TO OTHER ORGS,EARLY YEARS - 2 YR OLDS,Third Party Payments,Revenue
Walsall Council,http://opendatacommunities.org/id/metropolitan-district-council/walsall,WC91-242,30/04/2018,Childrens,AMAH NURSERIES LIMITED T/A BANANA MOON WALSALL,04/04/2018,"6,107.00",66505-OTHER-GRANTS TO OTHER ORGS,EARLY YEARS - 3 YR OLDS,Third Party Payments,Revenue
Walsall Council,http://opendatacommunities.org/id/metropolitan-district-council/walsall,WC91-243,30/04/2018,Childrens,AMAH NURSERIES LIMITED T/A BANANA MOON WALSALL,03/04/2018,"8,822.00",66505-OTHER-GRANTS TO OTHER ORGS,EARLY YEARS - 3 YR OLDS,Third Party Payments,Revenue
Walsall Council,http://opendatacommunities.org/id/metropolitan-district-council/walsall,WC91-244,30/04/2018,Childrens,REDACTED,09/04/2018,318.08,74510-RESIDENTS ORDERS,ADOPTION ALLOWANCES,Third Party Payments,Revenue
Walsall Council,http://opendatacommunities.org/id/metropolitan-district-council/walsall,WC91-245,30/04/2018,Childrens,REDACTED,09/04/2018,318.08,74510-RESIDENTS ORDERS,ADOPTION ALLOWANCES,Third Party Payments,Revenue
Walsall Council,http://opendatacommunities.org/id/metropolitan-district-council/walsall,WC91-246,30/04/2018,Childrens,REDACTED,09/04/2018,808.04,74009-ADOPTION ALLOWANCE,ADOPTION ALLOWANCES,Transfer Payments,Revenue
Walsall Council,http://opendatacommunities.org/id/metropolitan-district-council/walsall,WC91-247,30/04/2018,Childrens,REDACTED,23/04/2018,600.00,74501-MAINTENANCE ALLOWANCE-FOSTER CARERS,INTERNAL FOSTER CARE PROVISION,Transfer Payments,Revenue
Walsall Council,http://opendatacommunities.org/id/metropolitan-district-council/walsall,WC91-248,30/04/2018,Childrens,REDACTED,23/04/2018,800.00,74508-INTERNAL FOSTER CARERS-CARER FEES,INTERNAL FOSTER CARE PROVISION,Transfer Payments,Revenue
Walsall Council,http://opendatacommunities.org/id/metropolitan-district-council/walsall,WC91-249,30/04/2018,Adult Social Care,REDACTED,09/04/2018,893.20,76422-DIRECT PAYMENTS TO SOCIAL SERVICES CLIENTS,LD PACKAGE/PLACEMENT COSTS,Transfer Payments,Revenue
Walsall Council,http://opendatacommunities.org/id/metropolitan-district-council/walsall,WC91-250,30/04/2018,Economy & Environment,AMEY LG LIMITED,03/04/2018,249.83,73025-PROFESSIONAL SERVICES-PRIV CONTRACTOR & OTHER AGENCIES,TRAFFIC MANAGEMENT,Third Party Payments,Revenue
Walsall Council,http://opendatacommunities.org/id/metropolitan-district-council/walsall,WC91-251,30/04/2018,Economy & Environment,AMEY LG LIMITED,16/04/2018,"1,509.43",73025-PROFESSIONAL SERVICES-PRIV CONTRACTOR & OTHER AGENCIES,MAJOR PROJECTS & MINOR IMPROVEMENTS,Third Party Payments,Revenue
Walsall Council,http://opendatacommunities.org/id/metropolitan-district-council/walsall,WC91-252,30/04/2018,Economy & Environment,AMEY LG LIMITED,09/04/2018,"3,352.47",60008-MAINTENANCE-FURNITURE & EQUIPMENT,POLLUTION DIVISION,Supplies & Services,Revenue
Walsall Council,http://opendatacommunities.org/id/metropolitan-district-council/walsall,WC91-253,30/04/2018,Economy & Environment,AMEY LG LIMITED,16/04/2018,"9,387.68",01006-SITE WORKS MAIN CONTRACTORS,CFR 1198 HEATH ROAD DARLASTON (MIDLAND ROAD TO KENDRICKS ROAD),Capital,Capital
Walsall Council,http://opendatacommunities.org/id/metropolitan-district-council/walsall,WC91-254,30/04/2018,Economy & Environment,AMEY LG LIMITED,04/04/2018,"9,660.71",60500-GENERAL MATERIALS,TRAFFIC MANAGEMENT,Supplies & Services,Revenue
Walsall Council,http://opendatacommunities.org/id/metropolitan-district-council/walsall,WC91-255,30/04/2018,Economy & Environment,AMEY LG LIMITED,17/04/2018,"17,224.06",01006-SITE WORKS MAIN CONTRACTORS,CFR 1198 HIGHWAY EFFICIENCY MEASURES,Capital,Capital
Walsall Council,http://opendatacommunities.org/id/metropolitan-district-council/walsall,WC91-256,30/04/2018,Childrens,AMG NURSING CARE SERVICES,17/04/2018,"1,503.48",63000-PROFESSIONAL FEES AND SERVICES,DIRECTLY COMMISSIONED NURSING SERVICES,Supplies & Services,Revenue
Walsall Council,http://opendatacommunities.org/id/metropolitan-district-council/walsall,WC91-257,30/04/2018,Childrens,AMG NURSING CARE SERVICES,04/04/2018,"2,274.48",63000-PROFESSIONAL FEES AND SERVICES,DIRECTLY COMMISSIONED NURSING SERVICES,Supplies & Services,Revenue
Walsall Council,http://opendatacommunities.org/id/metropolitan-district-council/walsall,WC91-258,30/04/2018,Childrens,AMG NURSING CARE SERVICES,04/04/2018,"2,274.48",63000-PROFESSIONAL FEES AND SERVICES,DIRECTLY COMMISSIONED NURSING SERVICES,Supplies & Services,Revenue
Walsall Council,http://opendatacommunities.org/id/metropolitan-district-council/walsall,WC91-259,30/04/2018,Adult Social Care,AMG NURSING CARE SERVICES,04/04/2018,"3,640.00",73372-DOMICILIARY CARE,PD PACKAGE/PLACEMENT COSTS,Third Party Payments,Revenue
Walsall Council,http://opendatacommunities.org/id/metropolitan-district-council/walsall,WC91-260,30/04/2018,Adult Social Care,AMG NURSING CARE SERVICES,03/04/2018,"10,695.73",73372-DOMICILIARY CARE,OP PACKAGE/PLACEMENT COSTS,Third Party Payments,Revenue
Walsall Council,http://opendatacommunities.org/id/metropolitan-district-council/walsall,WC91-261,30/04/2018,Childrens,REDACTED,09/04/2018,625.46,74501-MAINTENANCE ALLOWANCE-FOSTER CARERS,FAMILY & FRIENDS FOSTER CARE PROVISION,Transfer Payments,Revenue
Walsall Council,http://opendatacommunities.org/id/metropolitan-district-council/walsall,WC91-262,30/04/2018,Childrens,REDACTED,09/04/2018,425.08,74510-RESIDENTS ORDERS,ADOPTION ALLOWANCES,Third Party Payments,Revenue
Walsall Council,http://opendatacommunities.org/id/metropolitan-district-council/walsall,WC91-263,30/04/2018,Adult Social Care,ANCHOR,09/04/2018,657.14,73373-RESIDENTIAL & NURSING CARE PLACEMENTS,OP PACKAGE/PLACEMENT COSTS,Third Party Payments,Revenue
Walsall Council,http://opendatacommunities.org/id/metropolitan-district-council/walsall,WC91-264,30/04/2018,Adult Social Care,ANCHOR,24/04/2018,792.00,73373-RESIDENTIAL & NURSING CARE PLACEMENTS,OP PACKAGE/PLACEMENT COSTS,Third Party Payments,Revenue
Walsall Council,http://opendatacommunities.org/id/metropolitan-district-council/walsall,WC91-265,30/04/2018,Adult Social Care,ANCHOR,09/04/2018,985.72,73373-RESIDENTIAL & NURSING CARE PLACEMENTS,OP PACKAGE/PLACEMENT COSTS,Third Party Payments,Revenue
Walsall Council,http://opendatacommunities.org/id/metropolitan-district-council/walsall,WC91-266,30/04/2018,Adult Social Care,ANCHOR,09/04/2018,"1,596.86",73373-RESIDENTIAL & NURSING CARE PLACEMENTS,OP PACKAGE/PLACEMENT COSTS,Third Party Payments,Revenue
Walsall Council,http://opendatacommunities.org/id/metropolitan-district-council/walsall,WC91-267,30/04/2018,Adult Social Care,ANCHOR,09/04/2018,"1,596.86",73373-RESIDENTIAL & NURSING CARE PLACEMENTS,OP PACKAGE/PLACEMENT COSTS,Third Party Payments,Revenue
Walsall Council,http://opendatacommunities.org/id/metropolitan-district-council/walsall,WC91-268,30/04/2018,Adult Social Care,ANCHOR,09/04/2018,"1,774.28",73373-RESIDENTIAL & NURSING CARE PLACEMENTS,OP PACKAGE/PLACEMENT COSTS,Third Party Payments,Revenue
Walsall Council,http://opendatacommunities.org/id/metropolitan-district-council/walsall,WC91-269,30/04/2018,Adult Social Care,ANCHOR,09/04/2018,"1,774.28",73373-RESIDENTIAL & NURSING CARE PLACEMENTS,OP PACKAGE/PLACEMENT COSTS,Third Party Payments,Revenue
Walsall Council,http://opendatacommunities.org/id/metropolitan-district-council/walsall,WC91-270,30/04/2018,Adult Social Care,ANCHOR,09/04/2018,"1,774.28",73373-RESIDENTIAL & NURSING CARE PLACEMENTS,OP PACKAGE/PLACEMENT COSTS,Third Party Payments,Revenue
Walsall Council,http://opendatacommunities.org/id/metropolitan-district-council/walsall,WC91-271,30/04/2018,Adult Social Care,ANCHOR,09/04/2018,"1,774.29",73373-RESIDENTIAL & NURSING CARE PLACEMENTS,OP PACKAGE/PLACEMENT COSTS,Third Party Payments,Revenue
Walsall Council,http://opendatacommunities.org/id/metropolitan-district-council/walsall,WC91-272,30/04/2018,Adult Social Care,ANCHOR,09/04/2018,"1,774.29",73373-RESIDENTIAL & NURSING CARE PLACEMENTS,OP PACKAGE/PLACEMENT COSTS,Third Party Payments,Revenue
Walsall Council,http://opendatacommunities.org/id/metropolitan-district-council/walsall,WC91-273,30/04/2018,Adult Social Care,ANCHOR,09/04/2018,"1,774.29",73373-RESIDENTIAL & NURSING CARE PLACEMENTS,OP PACKAGE/PLACEMENT COSTS,Third Party Payments,Revenue
Walsall Council,http://opendatacommunities.org/id/metropolitan-district-council/walsall,WC91-274,30/04/2018,Adult Social Care,ANCHOR,24/04/2018,"1,816.00",73373-RESIDENTIAL & NURSING CARE PLACEMENTS,OP PACKAGE/PLACEMENT COSTS,Third Party Payments,Revenue
Walsall Council,http://opendatacommunities.org/id/metropolitan-district-council/walsall,WC91-275,30/04/2018,Adult Social Care,ANCHOR,03/04/2018,"1,840.00",73373-RESIDENTIAL & NURSING CARE PLACEMENTS,OP PACKAGE/PLACEMENT COSTS,Third Party Payments,Revenue
Walsall Council,http://opendatacommunities.org/id/metropolitan-district-council/walsall,WC91-276,30/04/2018,Adult Social Care,ANCHOR,24/04/2018,"1,840.00",73373-RESIDENTIAL & NURSING CARE PLACEMENTS,OP PACKAGE/PLACEMENT COSTS,Third Party Payments,Revenue
Walsall Council,http://opendatacommunities.org/id/metropolitan-district-council/walsall,WC91-277,30/04/2018,Adult Social Care,ANCHOR,24/04/2018,"1,840.00",73373-RESIDENTIAL & NURSING CARE PLACEMENTS,OP PACKAGE/PLACEMENT COSTS,Third Party Payments,Revenue
Walsall Council,http://opendatacommunities.org/id/metropolitan-district-council/walsall,WC91-278,30/04/2018,Adult Social Care,ANCHOR,24/04/2018,"1,840.00",73373-RESIDENTIAL & NURSING CARE PLACEMENTS,OP PACKAGE/PLACEMENT COSTS,Third Party Payments,Revenue
Walsall Council,http://opendatacommunities.org/id/metropolitan-district-council/walsall,WC91-279,30/04/2018,Adult Social Care,ANCHOR,24/04/2018,"1,840.00",73373-RESIDENTIAL & NURSING CARE PLACEMENTS,OP PACKAGE/PLACEMENT COSTS,Third Party Payments,Revenue
Walsall Council,http://opendatacommunities.org/id/metropolitan-district-council/walsall,WC91-280,30/04/2018,Adult Social Care,ANCHOR,24/04/2018,"1,840.00",73373-RESIDENTIAL & NURSING CARE PLACEMENTS,OP PACKAGE/PLACEMENT COSTS,Third Party Payments,Revenue
Walsall Council,http://opendatacommunities.org/id/metropolitan-district-council/walsall,WC91-281,30/04/2018,Adult Social Care,ANCHOR,24/04/2018,"1,840.00",73373-RESIDENTIAL & NURSING CARE PLACEMENTS,OP PACKAGE/PLACEMENT COSTS,Third Party Payments,Revenue
Walsall Council,http://opendatacommunities.org/id/metropolitan-district-council/walsall,WC91-282,30/04/2018,Adult Social Care,ANCHOR,24/04/2018,"1,840.00",73373-RESIDENTIAL & NURSING CARE PLACEMENTS,OP PACKAGE/PLACEMENT COSTS,Third Party Payments,Revenue
Walsall Council,http://opendatacommunities.org/id/metropolitan-district-council/walsall,WC91-283,30/04/2018,Adult Social Care,ANCHOR,24/04/2018,"1,840.00",73373-RESIDENTIAL & NURSING CARE PLACEMENTS,MENTAL HEALTH PACKAGE/PLACEMENT COSTS,Third Party Payments,Revenue
Walsall Council,http://opendatacommunities.org/id/metropolitan-district-council/walsall,WC91-284,30/04/2018,Adult Social Care,ANCHOR,24/04/2018,"1,996.00",73373-RESIDENTIAL & NURSING CARE PLACEMENTS,OP PACKAGE/PLACEMENT COSTS,Third Party Payments,Revenue
Walsall Council,http://opendatacommunities.org/id/metropolitan-district-council/walsall,WC91-285,30/04/2018,Adult Social Care,ANCHOR,24/04/2018,"2,042.86",73373-RESIDENTIAL & NURSING CARE PLACEMENTS,OP PACKAGE/PLACEMENT COSTS,Third Party Payments,Revenue
Walsall Council,http://opendatacommunities.org/id/metropolitan-district-council/walsall,WC91-286,30/04/2018,Adult Social Care,ANCHOR,24/04/2018,"2,080.00",73373-RESIDENTIAL & NURSING CARE PLACEMENTS,MENTAL HEALTH PACKAGE/PLACEMENT COSTS,Third Party Payments,Revenue
Walsall Council,http://opendatacommunities.org/id/metropolitan-district-council/walsall,WC91-287,30/04/2018,Adult Social Care,ANCHOR,24/04/2018,"2,180.00",73373-RESIDENTIAL & NURSING CARE PLACEMENTS,OP PACKAGE/PLACEMENT COSTS,Third Party Payments,Revenue
Walsall Council,http://opendatacommunities.org/id/metropolitan-district-council/walsall,WC91-288,30/04/2018,Adult Social Care,ANCHOR,24/04/2018,"2,180.00",73373-RESIDENTIAL & NURSING CARE PLACEMENTS,OP PACKAGE/PLACEMENT COSTS,Third Party Payments,Revenue
Walsall Council,http://opendatacommunities.org/id/metropolitan-district-council/walsall,WC91-289,30/04/2018,Adult Social Care,ANCHOR,24/04/2018,"2,200.00",73373-RESIDENTIAL & NURSING CARE PLACEMENTS,OP PACKAGE/PLACEMENT COSTS,Third Party Payments,Revenue
Walsall Council,http://opendatacommunities.org/id/metropolitan-district-council/walsall,WC91-290,30/04/2018,Childrens,REDACTED,09/04/2018,314.44,74509-SPECIAL GUARDIANSHIP ORDERS,ADOPTION ALLOWANCES,Transfer Payments,Revenue
Walsall Council,http://opendatacommunities.org/id/metropolitan-district-council/walsall,WC91-291,30/04/2018,Childrens,REDACTED,23/04/2018,720.00,74501-MAINTENANCE ALLOWANCE-FOSTER CARERS,INTERNAL FOSTER CARE PROVISION,Transfer Payments,Revenue
Walsall Council,http://opendatacommunities.org/id/metropolitan-district-council/walsall,WC91-292,30/04/2018,Childrens,REDACTED,23/04/2018,"1,000.00",74508-INTERNAL FOSTER CARERS-CARER FEES,INTERNAL FOSTER CARE PROVISION,Transfer Payments,Revenue
Walsall Council,http://opendatacommunities.org/id/metropolitan-district-council/walsall,WC91-293,30/04/2018,Adult Social Care,REDACTED,09/04/2018,"1,761.55",76422-DIRECT PAYMENTS TO SOCIAL SERVICES CLIENTS,OP PACKAGE/PLACEMENT COSTS,Transfer Payments,Revenue
Walsall Council,http://opendatacommunities.org/id/metropolitan-district-council/walsall,WC91-294,30/04/2018,Economy & Environment,REDACTED,11/04/2018,"2,000.00",62527-VISUAL ARTS,NAG - TEMPORARY EXHIBITIONS,Supplies & Services,Revenue
Walsall Council,http://opendatacommunities.org/id/metropolitan-district-council/walsall,WC91-295,30/04/2018,Resources and Transformation,ANDY GALE HOUSING CONSULTANCY,16/04/2018,"1,870.79",30030-EXTERNAL TRAINING,ADVICE & GUIDANCE SERVICE,Employees,Revenue
Walsall Council,http://opendatacommunities.org/id/metropolitan-district-council/walsall,WC91-296,30/04/2018,Adult Social Care,ANGEL COURT RESIDENTIAL CARE HOME,03/04/2018,"5,520.00",73373-RESIDENTIAL & NURSING CARE PLACEMENTS,OP PACKAGE/PLACEMENT COSTS,Third Party Payments,Revenue
Walsall Council,http://opendatacommunities.org/id/metropolitan-district-council/walsall,WC91-297,30/04/2018,Childrens,REDACTED,09/04/2018,368.76,74509-SPECIAL GUARDIANSHIP ORDERS,ADOPTION ALLOWANCES,Transfer Payments,Revenue
Walsall Council,http://opendatacommunities.org/id/metropolitan-district-council/walsall,WC91-298,30/04/2018,Childrens,REDACTED,09/04/2018,368.76,74509-SPECIAL GUARDIANSHIP ORDERS,ADOPTION ALLOWANCES,Transfer Payments,Revenue
Walsall Council,http://opendatacommunities.org/id/metropolitan-district-council/walsall,WC91-299,30/04/2018,Childrens,REDACTED,09/04/2018,500.16,74509-SPECIAL GUARDIANSHIP ORDERS,ADOPTION ALLOWANCES,Transfer Payments,Revenue
Walsall Council,http://opendatacommunities.org/id/metropolitan-district-council/walsall,WC91-300,30/04/2018,Childrens,REDACTED,09/04/2018,312.04,74509-SPECIAL GUARDIANSHIP ORDERS,ADOPTION ALLOWANCES,Transfer Payments,Revenue
Walsall Council,http://opendatacommunities.org/id/metropolitan-district-council/walsall,WC91-301,30/04/2018,Adult Social Care,REDACTED,09/04/2018,327.36,76422-DIRECT PAYMENTS TO SOCIAL SERVICES CLIENTS,LD PACKAGE/PLACEMENT COSTS,Transfer Payments,Revenue
Walsall Council,http://opendatacommunities.org/id/metropolitan-district-council/walsall,WC91-302,30/04/2018,Adult Social Care,REDACTED,09/04/2018,680.24,76422-DIRECT PAYMENTS TO SOCIAL SERVICES CLIENTS,OP PACKAGE/PLACEMENT COSTS,Transfer Payments,Revenue
Walsall Council,http://opendatacommunities.org/id/metropolitan-district-council/walsall,WC91-303,30/04/2018,Economy & Environment,REDACTED,23/04/2018,500.00,30030-EXTERNAL TRAINING,NEW ART GALLERY - ADMIN,Employees,Revenue
Walsall Council,http://opendatacommunities.org/id/metropolitan-district-council/walsall,WC91-304,30/04/2018,Adult Social Care,REDACTED,09/04/2018,"1,145.97",76422-DIRECT PAYMENTS TO SOCIAL SERVICES CLIENTS,OP PACKAGE/PLACEMENT COSTS,Transfer Payments,Revenue
Walsall Council,http://opendatacommunities.org/id/metropolitan-district-council/walsall,WC91-305,30/04/2018,Adult Social Care,ANSON COURT RESIDENTIAL HOME,24/04/2018,342.86,73373-RESIDENTIAL & NURSING CARE PLACEMENTS,OP PACKAGE/PLACEMENT COSTS,Third Party Payments,Revenue
Walsall Council,http://opendatacommunities.org/id/metropolitan-district-council/walsall,WC91-306,30/04/2018,Adult Social Care,ANSON COURT RESIDENTIAL HOME,18/04/2018,591.43,73373-RESIDENTIAL & NURSING CARE PLACEMENTS,OP PACKAGE/PLACEMENT COSTS,Third Party Payments,Revenue
Walsall Council,http://opendatacommunities.org/id/metropolitan-district-council/walsall,WC91-307,30/04/2018,Adult Social Care,ANSON COURT RESIDENTIAL HOME,18/04/2018,657.14,73373-RESIDENTIAL & NURSING CARE PLACEMENTS,OP PACKAGE/PLACEMENT COSTS,Third Party Payments,Revenue
Walsall Council,http://opendatacommunities.org/id/metropolitan-district-council/walsall,WC91-308,30/04/2018,Adult Social Care,ANSON COURT RESIDENTIAL HOME,24/04/2018,804.22,73373-RESIDENTIAL & NURSING CARE PLACEMENTS,OP PACKAGE/PLACEMENT COSTS,Third Party Payments,Revenue
Walsall Council,http://opendatacommunities.org/id/metropolitan-district-council/walsall,WC91-309,30/04/2018,Adult Social Care,ANSON COURT RESIDENTIAL HOME,24/04/2018,"1,140.87",73373-RESIDENTIAL & NURSING CARE PLACEMENTS,OP PACKAGE/PLACEMENT COSTS,Third Party Payments,Revenue
Walsall Council,http://opendatacommunities.org/id/metropolitan-district-council/walsall,WC91-310,30/04/2018,Adult Social Care,ANSON COURT RESIDENTIAL HOME,03/04/2018,"1,165.71",73373-RESIDENTIAL & NURSING CARE PLACEMENTS,OP PACKAGE/PLACEMENT COSTS,Third Party Payments,Revenue
Walsall Council,http://opendatacommunities.org/id/metropolitan-district-council/walsall,WC91-311,30/04/2018,Adult Social Care,ANSON COURT RESIDENTIAL HOME,24/04/2018,"1,876.52",73373-RESIDENTIAL & NURSING CARE PLACEMENTS,OP PACKAGE/PLACEMENT COSTS,Third Party Payments,Revenue
Walsall Council,http://opendatacommunities.org/id/metropolitan-district-council/walsall,WC91-312,30/04/2018,Adult Social Care,ANSON COURT RESIDENTIAL HOME,24/04/2018,"1,876.52",73373-RESIDENTIAL & NURSING CARE PLACEMENTS,OP PACKAGE/PLACEMENT COSTS,Third Party Payments,Revenue
Walsall Council,http://opendatacommunities.org/id/metropolitan-district-council/walsall,WC91-313,30/04/2018,Adult Social Care,ANSON COURT RESIDENTIAL HOME,24/04/2018,"1,876.52",73373-RESIDENTIAL & NURSING CARE PLACEMENTS,OP PACKAGE/PLACEMENT COSTS,Third Party Payments,Revenue
Walsall Council,http://opendatacommunities.org/id/metropolitan-district-council/walsall,WC91-314,30/04/2018,Adult Social Care,ANSON COURT RESIDENTIAL HOME,24/04/2018,"1,876.52",73373-RESIDENTIAL & NURSING CARE PLACEMENTS,OP PACKAGE/PLACEMENT COSTS,Third Party Payments,Revenue
Walsall Council,http://opendatacommunities.org/id/metropolitan-district-council/walsall,WC91-315,30/04/2018,Adult Social Care,ANSON COURT RESIDENTIAL HOME,24/04/2018,"1,876.52",73373-RESIDENTIAL & NURSING CARE PLACEMENTS,OP PACKAGE/PLACEMENT COSTS,Third Party Payments,Revenue
Walsall Council,http://opendatacommunities.org/id/metropolitan-district-council/walsall,WC91-316,30/04/2018,Adult Social Care,ANSON COURT RESIDENTIAL HOME,24/04/2018,"1,876.52",73373-RESIDENTIAL & NURSING CARE PLACEMENTS,OP PACKAGE/PLACEMENT COSTS,Third Party Payments,Revenue
Walsall Council,http://opendatacommunities.org/id/metropolitan-district-council/walsall,WC91-317,30/04/2018,Adult Social Care,ANSON COURT RESIDENTIAL HOME,24/04/2018,"1,876.52",73373-RESIDENTIAL & NURSING CARE PLACEMENTS,OP PACKAGE/PLACEMENT COSTS,Third Party Payments,Revenue
Walsall Council,http://opendatacommunities.org/id/metropolitan-district-council/walsall,WC91-318,30/04/2018,Adult Social Care,ANSON COURT RESIDENTIAL HOME,24/04/2018,"1,876.52",73373-RESIDENTIAL & NURSING CARE PLACEMENTS,OP PACKAGE/PLACEMENT COSTS,Third Party Payments,Revenue
Walsall Council,http://opendatacommunities.org/id/metropolitan-district-council/walsall,WC91-319,30/04/2018,Adult Social Care,ANSON COURT RESIDENTIAL HOME,24/04/2018,"1,876.52",73373-RESIDENTIAL & NURSING CARE PLACEMENTS,MENTAL HEALTH PACKAGE/PLACEMENT COSTS,Third Party Payments,Revenue
Walsall Council,http://opendatacommunities.org/id/metropolitan-district-council/walsall,WC91-320,30/04/2018,Adult Social Care,ANSON COURT RESIDENTIAL HOME,24/04/2018,"1,876.52",73373-RESIDENTIAL & NURSING CARE PLACEMENTS,OP PACKAGE/PLACEMENT COSTS,Third Party Payments,Revenue
Walsall Council,http://opendatacommunities.org/id/metropolitan-district-council/walsall,WC91-321,30/04/2018,Adult Social Care,ANSON COURT RESIDENTIAL HOME,24/04/2018,"1,876.52",73373-RESIDENTIAL & NURSING CARE PLACEMENTS,OP PACKAGE/PLACEMENT COSTS,Third Party Payments,Revenue
Walsall Council,http://opendatacommunities.org/id/metropolitan-district-council/walsall,WC91-322,30/04/2018,Adult Social Care,ANSON COURT RESIDENTIAL HOME,24/04/2018,"1,876.52",73373-RESIDENTIAL & NURSING CARE PLACEMENTS,OP PACKAGE/PLACEMENT COSTS,Third Party Payments,Revenue
Walsall Council,http://opendatacommunities.org/id/metropolitan-district-council/walsall,WC91-323,30/04/2018,Adult Social Care,ANSON COURT RESIDENTIAL HOME,24/04/2018,"1,876.52",73373-RESIDENTIAL & NURSING CARE PLACEMENTS,OP PACKAGE/PLACEMENT COSTS,Third Party Payments,Revenue
Walsall Council,http://opendatacommunities.org/id/metropolitan-district-council/walsall,WC91-324,30/04/2018,Adult Social Care,ANSON COURT RESIDENTIAL HOME,24/04/2018,"1,876.52",73373-RESIDENTIAL & NURSING CARE PLACEMENTS,OP PACKAGE/PLACEMENT COSTS,Third Party Payments,Revenue
Walsall Council,http://opendatacommunities.org/id/metropolitan-district-council/walsall,WC91-325,30/04/2018,Adult Social Care,ANSON COURT RESIDENTIAL HOME,24/04/2018,"1,876.52",73373-RESIDENTIAL & NURSING CARE PLACEMENTS,OP PACKAGE/PLACEMENT COSTS,Third Party Payments,Revenue
Walsall Council,http://opendatacommunities.org/id/metropolitan-district-council/walsall,WC91-326,30/04/2018,Adult Social Care,ANSON COURT RESIDENTIAL HOME,24/04/2018,"1,876.52",73373-RESIDENTIAL & NURSING CARE PLACEMENTS,OP PACKAGE/PLACEMENT COSTS,Third Party Payments,Revenue
Walsall Council,http://opendatacommunities.org/id/metropolitan-district-council/walsall,WC91-327,30/04/2018,Adult Social Care,ANSON COURT RESIDENTIAL HOME,24/04/2018,"1,876.52",73373-RESIDENTIAL & NURSING CARE PLACEMENTS,OP PACKAGE/PLACEMENT COSTS,Third Party Payments,Revenue
Walsall Council,http://opendatacommunities.org/id/metropolitan-district-council/walsall,WC91-328,30/04/2018,Adult Social Care,ANSON COURT RESIDENTIAL HOME,24/04/2018,"1,876.52",73373-RESIDENTIAL & NURSING CARE PLACEMENTS,OP PACKAGE/PLACEMENT COSTS,Third Party Payments,Revenue
Walsall Council,http://opendatacommunities.org/id/metropolitan-district-council/walsall,WC91-329,30/04/2018,Adult Social Care,ANSON COURT RESIDENTIAL HOME,24/04/2018,"1,956.52",73373-RESIDENTIAL & NURSING CARE PLACEMENTS,OP PACKAGE/PLACEMENT COSTS,Third Party Payments,Revenue
Walsall Council,http://opendatacommunities.org/id/metropolitan-district-council/walsall,WC91-330,30/04/2018,Adult Social Care,ANSON COURT RESIDENTIAL HOME,24/04/2018,"1,956.52",73373-RESIDENTIAL & NURSING CARE PLACEMENTS,OP PACKAGE/PLACEMENT COSTS,Third Party Payments,Revenue
Walsall Council,http://opendatacommunities.org/id/metropolitan-district-council/walsall,WC91-331,30/04/2018,Adult Social Care,ANSON COURT RESIDENTIAL HOME,24/04/2018,"1,956.52",73373-RESIDENTIAL & NURSING CARE PLACEMENTS,MENTAL HEALTH PACKAGE/PLACEMENT COSTS,Third Party Payments,Revenue
Walsall Council,http://opendatacommunities.org/id/metropolitan-district-council/walsall,WC91-332,30/04/2018,Adult Social Care,ANSON COURT RESIDENTIAL HOME,24/04/2018,"1,956.52",73373-RESIDENTIAL & NURSING CARE PLACEMENTS,OP PACKAGE/PLACEMENT COSTS,Third Party Payments,Revenue
Walsall Council,http://opendatacommunities.org/id/metropolitan-district-council/walsall,WC91-333,30/04/2018,Adult Social Care,ANSON COURT RESIDENTIAL HOME,24/04/2018,"1,956.52",73373-RESIDENTIAL & NURSING CARE PLACEMENTS,OP PACKAGE/PLACEMENT COSTS,Third Party Payments,Revenue
Walsall Council,http://opendatacommunities.org/id/metropolitan-district-council/walsall,WC91-334,30/04/2018,Adult Social Care,ANSON COURT RESIDENTIAL HOME,03/04/2018,"2,125.72",73373-RESIDENTIAL & NURSING CARE PLACEMENTS,OP PACKAGE/PLACEMENT COSTS,Third Party Payments,Revenue
Walsall Council,http://opendatacommunities.org/id/metropolitan-district-council/walsall,WC91-335,30/04/2018,Adult Social Care,ANSON COURT RESIDENTIAL HOME,24/04/2018,"4,956.52",73373-RESIDENTIAL & NURSING CARE PLACEMENTS,MENTAL HEALTH PACKAGE/PLACEMENT COSTS,Third Party Payments,Revenue
Walsall Council,http://opendatacommunities.org/id/metropolitan-district-council/walsall,WC91-336,30/04/2018,Adult Social Care,ANSON COURT RESIDENTIAL HOME,24/04/2018,"5,417.14",73373-RESIDENTIAL & NURSING CARE PLACEMENTS,MENTAL HEALTH PACKAGE/PLACEMENT COSTS,Third Party Payments,Revenue
Walsall Council,http://opendatacommunities.org/id/metropolitan-district-council/walsall,WC91-337,30/04/2018,Childrens,REDACTED,09/04/2018,604.00,74510-RESIDENTS ORDERS,ADOPTION ALLOWANCES,Third Party Payments,Revenue
Walsall Council,http://opendatacommunities.org/id/metropolitan-district-council/walsall,WC91-338,30/04/2018,Childrens,REDACTED,09/04/2018,333.12,74509-SPECIAL GUARDIANSHIP ORDERS,ADOPTION ALLOWANCES,Transfer Payments,Revenue
Walsall Council,http://opendatacommunities.org/id/metropolitan-district-council/walsall,WC91-339,30/04/2018,Adult Social Care,ANVILLE COURT CARE LTD,09/04/2018,383.41,73373-RESIDENTIAL & NURSING CARE PLACEMENTS,OP PACKAGE/PLACEMENT COSTS,Third Party Payments,Revenue
Walsall Council,http://opendatacommunities.org/id/metropolitan-district-council/walsall,WC91-340,30/04/2018,Adult Social Care,ANVILLE COURT CARE LTD,09/04/2018,"1,596.43",73373-RESIDENTIAL & NURSING CARE PLACEMENTS,OP PACKAGE/PLACEMENT COSTS,Third Party Payments,Revenue
Walsall Council,http://opendatacommunities.org/id/metropolitan-district-council/walsall,WC91-341,30/04/2018,Adult Social Care,ANVILLE COURT CARE LTD,09/04/2018,"1,724.14",73373-RESIDENTIAL & NURSING CARE PLACEMENTS,OP PACKAGE/PLACEMENT COSTS,Third Party Payments,Revenue
Walsall Council,http://opendatacommunities.org/id/metropolitan-district-council/walsall,WC91-342,30/04/2018,Adult Social Care,ANVILLE COURT CARE LTD,09/04/2018,"1,788.00",73373-RESIDENTIAL & NURSING CARE PLACEMENTS,OP PACKAGE/PLACEMENT COSTS,Third Party Payments,Revenue
Walsall Council,http://opendatacommunities.org/id/metropolitan-district-council/walsall,WC91-343,30/04/2018,Adult Social Care,ANVILLE COURT CARE LTD,09/04/2018,"1,915.71",73373-RESIDENTIAL & NURSING CARE PLACEMENTS,OP PACKAGE/PLACEMENT COSTS,Third Party Payments,Revenue
Walsall Council,http://opendatacommunities.org/id/metropolitan-district-council/walsall,WC91-344,30/04/2018,Adult Social Care,ANVILLE COURT CARE LTD,09/04/2018,"1,915.71",73373-RESIDENTIAL & NURSING CARE PLACEMENTS,OP PACKAGE/PLACEMENT COSTS,Third Party Payments,Revenue
Walsall Council,http://opendatacommunities.org/id/metropolitan-district-council/walsall,WC91-345,30/04/2018,Adult Social Care,ANVILLE COURT CARE LTD,09/04/2018,"1,979.57",73373-RESIDENTIAL & NURSING CARE PLACEMENTS,OP PACKAGE/PLACEMENT COSTS,Third Party Payments,Revenue
Walsall Council,http://opendatacommunities.org/id/metropolitan-district-council/walsall,WC91-346,30/04/2018,Adult Social Care,ANVILLE COURT CARE LTD,09/04/2018,"1,979.57",73373-RESIDENTIAL & NURSING CARE PLACEMENTS,OP PACKAGE/PLACEMENT COSTS,Third Party Payments,Revenue
Walsall Council,http://opendatacommunities.org/id/metropolitan-district-council/walsall,WC91-347,30/04/2018,Adult Social Care,ANVILLE COURT CARE LTD,09/04/2018,"1,979.57",73373-RESIDENTIAL & NURSING CARE PLACEMENTS,OP PACKAGE/PLACEMENT COSTS,Third Party Payments,Revenue
Walsall Council,http://opendatacommunities.org/id/metropolitan-district-council/walsall,WC91-348,30/04/2018,Economy & Environment,APCOA PARKING SERVICES (UK) LTD,19/04/2018,"44,498.44",73025-PROFESSIONAL SERVICES-PRIV CONTRACTOR & OTHER AGENCIES,PARKING SERVICES OFF-STREET,Third Party Payments,Revenue
Walsall Council,http://opendatacommunities.org/id/metropolitan-district-council/walsall,WC91-349,30/04/2018,Economy & Environment,APSE 001,25/04/2018,231.63,64500-PUBLICATIONS/ORGANISATIONS-SUBSCRIPTIONS,DEVELOPMENT TEAM,Supplies & Services,Revenue
Walsall Council,http://opendatacommunities.org/id/metropolitan-district-council/walsall,WC91-350,30/04/2018,Resources and Transformation,APSE 001,25/04/2018,231.63,64500-PUBLICATIONS/ORGANISATIONS-SUBSCRIPTIONS,INTEGRATED FACILITIES MANAGEMENT,Supplies & Services,Revenue
Walsall Council,http://opendatacommunities.org/id/metropolitan-district-council/walsall,WC91-351,30/04/2018,Resources and Transformation,APSE 001,25/04/2018,231.63,64500-PUBLICATIONS/ORGANISATIONS-SUBSCRIPTIONS,CL ADMIN,Supplies & Services,Revenue
Walsall Council,http://opendatacommunities.org/id/metropolitan-district-council/walsall,WC91-352,30/04/2018,Economy & Environment,APSE 001,25/04/2018,463.26,64500-PUBLICATIONS/ORGANISATIONS-SUBSCRIPTIONS,LEISURE - MANAGEMENT AND ADMIN,Supplies & Services,Revenue
Walsall Council,http://opendatacommunities.org/id/metropolitan-district-council/walsall,WC91-353,30/04/2018,Economy & Environment,APSE 001,25/04/2018,463.26,64500-PUBLICATIONS/ORGANISATIONS-SUBSCRIPTIONS,ENGINEERING MANAGEMENT,Supplies & Services,Revenue
Walsall Council,http://opendatacommunities.org/id/metropolitan-district-council/walsall,WC91-354,30/04/2018,Economy & Environment,APSE 001,25/04/2018,463.26,64500-PUBLICATIONS/ORGANISATIONS-SUBSCRIPTIONS,PUBLIC HEALTH BUSINESS SUPPORT,Supplies & Services,Revenue
Walsall Council,http://opendatacommunities.org/id/metropolitan-district-council/walsall,WC91-355,30/04/2018,Resources and Transformation,APSE 001,25/04/2018,463.26,64500-PUBLICATIONS/ORGANISATIONS-SUBSCRIPTIONS,CA CATERING OPERATIONAL SUPPORT,Supplies & Services,Revenue
Walsall Council,http://opendatacommunities.org/id/metropolitan-district-council/walsall,WC91-356,30/04/2018,Economy & Environment,APSE 001,25/04/2018,"1,158.07",64500-PUBLICATIONS/ORGANISATIONS-SUBSCRIPTIONS,RESOURCE MANAGEMENT,Supplies & Services,Revenue
Walsall Council,http://opendatacommunities.org/id/metropolitan-district-council/walsall,WC91-357,30/04/2018,Economy & Environment,AQUALYMPIC,23/04/2018,837.50,34305-AGENCY STAFF-EMPLOYEES,OAK PARK,Employees,Revenue
Walsall Council,http://opendatacommunities.org/id/metropolitan-district-council/walsall,WC91-358,30/04/2018,Economy & Environment,AQUALYMPIC,23/04/2018,837.50,34305-AGENCY STAFF-EMPLOYEES,OAK PARK,Employees,Revenue
Walsall Council,http://opendatacommunities.org/id/metropolitan-district-council/walsall,WC91-359,30/04/2018,Economy & Environment,AQUALYMPIC,17/04/2018,"1,295.00",34305-AGENCY STAFF-EMPLOYEES,OAK PARK,Employees,Revenue
Walsall Council,http://opendatacommunities.org/id/metropolitan-district-council/walsall,WC91-360,30/04/2018,Economy & Environment,AQUALYMPIC,16/04/2018,"1,632.50",34305-AGENCY STAFF-EMPLOYEES,OAK PARK,Employees,Revenue
Walsall Council,http://opendatacommunities.org/id/metropolitan-district-council/walsall,WC91-361,30/04/2018,Adult Social Care,ARBORETUM NURSING HOME.,18/04/2018,900.00,73373-RESIDENTIAL & NURSING CARE PLACEMENTS,OP PACKAGE/PLACEMENT COSTS,Third Party Payments,Revenue
Walsall Council,http://opendatacommunities.org/id/metropolitan-district-council/walsall,WC91-362,30/04/2018,Adult Social Care,ARBORETUM NURSING HOME.,09/04/2018,"1,000.00",73373-RESIDENTIAL & NURSING CARE PLACEMENTS,OP PACKAGE/PLACEMENT COSTS,Third Party Payments,Revenue
Walsall Council,http://opendatacommunities.org/id/metropolitan-district-council/walsall,WC91-363,30/04/2018,Adult Social Care,ARBORETUM NURSING HOME.,17/04/2018,"1,277.14",73019-PSE'S-PRIV CONTRACTOR FEES,INTEGRATED DISCHARGE TEAM,Third Party Payments,Revenue
Walsall Council,http://opendatacommunities.org/id/metropolitan-district-council/walsall,WC91-364,30/04/2018,Adult Social Care,ARBORETUM NURSING HOME.,18/04/2018,"1,928.57",73373-RESIDENTIAL & NURSING CARE PLACEMENTS,OP PACKAGE/PLACEMENT COSTS,Third Party Payments,Revenue
Walsall Council,http://opendatacommunities.org/id/metropolitan-district-council/walsall,WC91-365,30/04/2018,Adult Social Care,ARBORETUM NURSING HOME.,18/04/2018,"2,025.00",73373-RESIDENTIAL & NURSING CARE PLACEMENTS,OP PACKAGE/PLACEMENT COSTS,Third Party Payments,Revenue
Walsall Council,http://opendatacommunities.org/id/metropolitan-district-council/walsall,WC91-366,30/04/2018,Adult Social Care,ARBORETUM NURSING HOME.,09/04/2018,"2,071.43",73373-RESIDENTIAL & NURSING CARE PLACEMENTS,OP PACKAGE/PLACEMENT COSTS,Third Party Payments,Revenue
Walsall Council,http://opendatacommunities.org/id/metropolitan-district-council/walsall,WC91-367,30/04/2018,Adult Social Care,ARBORETUM NURSING HOME.,09/04/2018,"2,071.43",73373-RESIDENTIAL & NURSING CARE PLACEMENTS,OP PACKAGE/PLACEMENT COSTS,Third Party Payments,Revenue
Walsall Council,http://opendatacommunities.org/id/metropolitan-district-council/walsall,WC91-368,30/04/2018,Adult Social Care,ARBORETUM NURSING HOME.,18/04/2018,"2,154.30",73373-RESIDENTIAL & NURSING CARE PLACEMENTS,OP PACKAGE/PLACEMENT COSTS,Third Party Payments,Revenue
Walsall Council,http://opendatacommunities.org/id/metropolitan-district-council/walsall,WC91-369,30/04/2018,Adult Social Care,ARBORETUM NURSING HOME.,09/04/2018,"2,214.29",73373-RESIDENTIAL & NURSING CARE PLACEMENTS,OP PACKAGE/PLACEMENT COSTS,Third Party Payments,Revenue
Walsall Council,http://opendatacommunities.org/id/metropolitan-district-council/walsall,WC91-370,30/04/2018,Adult Social Care,ARBORETUM NURSING HOME.,18/04/2018,"2,250.00",73373-RESIDENTIAL & NURSING CARE PLACEMENTS,OP PACKAGE/PLACEMENT COSTS,Third Party Payments,Revenue
Walsall Council,http://opendatacommunities.org/id/metropolitan-district-council/walsall,WC91-371,30/04/2018,Adult Social Care,ARBORETUM NURSING HOME.,04/04/2018,"2,767.14",73019-PSE'S-PRIV CONTRACTOR FEES,INTEGRATED DISCHARGE TEAM,Third Party Payments,Revenue
Walsall Council,http://opendatacommunities.org/id/metropolitan-district-council/walsall,WC91-372,30/04/2018,Adult Social Care,ARBORETUM NURSING HOME.,04/04/2018,"14,900.00",73019-PSE'S-PRIV CONTRACTOR FEES,INTEGRATED DISCHARGE TEAM,Third Party Payments,Revenue
Walsall Council,http://opendatacommunities.org/id/metropolitan-district-council/walsall,WC91-373,30/04/2018,Adult Social Care,ARBORETUM NURSING HOME.,17/04/2018,"14,900.00",73019-PSE'S-PRIV CONTRACTOR FEES,INTEGRATED DISCHARGE TEAM,Third Party Payments,Revenue
Walsall Council,http://opendatacommunities.org/id/metropolitan-district-council/walsall,WC91-374,30/04/2018,Economy & Environment,ARCADIS,23/04/2018,"6,541.66",63000-PROFESSIONAL FEES AND SERVICES,SMARTER WORKPLACES WORKPLACE SOLUTIONS,Supplies & Services,Revenue
Walsall Council,http://opendatacommunities.org/id/metropolitan-district-council/walsall,WC91-375,30/04/2018,Economy & Environment,ARCADIS,12/04/2018,"15,000.00",01001-OTHER CONSULTANTS FEES,CFR 1072 CHALLENGE BLOCK-LGF,Capital,Capital
Walsall Council,http://opendatacommunities.org/id/metropolitan-district-council/walsall,WC91-376,30/04/2018,Economy & Environment,ARCHWAY TCS LTD,17/04/2018,707.50,73025-PROFESSIONAL SERVICES-PRIV CONTRACTOR & OTHER AGENCIES,DEPOT,Third Party Payments,Revenue
Walsall Council,http://opendatacommunities.org/id/metropolitan-district-council/walsall,WC91-377,30/04/2018,Economy & Environment,ARCO GROUP,11/04/2018,299.84,60500-GENERAL MATERIALS,GROUNDS,Supplies & Services,Revenue
Walsall Council,http://opendatacommunities.org/id/metropolitan-district-council/walsall,WC91-378,30/04/2018,Adult Social Care,ARK HOME HEALTHCARE LIMITED,24/04/2018,"31,297.81",73372-DOMICILIARY CARE,OP PACKAGE/PLACEMENT COSTS,Third Party Payments,Revenue
Walsall Council,http://opendatacommunities.org/id/metropolitan-district-council/walsall,WC91-379,30/04/2018,Childrens,ARNFIELD CARE LIMITED,23/04/2018,"15,616.00",74036-EXTERNAL RESIDENTIAL CARE-OTH AGENCY PROVISION,INDEPENDENT RESIDENTIAL HOMES,Third Party Payments,Revenue
Walsall Council,http://opendatacommunities.org/id/metropolitan-district-council/walsall,WC91-380,30/04/2018,Childrens,ART OF BRILLIANCE LTD,10/04/2018,"1,508.10",30030-EXTERNAL TRAINING,SCHOOL READINESS,Employees,Revenue
Walsall Council,http://opendatacommunities.org/id/metropolitan-district-council/walsall,WC91-381,30/04/2018,Childrens,ARTHUR M GRIFFITHS & SON LTD,24/04/2018,"102,482.08",01006-SITE WORKS MAIN CONTRACTORS,CFR 929 FIBBERSLEY PRIMARY SIGNIFICANT ENLARGEMENT,Capital,Capital
Walsall Council,http://opendatacommunities.org/id/metropolitan-district-council/walsall,WC91-382,30/04/2018,Adult Social Care,ASH GRANGE CARE HOME,24/04/2018,650.57,73373-RESIDENTIAL & NURSING CARE PLACEMENTS,OP PACKAGE/PLACEMENT COSTS,Third Party Payments,Revenue
Walsall Council,http://opendatacommunities.org/id/metropolitan-district-council/walsall,WC91-383,30/04/2018,Adult Social Care,ASH GRANGE CARE HOME,24/04/2018,785.71,73373-RESIDENTIAL & NURSING CARE PLACEMENTS,MENTAL HEALTH PACKAGE/PLACEMENT COSTS,Third Party Payments,Revenue
Walsall Council,http://opendatacommunities.org/id/metropolitan-district-council/walsall,WC91-384,30/04/2018,Adult Social Care,ASH GRANGE CARE HOME,24/04/2018,785.71,73373-RESIDENTIAL & NURSING CARE PLACEMENTS,OP PACKAGE/PLACEMENT COSTS,Third Party Payments,Revenue
Walsall Council,http://opendatacommunities.org/id/metropolitan-district-council/walsall,WC91-385,30/04/2018,Adult Social Care,ASH GRANGE CARE HOME,24/04/2018,785.71,73373-RESIDENTIAL & NURSING CARE PLACEMENTS,OP PACKAGE/PLACEMENT COSTS,Third Party Payments,Revenue
Walsall Council,http://opendatacommunities.org/id/metropolitan-district-council/walsall,WC91-386,30/04/2018,Adult Social Care,ASH GRANGE CARE HOME,24/04/2018,785.71,73373-RESIDENTIAL & NURSING CARE PLACEMENTS,OP PACKAGE/PLACEMENT COSTS,Third Party Payments,Revenue
Walsall Council,http://opendatacommunities.org/id/metropolitan-district-council/walsall,WC91-387,30/04/2018,Adult Social Care,ASH GRANGE CARE HOME,24/04/2018,785.71,73373-RESIDENTIAL & NURSING CARE PLACEMENTS,OP PACKAGE/PLACEMENT COSTS,Third Party Payments,Revenue
Walsall Council,http://opendatacommunities.org/id/metropolitan-district-council/walsall,WC91-388,30/04/2018,Adult Social Care,ASH GRANGE CARE HOME,24/04/2018,785.71,73373-RESIDENTIAL & NURSING CARE PLACEMENTS,OP PACKAGE/PLACEMENT COSTS,Third Party Payments,Revenue
Walsall Council,http://opendatacommunities.org/id/metropolitan-district-council/walsall,WC91-389,30/04/2018,Adult Social Care,ASH GRANGE CARE HOME,24/04/2018,785.71,73373-RESIDENTIAL & NURSING CARE PLACEMENTS,OP PACKAGE/PLACEMENT COSTS,Third Party Payments,Revenue
Walsall Council,http://opendatacommunities.org/id/metropolitan-district-council/walsall,WC91-390,30/04/2018,Adult Social Care,ASH GRANGE CARE HOME,24/04/2018,785.72,73373-RESIDENTIAL & NURSING CARE PLACEMENTS,OP PACKAGE/PLACEMENT COSTS,Third Party Payments,Revenue
Walsall Council,http://opendatacommunities.org/id/metropolitan-district-council/walsall,WC91-391,30/04/2018,Adult Social Care,ASH GRANGE CARE HOME,24/04/2018,785.72,73373-RESIDENTIAL & NURSING CARE PLACEMENTS,OP PACKAGE/PLACEMENT COSTS,Third Party Payments,Revenue
Walsall Council,http://opendatacommunities.org/id/metropolitan-district-council/walsall,WC91-392,30/04/2018,Adult Social Care,ASH GRANGE CARE HOME,24/04/2018,785.72,73373-RESIDENTIAL & NURSING CARE PLACEMENTS,OP PACKAGE/PLACEMENT COSTS,Third Party Payments,Revenue
Walsall Council,http://opendatacommunities.org/id/metropolitan-district-council/walsall,WC91-393,30/04/2018,Adult Social Care,ASH GRANGE CARE HOME,24/04/2018,785.72,73373-RESIDENTIAL & NURSING CARE PLACEMENTS,OP PACKAGE/PLACEMENT COSTS,Third Party Payments,Revenue
Walsall Council,http://opendatacommunities.org/id/metropolitan-district-council/walsall,WC91-394,30/04/2018,Adult Social Care,ASH GRANGE CARE HOME,24/04/2018,785.72,73373-RESIDENTIAL & NURSING CARE PLACEMENTS,OP PACKAGE/PLACEMENT COSTS,Third Party Payments,Revenue
Walsall Council,http://opendatacommunities.org/id/metropolitan-district-council/walsall,WC91-395,30/04/2018,Adult Social Care,ASH GRANGE CARE HOME,24/04/2018,864.28,73373-RESIDENTIAL & NURSING CARE PLACEMENTS,OP PACKAGE/PLACEMENT COSTS,Third Party Payments,Revenue
Walsall Council,http://opendatacommunities.org/id/metropolitan-district-council/walsall,WC91-396,30/04/2018,Adult Social Care,ASH GRANGE CARE HOME,24/04/2018,864.29,73373-RESIDENTIAL & NURSING CARE PLACEMENTS,OP PACKAGE/PLACEMENT COSTS,Third Party Payments,Revenue
Walsall Council,http://opendatacommunities.org/id/metropolitan-district-council/walsall,WC91-397,30/04/2018,Adult Social Care,ASH GRANGE CARE HOME,24/04/2018,895.71,73373-RESIDENTIAL & NURSING CARE PLACEMENTS,OP PACKAGE/PLACEMENT COSTS,Third Party Payments,Revenue
Walsall Council,http://opendatacommunities.org/id/metropolitan-district-council/walsall,WC91-398,30/04/2018,Adult Social Care,ASH GRANGE CARE HOME,24/04/2018,980.46,73373-RESIDENTIAL & NURSING CARE PLACEMENTS,PD PACKAGE/PLACEMENT COSTS,Third Party Payments,Revenue
Walsall Council,http://opendatacommunities.org/id/metropolitan-district-council/walsall,WC91-399,30/04/2018,Adult Social Care,ASH GRANGE CARE HOME,24/04/2018,"1,005.43",73373-RESIDENTIAL & NURSING CARE PLACEMENTS,OP PACKAGE/PLACEMENT COSTS,Third Party Payments,Revenue
Walsall Council,http://opendatacommunities.org/id/metropolitan-district-council/walsall,WC91-400,30/04/2018,Adult Social Care,ASH GRANGE CARE HOME,24/04/2018,"1,214.28",73373-RESIDENTIAL & NURSING CARE PLACEMENTS,OP PACKAGE/PLACEMENT COSTS,Third Party Payments,Revenue
Walsall Council,http://opendatacommunities.org/id/metropolitan-district-council/walsall,WC91-401,30/04/2018,Adult Social Care,ASH GRANGE CARE HOME,24/04/2018,"1,214.28",73373-RESIDENTIAL & NURSING CARE PLACEMENTS,OP PACKAGE/PLACEMENT COSTS,Third Party Payments,Revenue
Walsall Council,http://opendatacommunities.org/id/metropolitan-district-council/walsall,WC91-402,30/04/2018,Adult Social Care,ASH GRANGE CARE HOME,24/04/2018,"1,214.28",73373-RESIDENTIAL & NURSING CARE PLACEMENTS,OP PACKAGE/PLACEMENT COSTS,Third Party Payments,Revenue
Walsall Council,http://opendatacommunities.org/id/metropolitan-district-council/walsall,WC91-403,30/04/2018,Adult Social Care,ASH GRANGE CARE HOME,24/04/2018,"1,214.28",73373-RESIDENTIAL & NURSING CARE PLACEMENTS,OP PACKAGE/PLACEMENT COSTS,Third Party Payments,Revenue
Walsall Council,http://opendatacommunities.org/id/metropolitan-district-council/walsall,WC91-404,30/04/2018,Adult Social Care,ASH GRANGE CARE HOME,24/04/2018,"1,214.28",73373-RESIDENTIAL & NURSING CARE PLACEMENTS,OP PACKAGE/PLACEMENT COSTS,Third Party Payments,Revenue
Walsall Council,http://opendatacommunities.org/id/metropolitan-district-council/walsall,WC91-405,30/04/2018,Adult Social Care,ASH GRANGE CARE HOME,24/04/2018,"1,214.29",73373-RESIDENTIAL & NURSING CARE PLACEMENTS,MENTAL HEALTH PACKAGE/PLACEMENT COSTS,Third Party Payments,Revenue
Walsall Council,http://opendatacommunities.org/id/metropolitan-district-council/walsall,WC91-406,30/04/2018,Adult Social Care,ASH GRANGE CARE HOME,24/04/2018,"1,214.29",73373-RESIDENTIAL & NURSING CARE PLACEMENTS,OP PACKAGE/PLACEMENT COSTS,Third Party Payments,Revenue
Walsall Council,http://opendatacommunities.org/id/metropolitan-district-council/walsall,WC91-407,30/04/2018,Adult Social Care,ASH GRANGE CARE HOME,24/04/2018,"1,214.29",73373-RESIDENTIAL & NURSING CARE PLACEMENTS,OP PACKAGE/PLACEMENT COSTS,Third Party Payments,Revenue
Walsall Council,http://opendatacommunities.org/id/metropolitan-district-council/walsall,WC91-408,30/04/2018,Adult Social Care,ASH GRANGE CARE HOME,24/04/2018,"1,214.29",73373-RESIDENTIAL & NURSING CARE PLACEMENTS,OP PACKAGE/PLACEMENT COSTS,Third Party Payments,Revenue
Walsall Council,http://opendatacommunities.org/id/metropolitan-district-council/walsall,WC91-409,30/04/2018,Adult Social Care,ASH GRANGE CARE HOME,24/04/2018,"1,214.29",73373-RESIDENTIAL & NURSING CARE PLACEMENTS,OP PACKAGE/PLACEMENT COSTS,Third Party Payments,Revenue
Walsall Council,http://opendatacommunities.org/id/metropolitan-district-council/walsall,WC91-410,30/04/2018,Adult Social Care,ASH GRANGE CARE HOME,24/04/2018,"1,214.29",73373-RESIDENTIAL & NURSING CARE PLACEMENTS,OP PACKAGE/PLACEMENT COSTS,Third Party Payments,Revenue
Walsall Council,http://opendatacommunities.org/id/metropolitan-district-council/walsall,WC91-411,30/04/2018,Adult Social Care,ASH GRANGE CARE HOME,24/04/2018,"1,214.29",73373-RESIDENTIAL & NURSING CARE PLACEMENTS,OP PACKAGE/PLACEMENT COSTS,Third Party Payments,Revenue
Walsall Council,http://opendatacommunities.org/id/metropolitan-district-council/walsall,WC91-412,30/04/2018,Adult Social Care,ASH GRANGE CARE HOME,24/04/2018,"1,214.29",73373-RESIDENTIAL & NURSING CARE PLACEMENTS,OP PACKAGE/PLACEMENT COSTS,Third Party Payments,Revenue
Walsall Council,http://opendatacommunities.org/id/metropolitan-district-council/walsall,WC91-413,30/04/2018,Adult Social Care,ASH GRANGE CARE HOME,24/04/2018,"1,335.71",73373-RESIDENTIAL & NURSING CARE PLACEMENTS,OP PACKAGE/PLACEMENT COSTS,Third Party Payments,Revenue
Walsall Council,http://opendatacommunities.org/id/metropolitan-district-council/walsall,WC91-414,30/04/2018,Adult Social Care,ASH GRANGE CARE HOME,24/04/2018,"1,335.72",73373-RESIDENTIAL & NURSING CARE PLACEMENTS,OP PACKAGE/PLACEMENT COSTS,Third Party Payments,Revenue
Walsall Council,http://opendatacommunities.org/id/metropolitan-district-council/walsall,WC91-415,30/04/2018,Adult Social Care,ASH GRANGE CARE HOME,24/04/2018,"1,384.29",73373-RESIDENTIAL & NURSING CARE PLACEMENTS,OP PACKAGE/PLACEMENT COSTS,Third Party Payments,Revenue
Walsall Council,http://opendatacommunities.org/id/metropolitan-district-council/walsall,WC91-416,30/04/2018,Adult Social Care,ASH GRANGE CARE HOME,24/04/2018,"1,515.26",73373-RESIDENTIAL & NURSING CARE PLACEMENTS,PD PACKAGE/PLACEMENT COSTS,Third Party Payments,Revenue
Walsall Council,http://opendatacommunities.org/id/metropolitan-district-council/walsall,WC91-417,30/04/2018,Adult Social Care,ASH GRANGE CARE HOME,09/04/2018,"2,745.71",73373-RESIDENTIAL & NURSING CARE PLACEMENTS,OP PACKAGE/PLACEMENT COSTS,Third Party Payments,Revenue
Walsall Council,http://opendatacommunities.org/id/metropolitan-district-council/walsall,WC91-418,30/04/2018,Economy & Environment,ASHCROFT MEMORIALS,03/04/2018,320.00,01023-TECHNICAL ASSISTANTS TIME,CFR 818 MANAGING MEMORIAL SAFETY,Capital,Capital
Walsall Council,http://opendatacommunities.org/id/metropolitan-district-council/walsall,WC91-419,30/04/2018,Adult Social Care,REDACTED,09/04/2018,422.00,76422-DIRECT PAYMENTS TO SOCIAL SERVICES CLIENTS,LD PACKAGE/PLACEMENT COSTS,Transfer Payments,Revenue
Walsall Council,http://opendatacommunities.org/id/metropolitan-district-council/walsall,WC91-420,30/04/2018,Adult Social Care,REDACTED,09/04/2018,"1,092.00",76422-DIRECT PAYMENTS TO SOCIAL SERVICES CLIENTS,LD PACKAGE/PLACEMENT COSTS,Transfer Payments,Revenue
Walsall Council,http://opendatacommunities.org/id/metropolitan-district-council/walsall,WC91-421,30/04/2018,Economy & Environment,ASKEWS AND HOLTS LIBRARY SERVICES LTD,16/04/2018,252.84,60501-LIBRARY BOOKS,LIBRARY STOCK AND PERFORMANCE,Supplies & Services,Revenue
Walsall Council,http://opendatacommunities.org/id/metropolitan-district-council/walsall,WC91-422,30/04/2018,Economy & Environment,ASKEWS AND HOLTS LIBRARY SERVICES LTD,16/04/2018,297.64,60501-LIBRARY BOOKS,LIBRARY STOCK AND PERFORMANCE,Supplies & Services,Revenue
Walsall Council,http://opendatacommunities.org/id/metropolitan-district-council/walsall,WC91-423,30/04/2018,Economy & Environment,ASKEWS AND HOLTS LIBRARY SERVICES LTD,16/04/2018,500.58,60501-LIBRARY BOOKS,LIBRARY STOCK AND PERFORMANCE,Supplies & Services,Revenue
Walsall Council,http://opendatacommunities.org/id/metropolitan-district-council/walsall,WC91-424,30/04/2018,Economy & Environment,ASKEWS AND HOLTS LIBRARY SERVICES LTD,16/04/2018,508.68,60501-LIBRARY BOOKS,LIBRARY STOCK AND PERFORMANCE,Supplies & Services,Revenue
Walsall Council,http://opendatacommunities.org/id/metropolitan-district-council/walsall,WC91-425,30/04/2018,Economy & Environment,ASKEWS AND HOLTS LIBRARY SERVICES LTD,16/04/2018,511.61,60501-LIBRARY BOOKS,LIBRARY STOCK AND PERFORMANCE,Supplies & Services,Revenue
Walsall Council,http://opendatacommunities.org/id/metropolitan-district-council/walsall,WC91-426,30/04/2018,Economy & Environment,ASKEWS AND HOLTS LIBRARY SERVICES LTD,16/04/2018,527.76,60501-LIBRARY BOOKS,LIBRARY STOCK AND PERFORMANCE,Supplies & Services,Revenue
Walsall Council,http://opendatacommunities.org/id/metropolitan-district-council/walsall,WC91-427,30/04/2018,Economy & Environment,ASKEWS AND HOLTS LIBRARY SERVICES LTD,16/04/2018,529.64,60501-LIBRARY BOOKS,LIBRARY STOCK AND PERFORMANCE,Supplies & Services,Revenue
Walsall Council,http://opendatacommunities.org/id/metropolitan-district-council/walsall,WC91-428,30/04/2018,Economy & Environment,ASKEWS AND HOLTS LIBRARY SERVICES LTD,18/04/2018,531.07,60501-LIBRARY BOOKS,LIBRARY STOCK AND PERFORMANCE,Supplies & Services,Revenue
Walsall Council,http://opendatacommunities.org/id/metropolitan-district-council/walsall,WC91-429,30/04/2018,Economy & Environment,ASKEWS AND HOLTS LIBRARY SERVICES LTD,18/04/2018,540.58,60501-LIBRARY BOOKS,LIBRARY STOCK AND PERFORMANCE,Supplies & Services,Revenue
Walsall Council,http://opendatacommunities.org/id/metropolitan-district-council/walsall,WC91-430,30/04/2018,Economy & Environment,ASKEWS AND HOLTS LIBRARY SERVICES LTD,16/04/2018,553.43,60501-LIBRARY BOOKS,LIBRARY STOCK AND PERFORMANCE,Supplies & Services,Revenue
Walsall Council,http://opendatacommunities.org/id/metropolitan-district-council/walsall,WC91-431,30/04/2018,Economy & Environment,ASKEWS AND HOLTS LIBRARY SERVICES LTD,16/04/2018,558.39,60501-LIBRARY BOOKS,LIBRARY STOCK AND PERFORMANCE,Supplies & Services,Revenue
Walsall Council,http://opendatacommunities.org/id/metropolitan-district-council/walsall,WC91-432,30/04/2018,Economy & Environment,ASKEWS AND HOLTS LIBRARY SERVICES LTD,18/04/2018,565.59,60501-LIBRARY BOOKS,LIBRARY STOCK AND PERFORMANCE,Supplies & Services,Revenue
Walsall Council,http://opendatacommunities.org/id/metropolitan-district-council/walsall,WC91-433,30/04/2018,Economy & Environment,ASKEWS AND HOLTS LIBRARY SERVICES LTD,16/04/2018,573.30,60501-LIBRARY BOOKS,LIBRARY STOCK AND PERFORMANCE,Supplies & Services,Revenue
Walsall Council,http://opendatacommunities.org/id/metropolitan-district-council/walsall,WC91-434,30/04/2018,Economy & Environment,ASKEWS AND HOLTS LIBRARY SERVICES LTD,16/04/2018,576.52,60501-LIBRARY BOOKS,LIBRARY STOCK AND PERFORMANCE,Supplies & Services,Revenue
Walsall Council,http://opendatacommunities.org/id/metropolitan-district-council/walsall,WC91-435,30/04/2018,Economy & Environment,ASKEWS AND HOLTS LIBRARY SERVICES LTD,18/04/2018,577.73,60501-LIBRARY BOOKS,LIBRARY STOCK AND PERFORMANCE,Supplies & Services,Revenue
Walsall Council,http://opendatacommunities.org/id/metropolitan-district-council/walsall,WC91-436,30/04/2018,Economy & Environment,ASKEWS AND HOLTS LIBRARY SERVICES LTD,16/04/2018,593.57,60501-LIBRARY BOOKS,LIBRARY STOCK AND PERFORMANCE,Supplies & Services,Revenue
Walsall Council,http://opendatacommunities.org/id/metropolitan-district-council/walsall,WC91-437,30/04/2018,Economy & Environment,ASKEWS AND HOLTS LIBRARY SERVICES LTD,16/04/2018,596.57,60501-LIBRARY BOOKS,LIBRARY STOCK AND PERFORMANCE,Supplies & Services,Revenue
Walsall Council,http://opendatacommunities.org/id/metropolitan-district-council/walsall,WC91-438,30/04/2018,Economy & Environment,ASKEWS AND HOLTS LIBRARY SERVICES LTD,16/04/2018,606.74,60501-LIBRARY BOOKS,LIBRARY STOCK AND PERFORMANCE,Supplies & Services,Revenue
Walsall Council,http://opendatacommunities.org/id/metropolitan-district-council/walsall,WC91-439,30/04/2018,Economy & Environment,ASKEWS AND HOLTS LIBRARY SERVICES LTD,16/04/2018,613.09,60501-LIBRARY BOOKS,LIBRARY STOCK AND PERFORMANCE,Supplies & Services,Revenue
Walsall Council,http://opendatacommunities.org/id/metropolitan-district-council/walsall,WC91-440,30/04/2018,Economy & Environment,ASKEWS AND HOLTS LIBRARY SERVICES LTD,16/04/2018,659.22,60501-LIBRARY BOOKS,LIBRARY STOCK AND PERFORMANCE,Supplies & Services,Revenue
Walsall Council,http://opendatacommunities.org/id/metropolitan-district-council/walsall,WC91-441,30/04/2018,Economy & Environment,ASKEWS AND HOLTS LIBRARY SERVICES LTD,16/04/2018,660.16,60501-LIBRARY BOOKS,LIBRARY STOCK AND PERFORMANCE,Supplies & Services,Revenue
Walsall Council,http://opendatacommunities.org/id/metropolitan-district-council/walsall,WC91-442,30/04/2018,Economy & Environment,ASKEWS AND HOLTS LIBRARY SERVICES LTD,18/04/2018,660.74,60501-LIBRARY BOOKS,LIBRARY STOCK AND PERFORMANCE,Supplies & Services,Revenue
Walsall Council,http://opendatacommunities.org/id/metropolitan-district-council/walsall,WC91-443,30/04/2018,Economy & Environment,ASKEWS AND HOLTS LIBRARY SERVICES LTD,18/04/2018,662.70,60501-LIBRARY BOOKS,LIBRARY STOCK AND PERFORMANCE,Supplies & Services,Revenue
Walsall Council,http://opendatacommunities.org/id/metropolitan-district-council/walsall,WC91-444,30/04/2018,Economy & Environment,ASKEWS AND HOLTS LIBRARY SERVICES LTD,18/04/2018,663.06,60501-LIBRARY BOOKS,LIBRARY STOCK AND PERFORMANCE,Supplies & Services,Revenue
Walsall Council,http://opendatacommunities.org/id/metropolitan-district-council/walsall,WC91-445,30/04/2018,Economy & Environment,ASKEWS AND HOLTS LIBRARY SERVICES LTD,16/04/2018,664.22,60501-LIBRARY BOOKS,LIBRARY STOCK AND PERFORMANCE,Supplies & Services,Revenue
Walsall Council,http://opendatacommunities.org/id/metropolitan-district-council/walsall,WC91-446,30/04/2018,Economy & Environment,ASKEWS AND HOLTS LIBRARY SERVICES LTD,16/04/2018,667.48,60501-LIBRARY BOOKS,LIBRARY STOCK AND PERFORMANCE,Supplies & Services,Revenue
Walsall Council,http://opendatacommunities.org/id/metropolitan-district-council/walsall,WC91-447,30/04/2018,Economy & Environment,ASKEWS AND HOLTS LIBRARY SERVICES LTD,16/04/2018,781.85,60501-LIBRARY BOOKS,LIBRARY STOCK AND PERFORMANCE,Supplies & Services,Revenue
Walsall Council,http://opendatacommunities.org/id/metropolitan-district-council/walsall,WC91-448,30/04/2018,Economy & Environment,ASKEWS AND HOLTS LIBRARY SERVICES LTD,16/04/2018,782.42,60501-LIBRARY BOOKS,LIBRARY STOCK AND PERFORMANCE,Supplies & Services,Revenue
Walsall Council,http://opendatacommunities.org/id/metropolitan-district-council/walsall,WC91-449,30/04/2018,Economy & Environment,ASKEWS AND HOLTS LIBRARY SERVICES LTD,18/04/2018,783.94,60501-LIBRARY BOOKS,LIBRARY STOCK AND PERFORMANCE,Supplies & Services,Revenue
Walsall Council,http://opendatacommunities.org/id/metropolitan-district-council/walsall,WC91-450,30/04/2018,Economy & Environment,ASKEWS AND HOLTS LIBRARY SERVICES LTD,16/04/2018,785.33,60501-LIBRARY BOOKS,LIBRARY STOCK AND PERFORMANCE,Supplies & Services,Revenue
Walsall Council,http://opendatacommunities.org/id/metropolitan-district-council/walsall,WC91-451,30/04/2018,Economy & Environment,ASKEWS AND HOLTS LIBRARY SERVICES LTD,16/04/2018,787.86,60501-LIBRARY BOOKS,LIBRARY STOCK AND PERFORMANCE,Supplies & Services,Revenue
Walsall Council,http://opendatacommunities.org/id/metropolitan-district-council/walsall,WC91-452,30/04/2018,Economy & Environment,ASKEWS AND HOLTS LIBRARY SERVICES LTD,16/04/2018,789.87,60501-LIBRARY BOOKS,LIBRARY STOCK AND PERFORMANCE,Supplies & Services,Revenue
Walsall Council,http://opendatacommunities.org/id/metropolitan-district-council/walsall,WC91-453,30/04/2018,Economy & Environment,ASKEWS AND HOLTS LIBRARY SERVICES LTD,16/04/2018,791.01,60501-LIBRARY BOOKS,LIBRARY STOCK AND PERFORMANCE,Supplies & Services,Revenue
Walsall Council,http://opendatacommunities.org/id/metropolitan-district-council/walsall,WC91-454,30/04/2018,Economy & Environment,ASKEWS AND HOLTS LIBRARY SERVICES LTD,16/04/2018,796.96,60501-LIBRARY BOOKS,LIBRARY STOCK AND PERFORMANCE,Supplies & Services,Revenue
Walsall Council,http://opendatacommunities.org/id/metropolitan-district-council/walsall,WC91-455,30/04/2018,Adult Social Care,REDACTED,09/04/2018,831.60,76422-DIRECT PAYMENTS TO SOCIAL SERVICES CLIENTS,OP PACKAGE/PLACEMENT COSTS,Transfer Payments,Revenue
Walsall Council,http://opendatacommunities.org/id/metropolitan-district-council/walsall,WC91-456,30/04/2018,Adult Social Care,ASSURED HEALTHCARE SOLUTIONS (PARK FARM LODGE),03/04/2018,"2,157.07",73373-RESIDENTIAL & NURSING CARE PLACEMENTS,OP PACKAGE/PLACEMENT COSTS,Third Party Payments,Revenue
Walsall Council,http://opendatacommunities.org/id/metropolitan-district-council/walsall,WC91-457,30/04/2018,Economy & Environment,AUCTUS TRAINING SOLUTIONS,18/04/2018,112.50,63000-PROFESSIONAL FEES AND SERVICES,YEI (IMPACT) PROGRAMME,Supplies & Services,Revenue
Walsall Council,http://opendatacommunities.org/id/metropolitan-district-council/walsall,WC91-458,30/04/2018,Economy & Environment,AUCTUS TRAINING SOLUTIONS,18/04/2018,112.50,63000-PROFESSIONAL FEES AND SERVICES,YEI ESF FUNDING,Supplies & Services,Revenue
Walsall Council,http://opendatacommunities.org/id/metropolitan-district-council/walsall,WC91-459,30/04/2018,Economy & Environment,AUCTUS TRAINING SOLUTIONS,18/04/2018,112.50,30030-EXTERNAL TRAINING,YEI (IMPACT) PROGRAMME,Employees,Revenue
Walsall Council,http://opendatacommunities.org/id/metropolitan-district-council/walsall,WC91-460,30/04/2018,Economy & Environment,AUCTUS TRAINING SOLUTIONS,18/04/2018,112.50,30030-EXTERNAL TRAINING,YEI ESF FUNDING,Employees,Revenue
Walsall Council,http://opendatacommunities.org/id/metropolitan-district-council/walsall,WC91-461,30/04/2018,Economy & Environment,AUCTUS TRAINING SOLUTIONS,20/04/2018,112.50,63000-PROFESSIONAL FEES AND SERVICES,YEI (IMPACT) PROGRAMME,Supplies & Services,Revenue
Walsall Council,http://opendatacommunities.org/id/metropolitan-district-council/walsall,WC91-462,30/04/2018,Economy & Environment,AUCTUS TRAINING SOLUTIONS,20/04/2018,112.50,63000-PROFESSIONAL FEES AND SERVICES,YEI ESF FUNDING,Supplies & Services,Revenue
Walsall Council,http://opendatacommunities.org/id/metropolitan-district-council/walsall,WC91-463,30/04/2018,Economy & Environment,AUCTUS TRAINING SOLUTIONS,18/04/2018,225.00,63000-PROFESSIONAL FEES AND SERVICES,YEI (IMPACT) PROGRAMME,Supplies & Services,Revenue
Walsall Council,http://opendatacommunities.org/id/metropolitan-district-council/walsall,WC91-464,30/04/2018,Economy & Environment,AUCTUS TRAINING SOLUTIONS,18/04/2018,225.00,63000-PROFESSIONAL FEES AND SERVICES,YEI ESF FUNDING,Supplies & Services,Revenue
Walsall Council,http://opendatacommunities.org/id/metropolitan-district-council/walsall,WC91-465,30/04/2018,Economy & Environment,AUCTUS TRAINING SOLUTIONS,20/04/2018,450.00,63000-PROFESSIONAL FEES AND SERVICES,YEI (IMPACT) PROGRAMME,Supplies & Services,Revenue
Walsall Council,http://opendatacommunities.org/id/metropolitan-district-council/walsall,WC91-466,30/04/2018,Economy & Environment,AUCTUS TRAINING SOLUTIONS,20/04/2018,450.00,63000-PROFESSIONAL FEES AND SERVICES,YEI ESF FUNDING,Supplies & Services,Revenue
Walsall Council,http://opendatacommunities.org/id/metropolitan-district-council/walsall,WC91-467,30/04/2018,Economy & Environment,AUCTUS TRAINING SOLUTIONS,13/04/2018,"1,100.00",63000-PROFESSIONAL FEES AND SERVICES,YEI (IMPACT) PROGRAMME,Supplies & Services,Revenue
Walsall Council,http://opendatacommunities.org/id/metropolitan-district-council/walsall,WC91-468,30/04/2018,Economy & Environment,AUCTUS TRAINING SOLUTIONS,13/04/2018,"1,100.00",63000-PROFESSIONAL FEES AND SERVICES,YEI ESF FUNDING,Supplies & Services,Revenue
Walsall Council,http://opendatacommunities.org/id/metropolitan-district-council/walsall,WC91-469,30/04/2018,Economy & Environment,AUCTUS TRAINING SOLUTIONS,18/04/2018,"1,100.00",63000-PROFESSIONAL FEES AND SERVICES,YEI (IMPACT) PROGRAMME,Supplies & Services,Revenue
Walsall Council,http://opendatacommunities.org/id/metropolitan-district-council/walsall,WC91-470,30/04/2018,Economy & Environment,AUCTUS TRAINING SOLUTIONS,18/04/2018,"1,100.00",63000-PROFESSIONAL FEES AND SERVICES,YEI ESF FUNDING,Supplies & Services,Revenue
Walsall Council,http://opendatacommunities.org/id/metropolitan-district-council/walsall,WC91-471,30/04/2018,Resources and Transformation,AUDITEL RENTAL & SERVICE LTD,09/04/2018,"2,815.00","40000-REPAIRS,ALTERATIONS & MAINTENANCE-PREM",CENTRALISED MAINTENANCE,Premises,Revenue
Walsall Council,http://opendatacommunities.org/id/metropolitan-district-council/walsall,WC91-472,30/04/2018,Resources and Transformation,AURORA GRAPHICS & DISPLAYS LTD,13/04/2018,225.00,62008-OUTWORK-PRINT ROOM,PRINTING SERVICES,Supplies & Services,Revenue
Walsall Council,http://opendatacommunities.org/id/metropolitan-district-council/walsall,WC91-473,30/04/2018,Adult Social Care,AUTISM WEST MIDLANDS,24/04/2018,"7,479.02",73373-RESIDENTIAL & NURSING CARE PLACEMENTS,LD PACKAGE/PLACEMENT COSTS,Third Party Payments,Revenue
Walsall Council,http://opendatacommunities.org/id/metropolitan-district-council/walsall,WC91-474,30/04/2018,Adult Social Care,AUTISM WEST MIDLANDS 001,24/04/2018,"4,999.33",73373-RESIDENTIAL & NURSING CARE PLACEMENTS,LD PACKAGE/PLACEMENT COSTS,Third Party Payments,Revenue
Walsall Council,http://opendatacommunities.org/id/metropolitan-district-council/walsall,WC91-475,30/04/2018,Economy & Environment,AUTORITE INDUSTRIES (WILLENHALL)LTD,04/04/2018,350.00,73025-PROFESSIONAL SERVICES-PRIV CONTRACTOR & OTHER AGENCIES,WASTE COLLECTIONS,Third Party Payments,Revenue
Walsall Council,http://opendatacommunities.org/id/metropolitan-district-council/walsall,WC91-476,30/04/2018,Economy & Environment,AVADO LEARNING LIMITED,06/04/2018,"1,081.25",63000-PROFESSIONAL FEES AND SERVICES,YEI (IMPACT) PROGRAMME,Supplies & Services,Revenue
Walsall Council,http://opendatacommunities.org/id/metropolitan-district-council/walsall,WC91-477,30/04/2018,Economy & Environment,AVADO LEARNING LIMITED,06/04/2018,"1,081.25",63000-PROFESSIONAL FEES AND SERVICES,YEI ESF FUNDING,Supplies & Services,Revenue
Walsall Council,http://opendatacommunities.org/id/metropolitan-district-council/walsall,WC91-478,30/04/2018,Adult Social Care,AVE MARIA CARE SERVICES,03/04/2018,577.92,73372-DOMICILIARY CARE,OP PACKAGE/PLACEMENT COSTS,Third Party Payments,Revenue
Walsall Council,http://opendatacommunities.org/id/metropolitan-district-council/walsall,WC91-479,30/04/2018,Adult Social Care,REDACTED,09/04/2018,"1,134.15",76422-DIRECT PAYMENTS TO SOCIAL SERVICES CLIENTS,OP PACKAGE/PLACEMENT COSTS,Transfer Payments,Revenue
Walsall Council,http://opendatacommunities.org/id/metropolitan-district-council/walsall,WC91-480,30/04/2018,Childrens,REDACTED,09/04/2018,"1,284.00",76422-DIRECT PAYMENTS TO SOCIAL SERVICES CLIENTS,FAMILY SUPPORT - DIRECT PAYMENTS,Transfer Payments,Revenue
Walsall Council,http://opendatacommunities.org/id/metropolitan-district-council/walsall,WC91-481,30/04/2018,Adult Social Care,REDACTED,09/04/2018,"3,088.80",76422-DIRECT PAYMENTS TO SOCIAL SERVICES CLIENTS,LD PACKAGE/PLACEMENT COSTS,Transfer Payments,Revenue
Walsall Council,http://opendatacommunities.org/id/metropolitan-district-council/walsall,WC91-482,30/04/2018,Childrens,REDACTED,10/04/2018,464.00,76000-TRANSFER PAYMENTS - SOCIAL SERVICES CLIENTS,TRANSITION AND LEAVING CARE PLACEMENTS,Transfer Payments,Revenue
Walsall Council,http://opendatacommunities.org/id/metropolitan-district-council/walsall,WC91-483,30/04/2018,Childrens,REDACTED,10/04/2018,464.00,76000-TRANSFER PAYMENTS - SOCIAL SERVICES CLIENTS,TRANSITION AND LEAVING CARE PLACEMENTS,Transfer Payments,Revenue
Walsall Council,http://opendatacommunities.org/id/metropolitan-district-council/walsall,WC91-484,30/04/2018,Childrens,REDACTED,25/04/2018,464.00,76000-TRANSFER PAYMENTS - SOCIAL SERVICES CLIENTS,TRANSITION AND LEAVING CARE PLACEMENTS,Transfer Payments,Revenue
Walsall Council,http://opendatacommunities.org/id/metropolitan-district-council/walsall,WC91-485,30/04/2018,Childrens,REDACTED,25/04/2018,464.00,76000-TRANSFER PAYMENTS - SOCIAL SERVICES CLIENTS,TRANSITION AND LEAVING CARE PLACEMENTS,Transfer Payments,Revenue
Walsall Council,http://opendatacommunities.org/id/metropolitan-district-council/walsall,WC91-486,30/04/2018,Resources and Transformation,BACS PAYMENT SCHEMES LIMITED,20/04/2018,"1,500.00",64500-PUBLICATIONS/ORGANISATIONS-SUBSCRIPTIONS,CORPORATE PAYROLL & PENSIONS TEAM,Supplies & Services,Revenue
Walsall Council,http://opendatacommunities.org/id/metropolitan-district-council/walsall,WC91-487,30/04/2018,Economy & Environment,BAKER HALL PARTNERSHIP,09/04/2018,441.50,63000-PROFESSIONAL FEES AND SERVICES,BUILDING CONTROL REVENUE FUNDED,Supplies & Services,Revenue
Walsall Council,http://opendatacommunities.org/id/metropolitan-district-council/walsall,WC91-488,30/04/2018,Adult Social Care,REDACTED,09/04/2018,480.00,76422-DIRECT PAYMENTS TO SOCIAL SERVICES CLIENTS,MENTAL HEALTH PACKAGE/PLACEMENT COSTS,Transfer Payments,Revenue
Walsall Council,http://opendatacommunities.org/id/metropolitan-district-council/walsall,WC91-489,30/04/2018,Adult Social Care,REDACTED,09/04/2018,"3,311.34",76422-DIRECT PAYMENTS TO SOCIAL SERVICES CLIENTS,LD PACKAGE/PLACEMENT COSTS,Transfer Payments,Revenue
Walsall Council,http://opendatacommunities.org/id/metropolitan-district-council/walsall,WC91-490,30/04/2018,Resources and Transformation,BANNERBRIDGE PLC,09/04/2018,"2,312.00",63000-PROFESSIONAL FEES AND SERVICES,HR DIRECT SERVICES,Supplies & Services,Revenue
Walsall Council,http://opendatacommunities.org/id/metropolitan-district-council/walsall,WC91-491,30/04/2018,Adult Social Care,REDACTED,09/04/2018,"1,582.87",76422-DIRECT PAYMENTS TO SOCIAL SERVICES CLIENTS,OP PACKAGE/PLACEMENT COSTS,Transfer Payments,Revenue
Walsall Council,http://opendatacommunities.org/id/metropolitan-district-council/walsall,WC91-492,30/04/2018,Childrens,REDACTED,09/04/2018,555.72,74501-MAINTENANCE ALLOWANCE-FOSTER CARERS,FAMILY & FRIENDS FOSTER CARE PROVISION,Transfer Payments,Revenue
Walsall Council,http://opendatacommunities.org/id/metropolitan-district-council/walsall,WC91-493,30/04/2018,Adult Social Care,REDACTED,09/04/2018,887.95,76422-DIRECT PAYMENTS TO SOCIAL SERVICES CLIENTS,OP PACKAGE/PLACEMENT COSTS,Transfer Payments,Revenue
Walsall Council,http://opendatacommunities.org/id/metropolitan-district-council/walsall,WC91-494,30/04/2018,Adult Social Care,REDACTED,09/04/2018,810.69,76422-DIRECT PAYMENTS TO SOCIAL SERVICES CLIENTS,OP PACKAGE/PLACEMENT COSTS,Transfer Payments,Revenue
Walsall Council,http://opendatacommunities.org/id/metropolitan-district-council/walsall,WC91-495,30/04/2018,Economy & Environment,BARCHAM TREES PLC,19/04/2018,446.80,60500-GENERAL MATERIALS,COUNTRYSIDE MANAGEMENT-OTHER,Supplies & Services,Revenue
Walsall Council,http://opendatacommunities.org/id/metropolitan-district-council/walsall,WC91-496,30/04/2018,Childrens,BARNARDOS SERVICES LTD,23/04/2018,"3,116.40",74037-INDEPENDENT FOSTER CARE-OTH AGENCY PROVISION,EXTERNAL FOSTER CARE PROVISION,Third Party Payments,Revenue
Walsall Council,http://opendatacommunities.org/id/metropolitan-district-council/walsall,WC91-497,30/04/2018,Childrens,BARR BEACON SCHOOL TRUST,24/04/2018,"1,215.38",66502-TOP UP FUNDING -GRANTS TO SCHOOLS,BARR BEACON SCHOOL TRUST (ACADEMY),Third Party Payments,Revenue
Walsall Council,http://opendatacommunities.org/id/metropolitan-district-council/walsall,WC91-498,30/04/2018,Adult Social Care,BARTHOLAMEW LODGE CARE HOME,24/04/2018,-628.57,73373-RESIDENTIAL & NURSING CARE PLACEMENTS,OP PACKAGE/PLACEMENT COSTS,Third Party Payments,Revenue
Walsall Council,http://opendatacommunities.org/id/metropolitan-district-council/walsall,WC91-499,30/04/2018,Adult Social Care,BARTHOLAMEW LODGE CARE HOME,24/04/2018,-392.86,73373-RESIDENTIAL & NURSING CARE PLACEMENTS,OP PACKAGE/PLACEMENT COSTS,Third Party Payments,Revenue
Walsall Council,http://opendatacommunities.org/id/metropolitan-district-council/walsall,WC91-500,30/04/2018,Adult Social Care,REDACTED,09/04/2018,490.40,76422-DIRECT PAYMENTS TO SOCIAL SERVICES CLIENTS,OP PACKAGE/PLACEMENT COSTS,Transfer Payments,Revenue
Walsall Council,http://opendatacommunities.org/id/metropolitan-district-council/walsall,WC91-501,30/04/2018,Economy & Environment,BAT FABRICATIONS LTD,12/04/2018,"9,000.00",01006-SITE WORKS MAIN CONTRACTORS,CFR 1253 OPEN WATER PROJECT,Capital,Capital
Walsall Council,http://opendatacommunities.org/id/metropolitan-district-council/walsall,WC91-502,30/04/2018,Childrens,BAY MEDIA LIMITED,26/04/2018,"1,800.00",68001-PUBLICITY & ADVERTISING (NOT STAFF ADVERTISING),FOSTERING SUPPORT TEAM,Supplies & Services,Revenue
Walsall Council,http://opendatacommunities.org/id/metropolitan-district-council/walsall,WC91-503,30/04/2018,Economy & Environment,BEADEN POWERLEC LIMITED,30/04/2018,400.00,73025-PROFESSIONAL SERVICES-PRIV CONTRACTOR & OTHER AGENCIES,PARKING SERVICES OFF-STREET,Third Party Payments,Revenue
Walsall Council,http://opendatacommunities.org/id/metropolitan-district-council/walsall,WC91-504,30/04/2018,Childrens,REDACTED,23/04/2018,448.33,74506-TRAVEL-FOSTER CARERS,INTERNAL FOSTER CARE PROVISION,Transfer Payments,Revenue
Walsall Council,http://opendatacommunities.org/id/metropolitan-district-council/walsall,WC91-505,30/04/2018,Childrens,REDACTED,23/04/2018,600.00,74501-MAINTENANCE ALLOWANCE-FOSTER CARERS,INTERNAL FOSTER CARE PROVISION,Transfer Payments,Revenue
Walsall Council,http://opendatacommunities.org/id/metropolitan-district-council/walsall,WC91-506,30/04/2018,Childrens,REDACTED,23/04/2018,800.00,74508-INTERNAL FOSTER CARERS-CARER FEES,INTERNAL FOSTER CARE PROVISION,Transfer Payments,Revenue
Walsall Council,http://opendatacommunities.org/id/metropolitan-district-council/walsall,WC91-507,30/04/2018,Adult Social Care,REDACTED,09/04/2018,754.66,76422-DIRECT PAYMENTS TO SOCIAL SERVICES CLIENTS,OP PACKAGE/PLACEMENT COSTS,Transfer Payments,Revenue
Walsall Council,http://opendatacommunities.org/id/metropolitan-district-council/walsall,WC91-508,30/04/2018,Adult Social Care,BELVIDERE COURT,09/04/2018,"2,142.86",73373-RESIDENTIAL & NURSING CARE PLACEMENTS,MENTAL HEALTH PACKAGE/PLACEMENT COSTS,Third Party Payments,Revenue
Walsall Council,http://opendatacommunities.org/id/metropolitan-district-council/walsall,WC91-509,30/04/2018,Adult Social Care,BELVIDERE COURT,09/04/2018,"2,161.89",73373-RESIDENTIAL & NURSING CARE PLACEMENTS,MENTAL HEALTH PACKAGE/PLACEMENT COSTS,Third Party Payments,Revenue
Walsall Council,http://opendatacommunities.org/id/metropolitan-district-council/walsall,WC91-510,30/04/2018,Adult Social Care,BELVIDERE COURT,09/04/2018,"2,357.14",73373-RESIDENTIAL & NURSING CARE PLACEMENTS,OP PACKAGE/PLACEMENT COSTS,Third Party Payments,Revenue
Walsall Council,http://opendatacommunities.org/id/metropolitan-district-council/walsall,WC91-511,30/04/2018,Adult Social Care,BELVIDERE COURT,09/04/2018,"2,357.15",73373-RESIDENTIAL & NURSING CARE PLACEMENTS,OP PACKAGE/PLACEMENT COSTS,Third Party Payments,Revenue
Walsall Council,http://opendatacommunities.org/id/metropolitan-district-council/walsall,WC91-512,30/04/2018,Adult Social Care,BELVIDERE COURT,09/04/2018,"3,642.86",73373-RESIDENTIAL & NURSING CARE PLACEMENTS,MENTAL HEALTH PACKAGE/PLACEMENT COSTS,Third Party Payments,Revenue
Walsall Council,http://opendatacommunities.org/id/metropolitan-district-council/walsall,WC91-513,30/04/2018,Childrens,BEMROSEBOOTH LTD,11/04/2018,"1,599.40",68001-PUBLICITY & ADVERTISING (NOT STAFF ADVERTISING),RECRUITMENT TEAM,Supplies & Services,Revenue
Walsall Council,http://opendatacommunities.org/id/metropolitan-district-council/walsall,WC91-514,30/04/2018,Adult Social Care,REDACTED,09/04/2018,"2,504.73",76422-DIRECT PAYMENTS TO SOCIAL SERVICES CLIENTS,LD PACKAGE/PLACEMENT COSTS,Transfer Payments,Revenue
Walsall Council,http://opendatacommunities.org/id/metropolitan-district-council/walsall,WC91-515,30/04/2018,Adult Social Care,BENTLEY COURT PRIORY,03/04/2018,"2,109.24",73373-RESIDENTIAL & NURSING CARE PLACEMENTS,OP PACKAGE/PLACEMENT COSTS,Third Party Payments,Revenue
Walsall Council,http://opendatacommunities.org/id/metropolitan-district-council/walsall,WC91-516,30/04/2018,Adult Social Care,BENTLEY COURT PRIORY,03/04/2018,"2,435.71",73373-RESIDENTIAL & NURSING CARE PLACEMENTS,OP PACKAGE/PLACEMENT COSTS,Third Party Payments,Revenue
Walsall Council,http://opendatacommunities.org/id/metropolitan-district-council/walsall,WC91-517,30/04/2018,Adult Social Care,BENTLEY COURT PRIORY,03/04/2018,"2,435.71",73373-RESIDENTIAL & NURSING CARE PLACEMENTS,MENTAL HEALTH PACKAGE/PLACEMENT COSTS,Third Party Payments,Revenue
Walsall Council,http://opendatacommunities.org/id/metropolitan-district-council/walsall,WC91-518,30/04/2018,Adult Social Care,BENTLEY COURT PRIORY,03/04/2018,"2,435.72",73373-RESIDENTIAL & NURSING CARE PLACEMENTS,OP PACKAGE/PLACEMENT COSTS,Third Party Payments,Revenue
Walsall Council,http://opendatacommunities.org/id/metropolitan-district-council/walsall,WC91-519,30/04/2018,Adult Social Care,BENTLEY COURT PRIORY,03/04/2018,"2,435.72",73373-RESIDENTIAL & NURSING CARE PLACEMENTS,OP PACKAGE/PLACEMENT COSTS,Third Party Payments,Revenue
Walsall Council,http://opendatacommunities.org/id/metropolitan-district-council/walsall,WC91-520,30/04/2018,Adult Social Care,BENTLEY COURT PRIORY,20/04/2018,"24,033.46",73019-PSE'S-PRIV CONTRACTOR FEES,INTEGRATED DISCHARGE TEAM,Third Party Payments,Revenue
Walsall Council,http://opendatacommunities.org/id/metropolitan-district-council/walsall,WC91-521,30/04/2018,Childrens,BERRY GIFFORD LTD,20/04/2018,"2,903.04",76010-ACCOMMODATION AND RELATED COSTS-ASSISTANCE TO S/S CLIENTS,TRANSITION AND LEAVING CARE PLACEMENTS,Transfer Payments,Revenue
Walsall Council,http://opendatacommunities.org/id/metropolitan-district-council/walsall,WC91-522,30/04/2018,Holding Accounts,BERRYMANS LACE MAWER LLP,17/04/2018,"1,460.50",67001-MISC INSURANCES - PAYMENT OF CLAIMS,PUBLIC LIABILITY,Supplies & Services,Revenue
Walsall Council,http://opendatacommunities.org/id/metropolitan-district-council/walsall,WC91-523,30/04/2018,Holding Accounts,BERRYMANS LACE MAWER LLP,17/04/2018,"2,334.50",67001-MISC INSURANCES - PAYMENT OF CLAIMS,PUBLIC LIABILITY,Supplies & Services,Revenue
Walsall Council,http://opendatacommunities.org/id/metropolitan-district-council/walsall,WC91-524,30/04/2018,Holding Accounts,BERRYMANS LACE MAWER LLP,17/04/2018,"3,427.00",67001-MISC INSURANCES - PAYMENT OF CLAIMS,PUBLIC LIABILITY,Supplies & Services,Revenue
Walsall Council,http://opendatacommunities.org/id/metropolitan-district-council/walsall,WC91-525,30/04/2018,Holding Accounts,BERRYMANS LACE MAWER LLP,17/04/2018,"7,072.50",67001-MISC INSURANCES - PAYMENT OF CLAIMS,PUBLIC LIABILITY,Supplies & Services,Revenue
Walsall Council,http://opendatacommunities.org/id/metropolitan-district-council/walsall,WC91-526,30/04/2018,Holding Accounts,BERRYMANS LACE MAWER LLP,17/04/2018,"7,104.17",67001-MISC INSURANCES - PAYMENT OF CLAIMS,PUBLIC LIABILITY,Supplies & Services,Revenue
Walsall Council,http://opendatacommunities.org/id/metropolitan-district-council/walsall,WC91-527,30/04/2018,Adult Social Care,REDACTED,09/04/2018,"1,063.82",76422-DIRECT PAYMENTS TO SOCIAL SERVICES CLIENTS,OP PACKAGE/PLACEMENT COSTS,Transfer Payments,Revenue
Walsall Council,http://opendatacommunities.org/id/metropolitan-district-council/walsall,WC91-528,30/04/2018,Adult Social Care,REDACTED,09/04/2018,"1,733.90",76422-DIRECT PAYMENTS TO SOCIAL SERVICES CLIENTS,OP PACKAGE/PLACEMENT COSTS,Transfer Payments,Revenue
Walsall Council,http://opendatacommunities.org/id/metropolitan-district-council/walsall,WC91-529,30/04/2018,Childrens,REDACTED,23/04/2018,400.00,74508-INTERNAL FOSTER CARERS-CARER FEES,INTERNAL FOSTER CARE PROVISION,Transfer Payments,Revenue
Walsall Council,http://opendatacommunities.org/id/metropolitan-district-council/walsall,WC91-530,30/04/2018,Adult Social Care,REDACTED,09/04/2018,548.10,76422-DIRECT PAYMENTS TO SOCIAL SERVICES CLIENTS,OP PACKAGE/PLACEMENT COSTS,Transfer Payments,Revenue
Walsall Council,http://opendatacommunities.org/id/metropolitan-district-council/walsall,WC91-531,30/04/2018,Adult Social Care,REDACTED,09/04/2018,"1,400.00",76422-DIRECT PAYMENTS TO SOCIAL SERVICES CLIENTS,OP PACKAGE/PLACEMENT COSTS,Transfer Payments,Revenue
Walsall Council,http://opendatacommunities.org/id/metropolitan-district-council/walsall,WC91-532,30/04/2018,Adult Social Care,BESCOT LODGE RESIDENTIAL CARE HOME,09/04/2018,-532.29,73373-RESIDENTIAL & NURSING CARE PLACEMENTS,OP PACKAGE/PLACEMENT COSTS,Third Party Payments,Revenue
Walsall Council,http://opendatacommunities.org/id/metropolitan-district-council/walsall,WC91-533,30/04/2018,Adult Social Care,BESCOT LODGE RESIDENTIAL CARE HOME,18/04/2018,946.29,73373-RESIDENTIAL & NURSING CARE PLACEMENTS,OP PACKAGE/PLACEMENT COSTS,Third Party Payments,Revenue
Walsall Council,http://opendatacommunities.org/id/metropolitan-district-council/walsall,WC91-534,30/04/2018,Adult Social Care,BESCOT LODGE RESIDENTIAL CARE HOME,18/04/2018,"1,656.00",73373-RESIDENTIAL & NURSING CARE PLACEMENTS,OP PACKAGE/PLACEMENT COSTS,Third Party Payments,Revenue
Walsall Council,http://opendatacommunities.org/id/metropolitan-district-council/walsall,WC91-535,30/04/2018,Adult Social Care,BESCOT LODGE RESIDENTIAL CARE HOME,09/04/2018,"2,010.55",73373-RESIDENTIAL & NURSING CARE PLACEMENTS,OP PACKAGE/PLACEMENT COSTS,Third Party Payments,Revenue
Walsall Council,http://opendatacommunities.org/id/metropolitan-district-council/walsall,WC91-536,30/04/2018,Adult Social Care,BESCOT LODGE RESIDENTIAL CARE HOME,09/04/2018,"2,010.56",73373-RESIDENTIAL & NURSING CARE PLACEMENTS,OP PACKAGE/PLACEMENT COSTS,Third Party Payments,Revenue
Walsall Council,http://opendatacommunities.org/id/metropolitan-district-council/walsall,WC91-537,30/04/2018,Adult Social Care,BESCOT LODGE RESIDENTIAL CARE HOME,18/04/2018,"2,010.56",73373-RESIDENTIAL & NURSING CARE PLACEMENTS,OP PACKAGE/PLACEMENT COSTS,Third Party Payments,Revenue
Walsall Council,http://opendatacommunities.org/id/metropolitan-district-council/walsall,WC91-538,30/04/2018,Adult Social Care,BESCOT LODGE RESIDENTIAL CARE HOME,09/04/2018,"2,142.86",73373-RESIDENTIAL & NURSING CARE PLACEMENTS,OP PACKAGE/PLACEMENT COSTS,Third Party Payments,Revenue
Walsall Council,http://opendatacommunities.org/id/metropolitan-district-council/walsall,WC91-539,30/04/2018,Economy & Environment,BESCOT STADIUM SUNDAY MARKET LTD,20/04/2018,"2,800.00",73025-PROFESSIONAL SERVICES-PRIV CONTRACTOR & OTHER AGENCIES,WILLENHALL MARKET,Third Party Payments,Revenue
Walsall Council,http://opendatacommunities.org/id/metropolitan-district-council/walsall,WC91-540,30/04/2018,Adult Social Care,BETHPHAGE.,30/04/2018,"1,026.00",73372-DOMICILIARY CARE,LD PACKAGE/PLACEMENT COSTS,Third Party Payments,Revenue
Walsall Council,http://opendatacommunities.org/id/metropolitan-district-council/walsall,WC91-541,30/04/2018,Adult Social Care,BETHPHAGE.,30/04/2018,"1,311.00",73372-DOMICILIARY CARE,LD PACKAGE/PLACEMENT COSTS,Third Party Payments,Revenue
Walsall Council,http://opendatacommunities.org/id/metropolitan-district-council/walsall,WC91-542,30/04/2018,Adult Social Care,BETHPHAGE.,30/04/2018,"1,339.52",73372-DOMICILIARY CARE,LD PACKAGE/PLACEMENT COSTS,Third Party Payments,Revenue
Walsall Council,http://opendatacommunities.org/id/metropolitan-district-council/walsall,WC91-543,30/04/2018,Adult Social Care,BETHPHAGE.,30/04/2018,"1,453.52",73372-DOMICILIARY CARE,LD PACKAGE/PLACEMENT COSTS,Third Party Payments,Revenue
Walsall Council,http://opendatacommunities.org/id/metropolitan-district-council/walsall,WC91-544,30/04/2018,Adult Social Care,BETHPHAGE.,30/04/2018,"2,693.24",73372-DOMICILIARY CARE,LD PACKAGE/PLACEMENT COSTS,Third Party Payments,Revenue
Walsall Council,http://opendatacommunities.org/id/metropolitan-district-council/walsall,WC91-545,30/04/2018,Adult Social Care,BETHPHAGE.,30/04/2018,"5,744.04",73372-DOMICILIARY CARE,LD PACKAGE/PLACEMENT COSTS,Third Party Payments,Revenue
Walsall Council,http://opendatacommunities.org/id/metropolitan-district-council/walsall,WC91-546,30/04/2018,Adult Social Care,REDACTED,09/04/2018,949.52,76422-DIRECT PAYMENTS TO SOCIAL SERVICES CLIENTS,MENTAL HEALTH PACKAGE/PLACEMENT COSTS,Transfer Payments,Revenue
Walsall Council,http://opendatacommunities.org/id/metropolitan-district-council/walsall,WC91-547,30/04/2018,Adult Social Care,REDACTED,09/04/2018,"2,767.84",76422-DIRECT PAYMENTS TO SOCIAL SERVICES CLIENTS,OP PACKAGE/PLACEMENT COSTS,Transfer Payments,Revenue
Walsall Council,http://opendatacommunities.org/id/metropolitan-district-council/walsall,WC91-548,30/04/2018,Resources and Transformation,BFA SAFETY TRAINING,04/04/2018,295.00,30030-EXTERNAL TRAINING,HEALTH & SAFETY,Employees,Revenue
Walsall Council,http://opendatacommunities.org/id/metropolitan-district-council/walsall,WC91-549,30/04/2018,Resources and Transformation,BFA SAFETY TRAINING,04/04/2018,395.00,30030-EXTERNAL TRAINING,HEALTH & SAFETY,Employees,Revenue
Walsall Council,http://opendatacommunities.org/id/metropolitan-district-council/walsall,WC91-550,30/04/2018,Resources and Transformation,BFA SAFETY TRAINING,04/04/2018,495.00,30030-EXTERNAL TRAINING,HEALTH & SAFETY,Employees,Revenue
Walsall Council,http://opendatacommunities.org/id/metropolitan-district-council/walsall,WC91-551,30/04/2018,Childrens,REDACTED,04/04/2018,456.00,52000-WITH DRIVER-HIRE OF VEHICLES,HOME TO SCHOOL TRANSPORT,Transport,Revenue
Walsall Council,http://opendatacommunities.org/id/metropolitan-district-council/walsall,WC91-552,30/04/2018,Childrens,REDACTED,09/04/2018,"1,869.60",76422-DIRECT PAYMENTS TO SOCIAL SERVICES CLIENTS,FAMILY SUPPORT - DIRECT PAYMENTS,Transfer Payments,Revenue
Walsall Council,http://opendatacommunities.org/id/metropolitan-district-council/walsall,WC91-553,30/04/2018,Childrens,REDACTED,09/04/2018,572.00,76422-DIRECT PAYMENTS TO SOCIAL SERVICES CLIENTS,FAMILY SUPPORT - DIRECT PAYMENTS,Transfer Payments,Revenue
Walsall Council,http://opendatacommunities.org/id/metropolitan-district-council/walsall,WC91-554,30/04/2018,Economy & Environment,BIOGAS TECHNOLOGY LIMITED,04/04/2018,347.00,60008-MAINTENANCE-FURNITURE & EQUIPMENT,POLLUTION DIVISION,Supplies & Services,Revenue
Walsall Council,http://opendatacommunities.org/id/metropolitan-district-council/walsall,WC91-555,30/04/2018,Childrens,BIRCHILLS C OF E COMMUNITY ACADEMY,11/04/2018,"7,065.00",66505-OTHER-GRANTS TO OTHER ORGS,EARLY YEARS - 3 YR OLDS,Third Party Payments,Revenue
Walsall Council,http://opendatacommunities.org/id/metropolitan-district-council/walsall,WC91-556,30/04/2018,Childrens,BIRCHILLS C OF E COMMUNITY ACADEMY,11/04/2018,"40,716.00",66505-OTHER-GRANTS TO OTHER ORGS,EARLY YEARS - 3 YR OLDS,Third Party Payments,Revenue
Walsall Council,http://opendatacommunities.org/id/metropolitan-district-council/walsall,WC91-557,30/04/2018,Childrens,BIRMINGHAM CITY COUNCIL,23/04/2018,"1,956.16",74037-INDEPENDENT FOSTER CARE-OTH AGENCY PROVISION,EXTERNAL FOSTER CARE PROVISION,Third Party Payments,Revenue
Walsall Council,http://opendatacommunities.org/id/metropolitan-district-council/walsall,WC91-558,30/04/2018,Childrens,BIRMINGHAM CITY COUNCIL,04/04/2018,"2,241.08",66502-TOP UP FUNDING -GRANTS TO SCHOOLS,MAINTAINED PROVIDERS,Third Party Payments,Revenue
Walsall Council,http://opendatacommunities.org/id/metropolitan-district-council/walsall,WC91-559,30/04/2018,Economy & Environment,BIRMINGHAM WOMENS AND CHILDRENS NHS FOUNDATION TRUST,25/04/2018,970.00,74000-OTHER AGENCY FEES,CORONERS SERVICE,Third Party Payments,Revenue
Walsall Council,http://opendatacommunities.org/id/metropolitan-district-council/walsall,WC91-560,30/04/2018,Economy & Environment,BLACK COUNTRY CONSORTIUM LIMITED,04/04/2018,"30,117.80",01045-PRIVATE GRANTS,CFR 1072 CAPITALISATION OF PROJECT OFFICER COSTS,Capital,Capital
Walsall Council,http://opendatacommunities.org/id/metropolitan-district-council/walsall,WC91-561,30/04/2018,Economy & Environment,BLACK COUNTRY CONSORTIUM LIMITED,04/04/2018,"32,392.80",65500-GRANTS TO ASSOCIATIONS,LEP- HESELTINE FUNDING,Third Party Payments,Revenue
Walsall Council,http://opendatacommunities.org/id/metropolitan-district-council/walsall,WC91-562,30/04/2018,Economy & Environment,BLACK COUNTRY CONSORTIUM LIMITED,04/04/2018,"61,476.01",65500-GRANTS TO ASSOCIATIONS,LEP CORE FUNDING,Third Party Payments,Revenue
Walsall Council,http://opendatacommunities.org/id/metropolitan-district-council/walsall,WC91-563,30/04/2018,Economy & Environment,BLACK COUNTRY MUSEUM TRUST LTD,20/04/2018,"3,821.02",01045-PRIVATE GRANTS,CFR 1072 BLACK COUNTRY LIVING MUSEUM,Capital,Capital
Walsall Council,http://opendatacommunities.org/id/metropolitan-district-council/walsall,WC91-564,30/04/2018,Economy & Environment,BLACK COUNTRY TRAINING LTD T/A BRITISH HGV TRAINING GROUP,04/04/2018,"1,092.00",63000-PROFESSIONAL FEES AND SERVICES,COMMUNITY LIAISON,Supplies & Services,Revenue
Walsall Council,http://opendatacommunities.org/id/metropolitan-district-council/walsall,WC91-565,30/04/2018,Childrens,BLAENAU GWENT COUNTY BOROUGH COUNCIL,18/04/2018,"18,000.00",63000-PROFESSIONAL FEES AND SERVICES,ADOPTION TEAM,Supplies & Services,Revenue
Walsall Council,http://opendatacommunities.org/id/metropolitan-district-council/walsall,WC91-566,30/04/2018,Childrens,BLAKENALL HEATH JMI SCHOOL,25/04/2018,"59,880.00",77302-ISB-SCHOOL STANDARDS GRANT,BLAKENALL HEATH JUNIOR SCHOOL,Transfer Payments,Revenue
Walsall Council,http://opendatacommunities.org/id/metropolitan-district-council/walsall,WC91-567,30/04/2018,Childrens,BLOXWICH ACADEMY,24/04/2018,"1,710.77",66502-TOP UP FUNDING -GRANTS TO SCHOOLS,BLOXWICH ACADEMY,Third Party Payments,Revenue
Walsall Council,http://opendatacommunities.org/id/metropolitan-district-council/walsall,WC91-568,30/04/2018,Childrens,BLOXWICH ACADEMY,11/04/2018,"20,430.00",66505-OTHER-GRANTS TO OTHER ORGS,EARLY YEARS - 3 YR OLDS,Third Party Payments,Revenue
Walsall Council,http://opendatacommunities.org/id/metropolitan-district-council/walsall,WC91-569,30/04/2018,Childrens,BLOXWICH ACADEMY,11/04/2018,"44,109.00",66505-OTHER-GRANTS TO OTHER ORGS,EARLY YEARS - 3 YR OLDS,Third Party Payments,Revenue
Walsall Council,http://opendatacommunities.org/id/metropolitan-district-council/walsall,WC91-570,30/04/2018,Adult Social Care,BLOXWICH COMMUNITY PARTNERSHIP.,04/04/2018,279.00,73372-DOMICILIARY CARE,OP PACKAGE/PLACEMENT COSTS,Third Party Payments,Revenue
Walsall Council,http://opendatacommunities.org/id/metropolitan-district-council/walsall,WC91-571,30/04/2018,Resources and Transformation,BLOXWICH COMMUNITY PARTNERSHIP.,19/04/2018,532.50,63128-HIRE OF ROOM-SERVICES-FEES,AREA PARTNERSHIPS,Supplies & Services,Revenue
Walsall Council,http://opendatacommunities.org/id/metropolitan-district-council/walsall,WC91-572,30/04/2018,Childrens,BLOXWICH COMMUNITY PARTNERSHIP.,04/04/2018,"6,881.18",66500-GRANTS TO OTHER ORGS,TARGETED YOUTH WORK - COMMISSIONED,Third Party Payments,Revenue
Walsall Council,http://opendatacommunities.org/id/metropolitan-district-council/walsall,WC91-573,30/04/2018,Childrens,BLOXWICH COMMUNITY PARTNERSHIP.,04/04/2018,"6,881.18",66500-GRANTS TO OTHER ORGS,TARGETED YOUTH WORK - COMMISSIONED,Third Party Payments,Revenue
Walsall Council,http://opendatacommunities.org/id/metropolitan-district-council/walsall,WC91-574,30/04/2018,Childrens,BLOXWICH COMMUNITY PARTNERSHIP.,04/04/2018,"6,881.18",66500-GRANTS TO OTHER ORGS,TARGETED YOUTH WORK - COMMISSIONED,Third Party Payments,Revenue
Walsall Council,http://opendatacommunities.org/id/metropolitan-district-council/walsall,WC91-575,30/04/2018,Childrens,BLOXWICH COMMUNITY PARTNERSHIP.,04/04/2018,"6,881.18",66500-GRANTS TO OTHER ORGS,TARGETED YOUTH WORK - COMMISSIONED,Third Party Payments,Revenue
Walsall Council,http://opendatacommunities.org/id/metropolitan-district-council/walsall,WC91-576,30/04/2018,Resources and Transformation,BLOXWICH COMMUNITY PARTNERSHIP.,25/04/2018,"7,000.00",66500-GRANTS TO OTHER ORGS,BLOXWICH COMMUNITY PARTNERSHIP,Third Party Payments,Revenue
Walsall Council,http://opendatacommunities.org/id/metropolitan-district-council/walsall,WC91-577,30/04/2018,Economy & Environment,BLOXWICH COMMUNITY PARTNERSHIP.,09/04/2018,"7,491.25",63253-PAYMENT TO CONTRACTOR,MENTAL HEALTH,Third Party Payments,Revenue
Walsall Council,http://opendatacommunities.org/id/metropolitan-district-council/walsall,WC91-578,30/04/2018,Economy & Environment,BLOXWICH COMMUNITY PARTNERSHIP.,09/04/2018,"7,491.25",63253-PAYMENT TO CONTRACTOR,MENTAL HEALTH,Third Party Payments,Revenue
Walsall Council,http://opendatacommunities.org/id/metropolitan-district-council/walsall,WC91-579,30/04/2018,Resources and Transformation,BLOXWICH COMMUNITY PARTNERSHIP.,16/04/2018,"21,211.50",01006-SITE WORKS MAIN CONTRACTORS,CFR 771 BACKLOG AIDS & ADAPTATIONS,Capital,Capital
Walsall Council,http://opendatacommunities.org/id/metropolitan-district-council/walsall,WC91-580,30/04/2018,Childrens,BLUE COAT CHURCH OF ENGLAND ACADEMY,24/04/2018,"5,869.62",66502-TOP UP FUNDING -GRANTS TO SCHOOLS,BLUE COAT CofE ACADEMY,Third Party Payments,Revenue
Walsall Council,http://opendatacommunities.org/id/metropolitan-district-council/walsall,WC91-581,30/04/2018,Childrens,BLUE GIRAFFE CHILDCARE,04/04/2018,855.00,66505-OTHER-GRANTS TO OTHER ORGS,EARLY YEARS - 3 YR OLDS,Third Party Payments,Revenue
Walsall Council,http://opendatacommunities.org/id/metropolitan-district-council/walsall,WC91-582,30/04/2018,Childrens,BLUE GIRAFFE CHILDCARE,04/04/2018,"8,822.00",66505-OTHER-GRANTS TO OTHER ORGS,EARLY YEARS - 3 YR OLDS,Third Party Payments,Revenue
Walsall Council,http://opendatacommunities.org/id/metropolitan-district-council/walsall,WC91-583,30/04/2018,Childrens,BLUE GIRAFFE CHILDCARE,03/04/2018,"11,536.00",66505-OTHER-GRANTS TO OTHER ORGS,EARLY YEARS - 3 YR OLDS,Third Party Payments,Revenue
Walsall Council,http://opendatacommunities.org/id/metropolitan-district-council/walsall,WC91-584,30/04/2018,Childrens,BLUE GIRAFFE CHILDCARE,03/04/2018,"15,531.00",66505-OTHER-GRANTS TO OTHER ORGS,EARLY YEARS - 2 YR OLDS,Third Party Payments,Revenue
Walsall Council,http://opendatacommunities.org/id/metropolitan-district-council/walsall,WC91-585,30/04/2018,Childrens,BLUEBELLS #1,25/04/2018,2.91,46000-EQUIP NEW-CLEANING,BLUEBELLS,Premises,Revenue
Walsall Council,http://opendatacommunities.org/id/metropolitan-district-council/walsall,WC91-586,30/04/2018,Childrens,BLUEBELLS #1,25/04/2018,4.00,62001-STATIONERY & GENERAL SUPPLIES-OFFICE EXP,BLUEBELLS,Supplies & Services,Revenue
Walsall Council,http://opendatacommunities.org/id/metropolitan-district-council/walsall,WC91-587,30/04/2018,Childrens,BLUEBELLS #1,25/04/2018,25.37,61016-FOOD AND BEVERAGES-PROVISIONS,BLUEBELLS,Supplies & Services,Revenue
Walsall Council,http://opendatacommunities.org/id/metropolitan-district-council/walsall,WC91-588,30/04/2018,Childrens,BLUEBELLS #1,25/04/2018,160.93,"40000-REPAIRS,ALTERATIONS & MAINTENANCE-PREM",BLUEBELLS,Premises,Revenue
Walsall Council,http://opendatacommunities.org/id/metropolitan-district-council/walsall,WC91-589,30/04/2018,Childrens,BLUEBELLS #1,25/04/2018,177.54,60006-NEW-FURNITURE & EQUIPMENT,BLUEBELLS,Supplies & Services,Revenue
Walsall Council,http://opendatacommunities.org/id/metropolitan-district-council/walsall,WC91-590,30/04/2018,Childrens,BLUEBELLS #1,25/04/2018,826.91,76400-RESIDENTS PERSONAL EXPENSES-ALLOWANCES TO S/S CLIENTS,BLUEBELLS,Transfer Payments,Revenue
Walsall Council,http://opendatacommunities.org/id/metropolitan-district-council/walsall,WC91-591,30/04/2018,Resources and Transformation,BLUETOWNONLINE LTD,25/04/2018,479.00,34000-RECRUITMENT EXPENSES (ALL TYPES INCL RELOCATION),SCHOOLS HR TRANSACTIONAL TEAM,Employees,Revenue
Walsall Council,http://opendatacommunities.org/id/metropolitan-district-council/walsall,WC91-592,30/04/2018,Economy & Environment,BOLINDA UK LTD,16/04/2018,803.77,60501-LIBRARY BOOKS,LIBRARY STOCK AND PERFORMANCE,Supplies & Services,Revenue
Walsall Council,http://opendatacommunities.org/id/metropolitan-district-council/walsall,WC91-593,30/04/2018,Economy & Environment,BONINGALE NURSERIES,23/04/2018,875.00,60500-GENERAL MATERIALS,GROUNDS,Supplies & Services,Revenue
Walsall Council,http://opendatacommunities.org/id/metropolitan-district-council/walsall,WC91-594,30/04/2018,Resources and Transformation,BORSHCH LTD,30/04/2018,233.33,60000-FURNITURE & EQUIPMENT,WALSALL CRISIS SUPPORT SCHEME,Supplies & Services,Revenue
Walsall Council,http://opendatacommunities.org/id/metropolitan-district-council/walsall,WC91-595,30/04/2018,Resources and Transformation,BORSHCH LTD,30/04/2018,233.33,60000-FURNITURE & EQUIPMENT,WALSALL CRISIS SUPPORT SCHEME,Supplies & Services,Revenue
Walsall Council,http://opendatacommunities.org/id/metropolitan-district-council/walsall,WC91-596,30/04/2018,Resources and Transformation,BORSHCH LTD,03/04/2018,287.50,60000-FURNITURE & EQUIPMENT,WALSALL CRISIS SUPPORT SCHEME,Supplies & Services,Revenue
Walsall Council,http://opendatacommunities.org/id/metropolitan-district-council/walsall,WC91-597,30/04/2018,Resources and Transformation,BORSHCH LTD,04/04/2018,287.50,60000-FURNITURE & EQUIPMENT,WALSALL CRISIS SUPPORT SCHEME,Supplies & Services,Revenue
Walsall Council,http://opendatacommunities.org/id/metropolitan-district-council/walsall,WC91-598,30/04/2018,Resources and Transformation,BORSHCH LTD,04/04/2018,291.66,60000-FURNITURE & EQUIPMENT,WALSALL CRISIS SUPPORT SCHEME,Supplies & Services,Revenue
Walsall Council,http://opendatacommunities.org/id/metropolitan-district-council/walsall,WC91-599,30/04/2018,Resources and Transformation,BORSHCH LTD,04/04/2018,291.66,60000-FURNITURE & EQUIPMENT,WALSALL CRISIS SUPPORT SCHEME,Supplies & Services,Revenue
Walsall Council,http://opendatacommunities.org/id/metropolitan-district-council/walsall,WC91-600,30/04/2018,Resources and Transformation,BORSHCH LTD,03/04/2018,295.83,60000-FURNITURE & EQUIPMENT,WALSALL CRISIS SUPPORT SCHEME,Supplies & Services,Revenue
Walsall Council,http://opendatacommunities.org/id/metropolitan-district-council/walsall,WC91-601,30/04/2018,Resources and Transformation,BORSHCH LTD,04/04/2018,295.83,60000-FURNITURE & EQUIPMENT,WALSALL CRISIS SUPPORT SCHEME,Supplies & Services,Revenue
Walsall Council,http://opendatacommunities.org/id/metropolitan-district-council/walsall,WC91-602,30/04/2018,Resources and Transformation,BORSHCH LTD,16/04/2018,295.83,60000-FURNITURE & EQUIPMENT,WALSALL CRISIS SUPPORT SCHEME,Supplies & Services,Revenue
Walsall Council,http://opendatacommunities.org/id/metropolitan-district-council/walsall,WC91-603,30/04/2018,Resources and Transformation,BORSHCH LTD,30/04/2018,295.83,60000-FURNITURE & EQUIPMENT,WALSALL CRISIS SUPPORT SCHEME,Supplies & Services,Revenue
Walsall Council,http://opendatacommunities.org/id/metropolitan-district-council/walsall,WC91-604,30/04/2018,Resources and Transformation,BORSHCH LTD,18/04/2018,424.99,60000-FURNITURE & EQUIPMENT,WALSALL CRISIS SUPPORT SCHEME,Supplies & Services,Revenue
Walsall Council,http://opendatacommunities.org/id/metropolitan-district-council/walsall,WC91-605,30/04/2018,Resources and Transformation,BORSHCH LTD,03/04/2018,433.33,60000-FURNITURE & EQUIPMENT,WALSALL CRISIS SUPPORT SCHEME,Supplies & Services,Revenue
Walsall Council,http://opendatacommunities.org/id/metropolitan-district-council/walsall,WC91-606,30/04/2018,Resources and Transformation,BORSHCH LTD,03/04/2018,433.33,60000-FURNITURE & EQUIPMENT,WALSALL CRISIS SUPPORT SCHEME,Supplies & Services,Revenue
Walsall Council,http://opendatacommunities.org/id/metropolitan-district-council/walsall,WC91-607,30/04/2018,Resources and Transformation,BORSHCH LTD,03/04/2018,433.33,60000-FURNITURE & EQUIPMENT,WALSALL CRISIS SUPPORT SCHEME,Supplies & Services,Revenue
Walsall Council,http://opendatacommunities.org/id/metropolitan-district-council/walsall,WC91-608,30/04/2018,Resources and Transformation,BORSHCH LTD,03/04/2018,433.33,60000-FURNITURE & EQUIPMENT,WALSALL CRISIS SUPPORT SCHEME,Supplies & Services,Revenue
Walsall Council,http://opendatacommunities.org/id/metropolitan-district-council/walsall,WC91-609,30/04/2018,Resources and Transformation,BORSHCH LTD,03/04/2018,433.33,60000-FURNITURE & EQUIPMENT,WALSALL CRISIS SUPPORT SCHEME,Supplies & Services,Revenue
Walsall Council,http://opendatacommunities.org/id/metropolitan-district-council/walsall,WC91-610,30/04/2018,Resources and Transformation,BORSHCH LTD,03/04/2018,433.33,60000-FURNITURE & EQUIPMENT,WALSALL CRISIS SUPPORT SCHEME,Supplies & Services,Revenue
Walsall Council,http://opendatacommunities.org/id/metropolitan-district-council/walsall,WC91-611,30/04/2018,Resources and Transformation,BORSHCH LTD,04/04/2018,433.33,60000-FURNITURE & EQUIPMENT,WALSALL CRISIS SUPPORT SCHEME,Supplies & Services,Revenue
Walsall Council,http://opendatacommunities.org/id/metropolitan-district-council/walsall,WC91-612,30/04/2018,Resources and Transformation,BORSHCH LTD,04/04/2018,433.33,60000-FURNITURE & EQUIPMENT,WALSALL CRISIS SUPPORT SCHEME,Supplies & Services,Revenue
Walsall Council,http://opendatacommunities.org/id/metropolitan-district-council/walsall,WC91-613,30/04/2018,Resources and Transformation,BORSHCH LTD,10/04/2018,433.33,60000-FURNITURE & EQUIPMENT,WALSALL CRISIS SUPPORT SCHEME,Supplies & Services,Revenue
Walsall Council,http://opendatacommunities.org/id/metropolitan-district-council/walsall,WC91-614,30/04/2018,Resources and Transformation,BORSHCH LTD,16/04/2018,433.33,60000-FURNITURE & EQUIPMENT,WALSALL CRISIS SUPPORT SCHEME,Supplies & Services,Revenue
Walsall Council,http://opendatacommunities.org/id/metropolitan-district-council/walsall,WC91-615,30/04/2018,Resources and Transformation,BORSHCH LTD,16/04/2018,433.33,60000-FURNITURE & EQUIPMENT,WALSALL CRISIS SUPPORT SCHEME,Supplies & Services,Revenue
Walsall Council,http://opendatacommunities.org/id/metropolitan-district-council/walsall,WC91-616,30/04/2018,Resources and Transformation,BORSHCH LTD,18/04/2018,433.33,60000-FURNITURE & EQUIPMENT,WALSALL CRISIS SUPPORT SCHEME,Supplies & Services,Revenue
Walsall Council,http://opendatacommunities.org/id/metropolitan-district-council/walsall,WC91-617,30/04/2018,Resources and Transformation,BORSHCH LTD,18/04/2018,433.33,60000-FURNITURE & EQUIPMENT,WALSALL CRISIS SUPPORT SCHEME,Supplies & Services,Revenue
Walsall Council,http://opendatacommunities.org/id/metropolitan-district-council/walsall,WC91-618,30/04/2018,Resources and Transformation,BORSHCH LTD,30/04/2018,433.33,60000-FURNITURE & EQUIPMENT,WALSALL CRISIS SUPPORT SCHEME,Supplies & Services,Revenue
Walsall Council,http://opendatacommunities.org/id/metropolitan-district-council/walsall,WC91-619,30/04/2018,Resources and Transformation,BORSHCH LTD,30/04/2018,433.33,60000-FURNITURE & EQUIPMENT,WALSALL CRISIS SUPPORT SCHEME,Supplies & Services,Revenue
Walsall Council,http://opendatacommunities.org/id/metropolitan-district-council/walsall,WC91-620,30/04/2018,Resources and Transformation,BORSHCH LTD,30/04/2018,479.17,60000-FURNITURE & EQUIPMENT,WALSALL CRISIS SUPPORT SCHEME,Supplies & Services,Revenue
Walsall Council,http://opendatacommunities.org/id/metropolitan-district-council/walsall,WC91-621,30/04/2018,Adult Social Care,BOWDEN DERRA PARK,24/04/2018,"1,547.89",73373-RESIDENTIAL & NURSING CARE PLACEMENTS,LD PACKAGE/PLACEMENT COSTS,Third Party Payments,Revenue
Walsall Council,http://opendatacommunities.org/id/metropolitan-district-council/walsall,WC91-622,30/04/2018,Adult Social Care,BOWDEN DERRA PARK,24/04/2018,"11,609.18",73373-RESIDENTIAL & NURSING CARE PLACEMENTS,LD PACKAGE/PLACEMENT COSTS,Third Party Payments,Revenue
Walsall Council,http://opendatacommunities.org/id/metropolitan-district-council/walsall,WC91-623,30/04/2018,Resources and Transformation,BPP PROFESSIONAL EDUCATION,19/04/2018,864.32,30030-EXTERNAL TRAINING,FINANCE,Employees,Revenue
Walsall Council,http://opendatacommunities.org/id/metropolitan-district-council/walsall,WC91-624,30/04/2018,Economy & Environment,BRADVALE LTD T/A INSPIRE HEALTHCARE SERVICES,25/04/2018,284.98,60008-MAINTENANCE-FURNITURE & EQUIPMENT,DARLASTON LEISURE CENTRE,Supplies & Services,Revenue
Walsall Council,http://opendatacommunities.org/id/metropolitan-district-council/walsall,WC91-625,30/04/2018,Economy & Environment,BRADVALE LTD T/A INSPIRE HEALTHCARE SERVICES,23/04/2018,600.23,60008-MAINTENANCE-FURNITURE & EQUIPMENT,OAK PARK,Supplies & Services,Revenue
Walsall Council,http://opendatacommunities.org/id/metropolitan-district-council/walsall,WC91-626,30/04/2018,Economy & Environment,BRADVALE LTD T/A INSPIRE HEALTHCARE SERVICES,06/04/2018,612.25,60500-GENERAL MATERIALS,ARBORETUM VISITOR CENTRE,Supplies & Services,Revenue
Walsall Council,http://opendatacommunities.org/id/metropolitan-district-council/walsall,WC91-627,30/04/2018,Economy & Environment,BRADVALE LTD T/A INSPIRE HEALTHCARE SERVICES,12/04/2018,926.53,60008-MAINTENANCE-FURNITURE & EQUIPMENT,BLOXWICH LEISURE CENTRE,Supplies & Services,Revenue
Walsall Council,http://opendatacommunities.org/id/metropolitan-district-council/walsall,WC91-628,30/04/2018,Economy & Environment,BRAMBLE HUB LIMITED,11/04/2018,"2,224.01",63124-FEES & LICENCES-SERVICES,OAK PARK,Supplies & Services,Revenue
Walsall Council,http://opendatacommunities.org/id/metropolitan-district-council/walsall,WC91-629,30/04/2018,Economy & Environment,BRAMBLE HUB LIMITED,11/04/2018,"2,224.01",63124-FEES & LICENCES-SERVICES,BLOXWICH LEISURE CENTRE,Supplies & Services,Revenue
Walsall Council,http://opendatacommunities.org/id/metropolitan-district-council/walsall,WC91-630,30/04/2018,Economy & Environment,BRAMBLE HUB LIMITED,11/04/2018,"2,224.01",63124-FEES & LICENCES-SERVICES,WALSALL GALA CENTRE,Supplies & Services,Revenue
Walsall Council,http://opendatacommunities.org/id/metropolitan-district-council/walsall,WC91-631,30/04/2018,Economy & Environment,BRAMBLE HUB LIMITED,11/04/2018,"2,224.03",63124-FEES & LICENCES-SERVICES,DARLASTON LEISURE CENTRE,Supplies & Services,Revenue
Walsall Council,http://opendatacommunities.org/id/metropolitan-district-council/walsall,WC91-632,30/04/2018,Economy & Environment,BRAMBLE HUB LIMITED,16/04/2018,"2,444.44",01044-PURCHASE OF FURNITURE & EQUIPMENT,CFR 1155 LEISURE MANAGEMENT SYSTEM,Capital,Capital
Walsall Council,http://opendatacommunities.org/id/metropolitan-district-council/walsall,WC91-633,30/04/2018,Adult Social Care,BRAMBLES RESIDENTIAL CARE HOME,03/04/2018,"-1,170.58",73373-RESIDENTIAL & NURSING CARE PLACEMENTS,MENTAL HEALTH PACKAGE/PLACEMENT COSTS,Third Party Payments,Revenue
Walsall Council,http://opendatacommunities.org/id/metropolitan-district-council/walsall,WC91-634,30/04/2018,Economy & Environment,BRELMAYNE LTD,06/04/2018,550.00,60008-MAINTENANCE-FURNITURE & EQUIPMENT,OAK PARK,Supplies & Services,Revenue
Walsall Council,http://opendatacommunities.org/id/metropolitan-district-council/walsall,WC91-635,30/04/2018,Adult Social Care,BRELMAYNE LTD,25/04/2018,625.96,60007-REPAIR OF EQUIPMENT-EQUIPMENT,HOLLYBANK,Supplies & Services,Revenue
Walsall Council,http://opendatacommunities.org/id/metropolitan-district-council/walsall,WC91-636,30/04/2018,Resources and Transformation,BRELMAYNE LTD,01/04/2018,650.00,01044-PURCHASE OF FURNITURE & EQUIPMENT,CFR 1190 SCHOOLS PROJECT,Capital,Capital
Walsall Council,http://opendatacommunities.org/id/metropolitan-district-council/walsall,WC91-637,30/04/2018,Economy & Environment,BRELMAYNE LTD,06/04/2018,661.25,60008-MAINTENANCE-FURNITURE & EQUIPMENT,OAK PARK,Supplies & Services,Revenue
Walsall Council,http://opendatacommunities.org/id/metropolitan-district-council/walsall,WC91-638,30/04/2018,Resources and Transformation,BRELMAYNE LTD,16/04/2018,702.64,60008-MAINTENANCE-FURNITURE & EQUIPMENT,CENTRAL OFFICE ACCOMMODATION,Supplies & Services,Revenue
Walsall Council,http://opendatacommunities.org/id/metropolitan-district-council/walsall,WC91-639,30/04/2018,Economy & Environment,BRELMAYNE LTD,04/04/2018,989.00,60008-MAINTENANCE-FURNITURE & EQUIPMENT,FOREST ARTS CENTRE,Supplies & Services,Revenue
Walsall Council,http://opendatacommunities.org/id/metropolitan-district-council/walsall,WC91-640,30/04/2018,Resources and Transformation,BRELMAYNE LTD,16/04/2018,"2,443.00","40000-REPAIRS,ALTERATIONS & MAINTENANCE-PREM",CENTRAL OFFICE ACCOMMODATION,Premises,Revenue
Walsall Council,http://opendatacommunities.org/id/metropolitan-district-council/walsall,WC91-641,30/04/2018,Childrens,BRELMAYNE LTD,17/04/2018,"4,263.00",01006-SITE WORKS MAIN CONTRACTORS,CFR 1137 KINGS HILL PRIMARY EXPANSION,Capital,Capital
Walsall Council,http://opendatacommunities.org/id/metropolitan-district-council/walsall,WC91-642,30/04/2018,Economy & Environment,BRELMAYNE LTD,04/04/2018,"6,995.00",60008-MAINTENANCE-FURNITURE & EQUIPMENT,FOREST ARTS CENTRE,Supplies & Services,Revenue
Walsall Council,http://opendatacommunities.org/id/metropolitan-district-council/walsall,WC91-643,30/04/2018,Resources and Transformation,BRELMAYNE LTD,17/04/2018,"11,030.00",01044-PURCHASE OF FURNITURE & EQUIPMENT,CFR 1190 SCHOOLS PROJECT,Capital,Capital
Walsall Council,http://opendatacommunities.org/id/metropolitan-district-council/walsall,WC91-644,30/04/2018,Childrens,BRELMAYNE LTD,17/04/2018,"17,244.00",01006-SITE WORKS MAIN CONTRACTORS,CFR 1193 VARIOUS - KITCHEN VENTILATION UPGRADES,Capital,Capital
Walsall Council,http://opendatacommunities.org/id/metropolitan-district-council/walsall,WC91-645,30/04/2018,Adult Social Care,REDACTED,09/04/2018,440.00,76422-DIRECT PAYMENTS TO SOCIAL SERVICES CLIENTS,LD PACKAGE/PLACEMENT COSTS,Transfer Payments,Revenue
Walsall Council,http://opendatacommunities.org/id/metropolitan-district-council/walsall,WC91-646,30/04/2018,Childrens,REDACTED,23/04/2018,715.12,74506-TRAVEL-FOSTER CARERS,INTERNAL FOSTER CARE PROVISION,Transfer Payments,Revenue
Walsall Council,http://opendatacommunities.org/id/metropolitan-district-council/walsall,WC91-647,30/04/2018,Childrens,REDACTED,23/04/2018,720.00,74501-MAINTENANCE ALLOWANCE-FOSTER CARERS,INTERNAL FOSTER CARE PROVISION,Transfer Payments,Revenue
Walsall Council,http://opendatacommunities.org/id/metropolitan-district-council/walsall,WC91-648,30/04/2018,Childrens,REDACTED,23/04/2018,720.00,74501-MAINTENANCE ALLOWANCE-FOSTER CARERS,INTERNAL FOSTER CARE PROVISION,Transfer Payments,Revenue
Walsall Council,http://opendatacommunities.org/id/metropolitan-district-council/walsall,WC91-649,30/04/2018,Childrens,REDACTED,23/04/2018,"1,600.00",74508-INTERNAL FOSTER CARERS-CARER FEES,INTERNAL FOSTER CARE PROVISION,Transfer Payments,Revenue
Walsall Council,http://opendatacommunities.org/id/metropolitan-district-council/walsall,WC91-650,30/04/2018,Economy & Environment,BRENNTAG UK LIMITED,12/04/2018,710.00,50301-FUEL-TRANSPORT RUN COSTS,FUEL STOCK ACCOUNT,Transport,Revenue
Walsall Council,http://opendatacommunities.org/id/metropolitan-district-council/walsall,WC91-651,30/04/2018,Adult Social Care,REDACTED,12/04/2018,"1,337.64",73372-DOMICILIARY CARE,LD PACKAGE/PLACEMENT COSTS,Third Party Payments,Revenue
Walsall Council,http://opendatacommunities.org/id/metropolitan-district-council/walsall,WC91-652,30/04/2018,Adult Social Care,REDACTED,12/04/2018,"1,597.60",73372-DOMICILIARY CARE,LD PACKAGE/PLACEMENT COSTS,Third Party Payments,Revenue
Walsall Council,http://opendatacommunities.org/id/metropolitan-district-council/walsall,WC91-653,30/04/2018,Adult Social Care,REDACTED,09/04/2018,"1,502.60",76422-DIRECT PAYMENTS TO SOCIAL SERVICES CLIENTS,OP PACKAGE/PLACEMENT COSTS,Transfer Payments,Revenue
Walsall Council,http://opendatacommunities.org/id/metropolitan-district-council/walsall,WC91-654,30/04/2018,Adult Social Care,REDACTED,09/04/2018,811.80,76422-DIRECT PAYMENTS TO SOCIAL SERVICES CLIENTS,OP PACKAGE/PLACEMENT COSTS,Transfer Payments,Revenue
Walsall Council,http://opendatacommunities.org/id/metropolitan-district-council/walsall,WC91-655,30/04/2018,Adult Social Care,BRIDGEWOOD HEALTH CARE LTD,03/04/2018,"2,640.97",73373-RESIDENTIAL & NURSING CARE PLACEMENTS,PD PACKAGE/PLACEMENT COSTS,Third Party Payments,Revenue
Walsall Council,http://opendatacommunities.org/id/metropolitan-district-council/walsall,WC91-656,30/04/2018,Adult Social Care,BRIDGEWOOD HEALTH CARE LTD,03/04/2018,"3,047.27",73373-RESIDENTIAL & NURSING CARE PLACEMENTS,PD PACKAGE/PLACEMENT COSTS,Third Party Payments,Revenue
Walsall Council,http://opendatacommunities.org/id/metropolitan-district-council/walsall,WC91-657,30/04/2018,Adult Social Care,BRIDGEWOOD HEALTH CARE LTD,24/04/2018,"5,688.24",73373-RESIDENTIAL & NURSING CARE PLACEMENTS,PD PACKAGE/PLACEMENT COSTS,Third Party Payments,Revenue
Walsall Council,http://opendatacommunities.org/id/metropolitan-district-council/walsall,WC91-658,30/04/2018,Childrens,BRIGHT HORIZONS (WISHING WILLOW),04/04/2018,957.62,63120-CRECHE FACILITIES-SERVICES-FEES,FAMILY PLACEMENTS,Supplies & Services,Revenue
Walsall Council,http://opendatacommunities.org/id/metropolitan-district-council/walsall,WC91-659,30/04/2018,Resources and Transformation,BRISTOW & SUTOR,20/04/2018,448.69,73014-LEGAL FEES-PRIV CONTRACTOR FEES,REVENUES,Third Party Payments,Revenue
Walsall Council,http://opendatacommunities.org/id/metropolitan-district-council/walsall,WC91-660,30/04/2018,Resources and Transformation,BRITISH GAS BUSINESS,23/04/2018,-722.78,42000-GAS-ENERGY COSTS,CENTRALISED ENERGY,Premises,Revenue
Walsall Council,http://opendatacommunities.org/id/metropolitan-district-council/walsall,WC91-661,30/04/2018,Resources and Transformation,BRITISH GAS BUSINESS,23/04/2018,-722.78,42000-GAS-ENERGY COSTS,CENTRALISED ENERGY,Premises,Revenue
Walsall Council,http://opendatacommunities.org/id/metropolitan-district-council/walsall,WC91-662,30/04/2018,Resources and Transformation,BRITISH GAS BUSINESS,23/04/2018,-678.68,42000-GAS-ENERGY COSTS,CENTRALISED ENERGY,Premises,Revenue
Walsall Council,http://opendatacommunities.org/id/metropolitan-district-council/walsall,WC91-663,30/04/2018,Resources and Transformation,BRITISH GAS BUSINESS,23/04/2018,-411.73,42000-GAS-ENERGY COSTS,DARLASTON TOWN HALL,Premises,Revenue
Walsall Council,http://opendatacommunities.org/id/metropolitan-district-council/walsall,WC91-664,30/04/2018,Resources and Transformation,BRITISH GAS BUSINESS,23/04/2018,253.17,42000-GAS-ENERGY COSTS,CENTRALISED ENERGY,Premises,Revenue
Walsall Council,http://opendatacommunities.org/id/metropolitan-district-council/walsall,WC91-665,30/04/2018,Resources and Transformation,BRITISH GAS BUSINESS,23/04/2018,"5,624.98",42000-GAS-ENERGY COSTS,REDUNDANT BUILDINGS,Premises,Revenue
Walsall Council,http://opendatacommunities.org/id/metropolitan-district-council/walsall,WC91-666,30/04/2018,Adult Social Care,BROADWAY HALLS CARE HOME,09/04/2018,"2,037.14",73373-RESIDENTIAL & NURSING CARE PLACEMENTS,OP PACKAGE/PLACEMENT COSTS,Third Party Payments,Revenue
Walsall Council,http://opendatacommunities.org/id/metropolitan-district-council/walsall,WC91-667,30/04/2018,Economy & Environment,BROWNHILLS ASPHALT & TARMAC LIMITED,12/04/2018,"1,523.00",73025-PROFESSIONAL SERVICES-PRIV CONTRACTOR & OTHER AGENCIES,DEPOT,Third Party Payments,Revenue
Walsall Council,http://opendatacommunities.org/id/metropolitan-district-council/walsall,WC91-668,30/04/2018,Economy & Environment,BROWNHILLS ASPHALT & TARMAC LIMITED,12/04/2018,"1,897.00",60008-MAINTENANCE-FURNITURE & EQUIPMENT,FOREST ARTS CENTRE,Supplies & Services,Revenue
Walsall Council,http://opendatacommunities.org/id/metropolitan-district-council/walsall,WC91-669,30/04/2018,Economy & Environment,BROWNHILLS ASPHALT & TARMAC LIMITED,11/04/2018,"2,076.00",60500-GENERAL MATERIALS,CEMETERIES CENTRAL ADMINISTRATION,Supplies & Services,Revenue
Walsall Council,http://opendatacommunities.org/id/metropolitan-district-council/walsall,WC91-670,30/04/2018,Childrens,BROWNHILLS ASPHALT & TARMAC LIMITED,11/04/2018,"2,380.00",01006-SITE WORKS MAIN CONTRACTORS,CFR 1137 MEADOW VIEW PRIMARY EXPANSION,Capital,Capital
Walsall Council,http://opendatacommunities.org/id/metropolitan-district-council/walsall,WC91-671,30/04/2018,Economy & Environment,BROWNHILLS ASPHALT & TARMAC LIMITED,12/04/2018,"2,598.00",60500-GENERAL MATERIALS,INFRASTRUCTURE MAINTENANCE,Supplies & Services,Revenue
Walsall Council,http://opendatacommunities.org/id/metropolitan-district-council/walsall,WC91-672,30/04/2018,Economy & Environment,BROWNHILLS ASPHALT & TARMAC LIMITED,12/04/2018,"3,800.00",73025-PROFESSIONAL SERVICES-PRIV CONTRACTOR & OTHER AGENCIES,DEPOT,Third Party Payments,Revenue
Walsall Council,http://opendatacommunities.org/id/metropolitan-district-council/walsall,WC91-673,30/04/2018,Economy & Environment,BROWNHILLS ASPHALT & TARMAC LIMITED,30/04/2018,"5,017.00",73025-PROFESSIONAL SERVICES-PRIV CONTRACTOR & OTHER AGENCIES,DEPOT,Third Party Payments,Revenue
Walsall Council,http://opendatacommunities.org/id/metropolitan-district-council/walsall,WC91-674,30/04/2018,Economy & Environment,BROWNHILLS ASPHALT & TARMAC LIMITED,30/04/2018,"5,836.00",73025-PROFESSIONAL SERVICES-PRIV CONTRACTOR & OTHER AGENCIES,DEPOT,Third Party Payments,Revenue
Walsall Council,http://opendatacommunities.org/id/metropolitan-district-council/walsall,WC91-675,30/04/2018,Economy & Environment,BROWNHILLS ASPHALT & TARMAC LIMITED,12/04/2018,"5,880.00",60500-GENERAL MATERIALS,INFRASTRUCTURE MAINTENANCE,Supplies & Services,Revenue
Walsall Council,http://opendatacommunities.org/id/metropolitan-district-council/walsall,WC91-676,30/04/2018,Economy & Environment,BROWNHILLS ASPHALT & TARMAC LIMITED,17/04/2018,"20,853.00",60500-GENERAL MATERIALS,COMMUNITY LIAISON,Supplies & Services,Revenue
Walsall Council,http://opendatacommunities.org/id/metropolitan-district-council/walsall,WC91-677,30/04/2018,Childrens,BROWNHILLS COMMUNITY ASSOCIATION,04/04/2018,540.00,66505-OTHER-GRANTS TO OTHER ORGS,EARLY YEARS - 3 YR OLDS,Third Party Payments,Revenue
Walsall Council,http://opendatacommunities.org/id/metropolitan-district-council/walsall,WC91-678,30/04/2018,Childrens,BROWNHILLS COMMUNITY ASSOCIATION,16/04/2018,550.20,66505-OTHER-GRANTS TO OTHER ORGS,EARLY YEARS - 2 YR OLDS,Third Party Payments,Revenue
Walsall Council,http://opendatacommunities.org/id/metropolitan-district-council/walsall,WC91-679,30/04/2018,Childrens,BROWNHILLS COMMUNITY ASSOCIATION,04/04/2018,"4,072.00",66505-OTHER-GRANTS TO OTHER ORGS,EARLY YEARS - 3 YR OLDS,Third Party Payments,Revenue
Walsall Council,http://opendatacommunities.org/id/metropolitan-district-council/walsall,WC91-680,30/04/2018,Resources and Transformation,BROWNHILLS COMMUNITY ASSOCIATION,25/04/2018,"7,000.00",66500-GRANTS TO OTHER ORGS,BROWNHILLS COMMUNITY ASSOCIATION,Third Party Payments,Revenue
Walsall Council,http://opendatacommunities.org/id/metropolitan-district-council/walsall,WC91-681,30/04/2018,Resources and Transformation,BROWNHILLS COMMUNITY ASSOCIATION,12/04/2018,"8,199.71",62515-MISCELLANEOUS SUPPLIES,INTEGRATED COMMUNITIES PROGRAMME,Supplies & Services,Revenue
Walsall Council,http://opendatacommunities.org/id/metropolitan-district-council/walsall,WC91-682,30/04/2018,Resources and Transformation,BROWNHILLS COMMUNITY ASSOCIATION,16/04/2018,"9,288.99",01006-SITE WORKS MAIN CONTRACTORS,CFR 771 BACKLOG AIDS & ADAPTATIONS,Capital,Capital
Walsall Council,http://opendatacommunities.org/id/metropolitan-district-council/walsall,WC91-683,30/04/2018,Childrens,BROWNHILLS COMMUNITY ASSOCIATION,03/04/2018,"11,444.00",66505-OTHER-GRANTS TO OTHER ORGS,EARLY YEARS - 2 YR OLDS,Third Party Payments,Revenue
Walsall Council,http://opendatacommunities.org/id/metropolitan-district-council/walsall,WC91-684,30/04/2018,Childrens,BROWNHILLS COMMUNITY ASSOCIATION,03/04/2018,"14,386.00",66505-OTHER-GRANTS TO OTHER ORGS,EARLY YEARS - 3 YR OLDS,Third Party Payments,Revenue
Walsall Council,http://opendatacommunities.org/id/metropolitan-district-council/walsall,WC91-685,30/04/2018,Resources and Transformation,BROWNHILLS COMMUNITY ASSOCIATION,16/04/2018,"15,853.80",01006-SITE WORKS MAIN CONTRACTORS,CFR 771 BACKLOG AIDS & ADAPTATIONS,Capital,Capital
Walsall Council,http://opendatacommunities.org/id/metropolitan-district-council/walsall,WC91-686,30/04/2018,Childrens,BROWNHILLS SCHOOL A SPECIALIST SPORTS COLLEGE,17/04/2018,"3,400.00",63000-PROFESSIONAL FEES AND SERVICES,ADMISSIONS & PUPIL PLACE PLANNING,Supplies & Services,Revenue
Walsall Council,http://opendatacommunities.org/id/metropolitan-district-council/walsall,WC91-687,30/04/2018,Adult Social Care,REDACTED,09/04/2018,"1,530.00",76422-DIRECT PAYMENTS TO SOCIAL SERVICES CLIENTS,LD PACKAGE/PLACEMENT COSTS,Transfer Payments,Revenue
Walsall Council,http://opendatacommunities.org/id/metropolitan-district-council/walsall,WC91-688,30/04/2018,Economy & Environment,REDACTED,17/04/2018,"2,081.25",73025-PROFESSIONAL SERVICES-PRIV CONTRACTOR & OTHER AGENCIES,BLOXWICH LIBRARY,Third Party Payments,Revenue
Walsall Council,http://opendatacommunities.org/id/metropolitan-district-council/walsall,WC91-689,30/04/2018,Resources and Transformation,B-SURE SECURITY SERVICES LTD,06/04/2018,427.50,73002-SECURITY-PRIV CONTRACTOR FEES,WALSALL TOWN HALL,Third Party Payments,Revenue
Walsall Council,http://opendatacommunities.org/id/metropolitan-district-council/walsall,WC91-690,30/04/2018,Resources and Transformation,BT,20/04/2018,352.12,63601-COSTS (NOT INTERNAL RECHARGES)-TELEPHONES,CENTRAL COMMUNICATIONS RECHARGES,Supplies & Services,Revenue
Walsall Council,http://opendatacommunities.org/id/metropolitan-district-council/walsall,WC91-691,30/04/2018,Resources and Transformation,BT,16/04/2018,712.00,63601-COSTS (NOT INTERNAL RECHARGES)-TELEPHONES,REVENUES,Supplies & Services,Revenue
Walsall Council,http://opendatacommunities.org/id/metropolitan-district-council/walsall,WC91-692,30/04/2018,Resources and Transformation,BT,20/04/2018,"14,790.81",63601-COSTS (NOT INTERNAL RECHARGES)-TELEPHONES,CENTRAL COMMUNICATIONS RECHARGES,Supplies & Services,Revenue
Walsall Council,http://opendatacommunities.org/id/metropolitan-district-council/walsall,WC91-693,30/04/2018,Resources and Transformation,BT PLC,04/04/2018,"1,268.35",63807-COMMS LINKS-COMPUTER,NETWORKS,Supplies & Services,Revenue
Walsall Council,http://opendatacommunities.org/id/metropolitan-district-council/walsall,WC91-694,30/04/2018,Resources and Transformation,BT PLC,04/04/2018,"14,954.12",63601-COSTS (NOT INTERNAL RECHARGES)-TELEPHONES,CENTRAL COMMUNICATIONS RECHARGES,Supplies & Services,Revenue
Walsall Council,http://opendatacommunities.org/id/metropolitan-district-council/walsall,WC91-695,30/04/2018,Economy & Environment,BUFFET EXPRESS LTD,16/04/2018,274.00,61305-CATERING,MUSIC HUB FOREST ARTS,Supplies & Services,Revenue
Walsall Council,http://opendatacommunities.org/id/metropolitan-district-council/walsall,WC91-696,30/04/2018,Economy & Environment,BUILDING SOFTWARE LTD,12/04/2018,"12,595.00",73025-PROFESSIONAL SERVICES-PRIV CONTRACTOR & OTHER AGENCIES,HIGHWAYS MAINTENANCE GENERAL,Third Party Payments,Revenue
Walsall Council,http://opendatacommunities.org/id/metropolitan-district-council/walsall,WC91-697,30/04/2018,Adult Social Care,BUNZIL HEALTHCARE T/A CARESHOP,25/04/2018,574.42,60539-CLEANING MATERIALS,HOLLYBANK,Supplies & Services,Revenue
Walsall Council,http://opendatacommunities.org/id/metropolitan-district-council/walsall,WC91-698,30/04/2018,Adult Social Care,BUNZIL HEALTHCARE T/A CARESHOP,25/04/2018,701.10,60539-CLEANING MATERIALS,COMMUNITY INTERMEDIATE CARE,Supplies & Services,Revenue
Walsall Council,http://opendatacommunities.org/id/metropolitan-district-council/walsall,WC91-699,30/04/2018,Adult Social Care,BUNZIL HEALTHCARE T/A CARESHOP,11/04/2018,771.28,60539-CLEANING MATERIALS,HOLLYBANK,Supplies & Services,Revenue
Walsall Council,http://opendatacommunities.org/id/metropolitan-district-council/walsall,WC91-700,30/04/2018,Adult Social Care,BUPA CARE HOMES (CFHCARE) LTD,24/04/2018,"-2,414.43",73373-RESIDENTIAL & NURSING CARE PLACEMENTS,OP PACKAGE/PLACEMENT COSTS,Third Party Payments,Revenue
Walsall Council,http://opendatacommunities.org/id/metropolitan-district-council/walsall,WC91-701,30/04/2018,Adult Social Care,BUPA CARE HOMES (CFHCARE) LTD,24/04/2018,942.86,73373-RESIDENTIAL & NURSING CARE PLACEMENTS,OP PACKAGE/PLACEMENT COSTS,Third Party Payments,Revenue
Walsall Council,http://opendatacommunities.org/id/metropolitan-district-council/walsall,WC91-702,30/04/2018,Adult Social Care,BUPA CARE HOMES (CFHCARE) LTD,24/04/2018,"1,257.14",73373-RESIDENTIAL & NURSING CARE PLACEMENTS,OP PACKAGE/PLACEMENT COSTS,Third Party Payments,Revenue
Walsall Council,http://opendatacommunities.org/id/metropolitan-district-council/walsall,WC91-703,30/04/2018,Adult Social Care,BUPA CARE HOMES (CFHCARE) LTD,24/04/2018,"2,200.00",73373-RESIDENTIAL & NURSING CARE PLACEMENTS,OP PACKAGE/PLACEMENT COSTS,Third Party Payments,Revenue
Walsall Council,http://opendatacommunities.org/id/metropolitan-district-council/walsall,WC91-704,30/04/2018,Adult Social Care,BUPA CARE HOMES (CFHCARE) LTD,24/04/2018,"2,400.00",73373-RESIDENTIAL & NURSING CARE PLACEMENTS,OP PACKAGE/PLACEMENT COSTS,Third Party Payments,Revenue
Walsall Council,http://opendatacommunities.org/id/metropolitan-district-council/walsall,WC91-705,30/04/2018,Adult Social Care,BUPA CARE HOMES (CFHCARE) LTD,24/04/2018,"3,380.20",73373-RESIDENTIAL & NURSING CARE PLACEMENTS,OP PACKAGE/PLACEMENT COSTS,Third Party Payments,Revenue
Walsall Council,http://opendatacommunities.org/id/metropolitan-district-council/walsall,WC91-706,30/04/2018,Childrens,BURNTWOOD ROAD SWEEPERS LTD,17/04/2018,300.00,73019-PSE'S-PRIV CONTRACTOR FEES,PELSALL EDC,Third Party Payments,Revenue
Walsall Council,http://opendatacommunities.org/id/metropolitan-district-council/walsall,WC91-707,30/04/2018,Economy & Environment,BURTON ADDICTION CENTRE,05/04/2018,"1,360.00",63253-PAYMENT TO CONTRACTOR,ALCOHOL RESIDENTIAL DETOX,Third Party Payments,Revenue
Walsall Council,http://opendatacommunities.org/id/metropolitan-district-council/walsall,WC91-708,30/04/2018,Adult Social Care,BUSH HOME LTD,18/04/2018,269.98,73373-RESIDENTIAL & NURSING CARE PLACEMENTS,OP PACKAGE/PLACEMENT COSTS,Third Party Payments,Revenue
Walsall Council,http://opendatacommunities.org/id/metropolitan-district-council/walsall,WC91-709,30/04/2018,Adult Social Care,BUSH HOME LTD,18/04/2018,354.85,73373-RESIDENTIAL & NURSING CARE PLACEMENTS,OP PACKAGE/PLACEMENT COSTS,Third Party Payments,Revenue
Walsall Council,http://opendatacommunities.org/id/metropolitan-district-council/walsall,WC91-710,30/04/2018,Adult Social Care,BUSH HOME LTD,18/04/2018,354.86,73373-RESIDENTIAL & NURSING CARE PLACEMENTS,OP PACKAGE/PLACEMENT COSTS,Third Party Payments,Revenue
Walsall Council,http://opendatacommunities.org/id/metropolitan-district-council/walsall,WC91-711,30/04/2018,Adult Social Care,BUSH HOME LTD,18/04/2018,394.28,73373-RESIDENTIAL & NURSING CARE PLACEMENTS,OP PACKAGE/PLACEMENT COSTS,Third Party Payments,Revenue
Walsall Council,http://opendatacommunities.org/id/metropolitan-district-council/walsall,WC91-712,30/04/2018,Adult Social Care,BUSH HOME LTD,18/04/2018,394.29,73373-RESIDENTIAL & NURSING CARE PLACEMENTS,OP PACKAGE/PLACEMENT COSTS,Third Party Payments,Revenue
Walsall Council,http://opendatacommunities.org/id/metropolitan-district-council/walsall,WC91-713,30/04/2018,Adult Social Care,BUSH HOME LTD,03/04/2018,887.14,73373-RESIDENTIAL & NURSING CARE PLACEMENTS,OP PACKAGE/PLACEMENT COSTS,Third Party Payments,Revenue
Walsall Council,http://opendatacommunities.org/id/metropolitan-district-council/walsall,WC91-714,30/04/2018,Adult Social Care,BUSH HOME LTD,09/04/2018,"1,123.71",73373-RESIDENTIAL & NURSING CARE PLACEMENTS,OP PACKAGE/PLACEMENT COSTS,Third Party Payments,Revenue
Walsall Council,http://opendatacommunities.org/id/metropolitan-district-council/walsall,WC91-715,30/04/2018,Adult Social Care,BUSH HOME LTD,03/04/2018,"1,242.00",73373-RESIDENTIAL & NURSING CARE PLACEMENTS,OP PACKAGE/PLACEMENT COSTS,Third Party Payments,Revenue
Walsall Council,http://opendatacommunities.org/id/metropolitan-district-council/walsall,WC91-716,30/04/2018,Adult Social Care,BUSH HOME LTD,18/04/2018,"1,301.14",73373-RESIDENTIAL & NURSING CARE PLACEMENTS,OP PACKAGE/PLACEMENT COSTS,Third Party Payments,Revenue
Walsall Council,http://opendatacommunities.org/id/metropolitan-district-council/walsall,WC91-717,30/04/2018,Adult Social Care,BUSH HOME LTD,18/04/2018,"1,301.14",73373-RESIDENTIAL & NURSING CARE PLACEMENTS,OP PACKAGE/PLACEMENT COSTS,Third Party Payments,Revenue
Walsall Council,http://opendatacommunities.org/id/metropolitan-district-council/walsall,WC91-718,30/04/2018,Adult Social Care,BUSH HOME LTD,18/04/2018,"1,301.15",73373-RESIDENTIAL & NURSING CARE PLACEMENTS,OP PACKAGE/PLACEMENT COSTS,Third Party Payments,Revenue
Walsall Council,http://opendatacommunities.org/id/metropolitan-district-council/walsall,WC91-719,30/04/2018,Adult Social Care,BUSH HOME LTD,18/04/2018,"1,419.43",73373-RESIDENTIAL & NURSING CARE PLACEMENTS,OP PACKAGE/PLACEMENT COSTS,Third Party Payments,Revenue
Walsall Council,http://opendatacommunities.org/id/metropolitan-district-council/walsall,WC91-720,30/04/2018,Adult Social Care,BUSH HOME LTD,18/04/2018,"1,445.71",73373-RESIDENTIAL & NURSING CARE PLACEMENTS,OP PACKAGE/PLACEMENT COSTS,Third Party Payments,Revenue
Walsall Council,http://opendatacommunities.org/id/metropolitan-district-council/walsall,WC91-721,30/04/2018,Adult Social Care,BUSH HOME LTD,18/04/2018,"1,445.72",73373-RESIDENTIAL & NURSING CARE PLACEMENTS,OP PACKAGE/PLACEMENT COSTS,Third Party Payments,Revenue
Walsall Council,http://opendatacommunities.org/id/metropolitan-district-council/walsall,WC91-722,30/04/2018,Adult Social Care,BUSH HOME LTD,18/04/2018,"1,477.97",73373-RESIDENTIAL & NURSING CARE PLACEMENTS,OP PACKAGE/PLACEMENT COSTS,Third Party Payments,Revenue
Walsall Council,http://opendatacommunities.org/id/metropolitan-district-council/walsall,WC91-723,30/04/2018,Adult Social Care,BUSH HOME LTD,18/04/2018,"1,537.72",73373-RESIDENTIAL & NURSING CARE PLACEMENTS,OP PACKAGE/PLACEMENT COSTS,Third Party Payments,Revenue
Walsall Council,http://opendatacommunities.org/id/metropolitan-district-council/walsall,WC91-724,30/04/2018,Adult Social Care,BUSH HOME LTD,18/04/2018,"1,577.14",73373-RESIDENTIAL & NURSING CARE PLACEMENTS,OP PACKAGE/PLACEMENT COSTS,Third Party Payments,Revenue
Walsall Council,http://opendatacommunities.org/id/metropolitan-district-council/walsall,WC91-725,30/04/2018,Adult Social Care,BUSH HOME LTD,18/04/2018,"1,642.86",73373-RESIDENTIAL & NURSING CARE PLACEMENTS,OP PACKAGE/PLACEMENT COSTS,Third Party Payments,Revenue
Walsall Council,http://opendatacommunities.org/id/metropolitan-district-council/walsall,WC91-726,30/04/2018,Adult Social Care,BUSH HOME LTD,03/04/2018,"1,656.00",73373-RESIDENTIAL & NURSING CARE PLACEMENTS,OP PACKAGE/PLACEMENT COSTS,Third Party Payments,Revenue
Walsall Council,http://opendatacommunities.org/id/metropolitan-district-council/walsall,WC91-727,30/04/2018,Adult Social Care,BUSH HOME LTD,03/04/2018,"1,656.00",73373-RESIDENTIAL & NURSING CARE PLACEMENTS,OP PACKAGE/PLACEMENT COSTS,Third Party Payments,Revenue
Walsall Council,http://opendatacommunities.org/id/metropolitan-district-council/walsall,WC91-728,30/04/2018,Adult Social Care,BUSH HOME LTD,03/04/2018,"1,656.00",73373-RESIDENTIAL & NURSING CARE PLACEMENTS,OP PACKAGE/PLACEMENT COSTS,Third Party Payments,Revenue
Walsall Council,http://opendatacommunities.org/id/metropolitan-district-council/walsall,WC91-729,30/04/2018,Adult Social Care,BUSH HOME LTD,03/04/2018,"1,656.00",73373-RESIDENTIAL & NURSING CARE PLACEMENTS,OP PACKAGE/PLACEMENT COSTS,Third Party Payments,Revenue
Walsall Council,http://opendatacommunities.org/id/metropolitan-district-council/walsall,WC91-730,30/04/2018,Adult Social Care,BUSH HOME LTD,09/04/2018,"1,656.00",73373-RESIDENTIAL & NURSING CARE PLACEMENTS,MENTAL HEALTH PACKAGE/PLACEMENT COSTS,Third Party Payments,Revenue
Walsall Council,http://opendatacommunities.org/id/metropolitan-district-council/walsall,WC91-731,30/04/2018,Adult Social Care,BUSH HOME LTD,03/04/2018,"1,840.00",73373-RESIDENTIAL & NURSING CARE PLACEMENTS,OP PACKAGE/PLACEMENT COSTS,Third Party Payments,Revenue
Walsall Council,http://opendatacommunities.org/id/metropolitan-district-council/walsall,WC91-732,30/04/2018,Adult Social Care,BUSH HOME LTD,03/04/2018,"1,840.00",73373-RESIDENTIAL & NURSING CARE PLACEMENTS,OP PACKAGE/PLACEMENT COSTS,Third Party Payments,Revenue
Walsall Council,http://opendatacommunities.org/id/metropolitan-district-council/walsall,WC91-733,30/04/2018,Adult Social Care,BUSH HOME LTD,03/04/2018,"1,840.00",73373-RESIDENTIAL & NURSING CARE PLACEMENTS,OP PACKAGE/PLACEMENT COSTS,Third Party Payments,Revenue
Walsall Council,http://opendatacommunities.org/id/metropolitan-district-council/walsall,WC91-734,30/04/2018,Adult Social Care,BUSH HOME LTD,03/04/2018,"1,840.00",73373-RESIDENTIAL & NURSING CARE PLACEMENTS,OP PACKAGE/PLACEMENT COSTS,Third Party Payments,Revenue
Walsall Council,http://opendatacommunities.org/id/metropolitan-district-council/walsall,WC91-735,30/04/2018,Adult Social Care,BUSH HOME LTD,03/04/2018,"1,840.00",73373-RESIDENTIAL & NURSING CARE PLACEMENTS,OP PACKAGE/PLACEMENT COSTS,Third Party Payments,Revenue
Walsall Council,http://opendatacommunities.org/id/metropolitan-district-council/walsall,WC91-736,30/04/2018,Adult Social Care,BUSH HOME LTD,03/04/2018,"1,840.00",73373-RESIDENTIAL & NURSING CARE PLACEMENTS,OP PACKAGE/PLACEMENT COSTS,Third Party Payments,Revenue
Walsall Council,http://opendatacommunities.org/id/metropolitan-district-council/walsall,WC91-737,30/04/2018,Adult Social Care,BUSH HOME LTD,03/04/2018,"1,840.00",73373-RESIDENTIAL & NURSING CARE PLACEMENTS,MENTAL HEALTH PACKAGE/PLACEMENT COSTS,Third Party Payments,Revenue
Walsall Council,http://opendatacommunities.org/id/metropolitan-district-council/walsall,WC91-738,30/04/2018,Adult Social Care,BUSH HOME LTD,09/04/2018,"1,905.59",73373-RESIDENTIAL & NURSING CARE PLACEMENTS,OP PACKAGE/PLACEMENT COSTS,Third Party Payments,Revenue
Walsall Council,http://opendatacommunities.org/id/metropolitan-district-council/walsall,WC91-739,30/04/2018,Adult Social Care,BUSH HOME LTD,18/04/2018,"1,971.43",73373-RESIDENTIAL & NURSING CARE PLACEMENTS,OP PACKAGE/PLACEMENT COSTS,Third Party Payments,Revenue
Walsall Council,http://opendatacommunities.org/id/metropolitan-district-council/walsall,WC91-740,30/04/2018,Adult Social Care,BUSH HOME LTD,18/04/2018,"1,971.43",73373-RESIDENTIAL & NURSING CARE PLACEMENTS,OP PACKAGE/PLACEMENT COSTS,Third Party Payments,Revenue
Walsall Council,http://opendatacommunities.org/id/metropolitan-district-council/walsall,WC91-741,30/04/2018,Adult Social Care,BUSH HOME LTD,03/04/2018,"2,010.86",73373-RESIDENTIAL & NURSING CARE PLACEMENTS,OP PACKAGE/PLACEMENT COSTS,Third Party Payments,Revenue
Walsall Council,http://opendatacommunities.org/id/metropolitan-district-council/walsall,WC91-742,30/04/2018,Adult Social Care,BUSH HOME LTD,18/04/2018,"2,037.14",73373-RESIDENTIAL & NURSING CARE PLACEMENTS,OP PACKAGE/PLACEMENT COSTS,Third Party Payments,Revenue
Walsall Council,http://opendatacommunities.org/id/metropolitan-district-council/walsall,WC91-743,30/04/2018,Adult Social Care,BUSH HOME LTD,09/04/2018,"2,760.00",73373-RESIDENTIAL & NURSING CARE PLACEMENTS,OP PACKAGE/PLACEMENT COSTS,Third Party Payments,Revenue
Walsall Council,http://opendatacommunities.org/id/metropolitan-district-council/walsall,WC91-744,30/04/2018,Adult Social Care,BUSH HOME LTD,03/04/2018,"2,779.71",73373-RESIDENTIAL & NURSING CARE PLACEMENTS,OP PACKAGE/PLACEMENT COSTS,Third Party Payments,Revenue
Walsall Council,http://opendatacommunities.org/id/metropolitan-district-council/walsall,WC91-745,30/04/2018,Adult Social Care,BUSH HOME LTD,24/04/2018,"3,312.00",73373-RESIDENTIAL & NURSING CARE PLACEMENTS,OP PACKAGE/PLACEMENT COSTS,Third Party Payments,Revenue
Walsall Council,http://opendatacommunities.org/id/metropolitan-district-council/walsall,WC91-746,30/04/2018,Childrens,BUSY BEES CHILDCARE LTD,04/04/2018,"1,080.00",66505-OTHER-GRANTS TO OTHER ORGS,EARLY YEARS - 3 YR OLDS,Third Party Payments,Revenue
Walsall Council,http://opendatacommunities.org/id/metropolitan-district-council/walsall,WC91-747,30/04/2018,Childrens,BUSY BEES CHILDCARE LTD,04/04/2018,"4,298.00",66505-OTHER-GRANTS TO OTHER ORGS,EARLY YEARS - 3 YR OLDS,Third Party Payments,Revenue
Walsall Council,http://opendatacommunities.org/id/metropolitan-district-council/walsall,WC91-748,30/04/2018,Childrens,BUSY BEES CHILDCARE LTD,03/04/2018,"7,465.00",66505-OTHER-GRANTS TO OTHER ORGS,EARLY YEARS - 3 YR OLDS,Third Party Payments,Revenue
Walsall Council,http://opendatacommunities.org/id/metropolitan-district-council/walsall,WC91-749,30/04/2018,Childrens,BY THE BRIDGE,23/04/2018,"3,996.00",74037-INDEPENDENT FOSTER CARE-OTH AGENCY PROVISION,EXTERNAL FOSTER CARE PROVISION,Third Party Payments,Revenue
Walsall Council,http://opendatacommunities.org/id/metropolitan-district-council/walsall,WC91-750,30/04/2018,Childrens,REDACTED,23/04/2018,399.29,74501-MAINTENANCE ALLOWANCE-FOSTER CARERS,INTERNAL FOSTER CARE PROVISION,Transfer Payments,Revenue
Walsall Council,http://opendatacommunities.org/id/metropolitan-district-council/walsall,WC91-751,30/04/2018,Childrens,REDACTED,10/04/2018,464.00,76000-TRANSFER PAYMENTS - SOCIAL SERVICES CLIENTS,TRANSITION AND LEAVING CARE PLACEMENTS,Transfer Payments,Revenue
Walsall Council,http://opendatacommunities.org/id/metropolitan-district-council/walsall,WC91-752,30/04/2018,Childrens,REDACTED,23/04/2018,720.00,74501-MAINTENANCE ALLOWANCE-FOSTER CARERS,INTERNAL FOSTER CARE PROVISION,Transfer Payments,Revenue
Walsall Council,http://opendatacommunities.org/id/metropolitan-district-council/walsall,WC91-753,30/04/2018,Childrens,REDACTED,23/04/2018,720.00,74501-MAINTENANCE ALLOWANCE-FOSTER CARERS,INTERNAL FOSTER CARE PROVISION,Transfer Payments,Revenue
Walsall Council,http://opendatacommunities.org/id/metropolitan-district-council/walsall,WC91-754,30/04/2018,Childrens,REDACTED,23/04/2018,720.00,74501-MAINTENANCE ALLOWANCE-FOSTER CARERS,INTERNAL FOSTER CARE PROVISION,Transfer Payments,Revenue
Walsall Council,http://opendatacommunities.org/id/metropolitan-district-council/walsall,WC91-755,30/04/2018,Childrens,REDACTED,23/04/2018,860.00,74501-MAINTENANCE ALLOWANCE-FOSTER CARERS,INTERNAL FOSTER CARE PROVISION,Transfer Payments,Revenue
Walsall Council,http://opendatacommunities.org/id/metropolitan-district-council/walsall,WC91-756,30/04/2018,Childrens,REDACTED,23/04/2018,"3,600.00",74508-INTERNAL FOSTER CARERS-CARER FEES,INTERNAL FOSTER CARE PROVISION,Transfer Payments,Revenue
Walsall Council,http://opendatacommunities.org/id/metropolitan-district-council/walsall,WC91-757,30/04/2018,Childrens,REDACTED,23/04/2018,720.00,74501-MAINTENANCE ALLOWANCE-FOSTER CARERS,INTERNAL FOSTER CARE PROVISION,Transfer Payments,Revenue
Walsall Council,http://opendatacommunities.org/id/metropolitan-district-council/walsall,WC91-758,30/04/2018,Childrens,REDACTED,23/04/2018,760.00,74501-MAINTENANCE ALLOWANCE-FOSTER CARERS,INTERNAL FOSTER CARE PROVISION,Transfer Payments,Revenue
Walsall Council,http://opendatacommunities.org/id/metropolitan-district-council/walsall,WC91-759,30/04/2018,Childrens,REDACTED,23/04/2018,"1,600.00",74508-INTERNAL FOSTER CARERS-CARER FEES,INTERNAL FOSTER CARE PROVISION,Transfer Payments,Revenue
Walsall Council,http://opendatacommunities.org/id/metropolitan-district-council/walsall,WC91-760,30/04/2018,Childrens,REDACTED,09/04/2018,625.46,74501-MAINTENANCE ALLOWANCE-FOSTER CARERS,FAMILY & FRIENDS FOSTER CARE PROVISION,Transfer Payments,Revenue
Walsall Council,http://opendatacommunities.org/id/metropolitan-district-council/walsall,WC91-761,30/04/2018,Childrens,REDACTED,09/04/2018,625.46,74501-MAINTENANCE ALLOWANCE-FOSTER CARERS,FAMILY & FRIENDS FOSTER CARE PROVISION,Transfer Payments,Revenue
Walsall Council,http://opendatacommunities.org/id/metropolitan-district-council/walsall,WC91-762,30/04/2018,Childrens,CACI  LIMITED,25/04/2018,950.00,63800-COMPUTER EQUIPMENT AND SUPPLIES,YOUTH JUSTICE SERVICE,Supplies & Services,Revenue
Walsall Council,http://opendatacommunities.org/id/metropolitan-district-council/walsall,WC91-763,30/04/2018,Adult Social Care,CALDENE  REST HOME,18/04/2018,"1,149.85",73372-DOMICILIARY CARE,OP PACKAGE/PLACEMENT COSTS,Third Party Payments,Revenue
